Body Name,Date Paid,Transaction Number,Amount,Supplier Name,Supplier Type,Expense Area,Cost Centre Description,Expense Type
Cambridgeshire County Council,15-Aug-16,21128031-13798125,-115642,Cambridgeshire And Peterborough Nhs Foundation Trust,Trust (Other),4 - Commissioning - Mental Health & Supporting People,Adults MH CPMHT Central costs,Contribution to Partnerships
Cambridgeshire County Council,01-Aug-16,21167407-13739587,-44430,South Cambridgeshire District Council,Other Public Bodies,Passenger Transport,Milton Park & Ride,Business rates
Cambridgeshire County Council,15-Aug-16,21292743-13798477,-10212,Huntingdonshire District Council,Other Public Bodies,LGSS Managed,"St Benedict's Court, Huntingdon",Business rates
Cambridgeshire County Council,25-Aug-16,21271592-13865025,-9210.53,Gretton School,Education,S&C,Placements - Education,Independent School Placements
Cambridgeshire County Council,02-Aug-16,21175310-13745427,-8830.36,Wings Education Ltd,Education,S&C,Placements - Social Care,Agency Placements - Out County
Cambridgeshire County Council,02-Aug-16,21175470-13745608,-4714.29,Scope #1,Care Establishment,S&C,Placements - Social Care,Agency Placements - Out County
Cambridgeshire County Council,01-Aug-16,20049393-13739498,-4689.41,One Step At A Time,Care Establishment,S&C,Placements - Social Care,Childrens Lodgings
Cambridgeshire County Council,22-Aug-16,21069770-13846346,-4170,Fevaca,Care Establishment,S&C,Placements - Social Care,Agency Placements - In Cambs
Cambridgeshire County Council,16-Aug-16,21289597-13803342,-3630,Gowiseprint,Trade Supplier,Assets & Commissioning,Waste PFI,Printing
Cambridgeshire County Council,16-Aug-16,21364887-13803440,-3000,Gleeds Advisory Ltd,Trade Supplier,Schools,Brington CofE Primary School; Huntingdon ;(3081),Capital WIP - land and buildings  -  Construction cost
Cambridgeshire County Council,16-Aug-16,21390892-13803220,-2646.12,Guidant Group,Trade Supplier,LGSS Managed,"POD - Leadership	",Pay - Agency Staff
Cambridgeshire County Council,04-Aug-16,21138795-13760535,-2321.81,Orchard Manor (Scope),Care Establishment,2 - Operations - Learning Disability,LDP South Cambs Locality - Care,Residential Independent Sector
Cambridgeshire County Council,04-Aug-16,21138797-13760536,-2321.81,Orchard Manor (Scope),Care Establishment,2 - Operations - Learning Disability,LDP South Cambs Locality - Care,Residential Independent Sector
Cambridgeshire County Council,04-Aug-16,21138802-13760537,-2321.81,Orchard Manor (Scope),Care Establishment,2 - Operations - Learning Disability,LDP South Cambs Locality - Care,Residential Independent Sector
Cambridgeshire County Council,04-Aug-16,21138804-13760538,-2321.81,Orchard Manor (Scope),Care Establishment,2 - Operations - Learning Disability,LDP South Cambs Locality - Care,Residential Independent Sector
Cambridgeshire County Council,04-Aug-16,21138807-13760539,-2321.81,Orchard Manor (Scope),Care Establishment,2 - Operations - Learning Disability,LDP South Cambs Locality - Care,Residential Independent Sector
Cambridgeshire County Council,04-Aug-16,21144859-13760542,-2321.81,Orchard Manor (Scope),Care Establishment,2 - Operations - Learning Disability,LDP South Cambs Locality - Care,Residential Independent Sector
Cambridgeshire County Council,04-Aug-16,21144866-13760543,-2321.81,Orchard Manor (Scope),Care Establishment,2 - Operations - Learning Disability,LDP South Cambs Locality - Care,Residential Independent Sector
Cambridgeshire County Council,04-Aug-16,21144869-13760544,-2321.81,Orchard Manor (Scope),Care Establishment,2 - Operations - Learning Disability,LDP South Cambs Locality - Care,Residential Independent Sector
Cambridgeshire County Council,04-Aug-16,21144875-13760546,-2321.81,Orchard Manor (Scope),Care Establishment,2 - Operations - Learning Disability,LDP South Cambs Locality - Care,Residential Independent Sector
Cambridgeshire County Council,04-Aug-16,21144877-13760547,-2321.81,Orchard Manor (Scope),Care Establishment,2 - Operations - Learning Disability,LDP South Cambs Locality - Care,Residential Independent Sector
Cambridgeshire County Council,04-Aug-16,21144889-13760548,-2321.81,Orchard Manor (Scope),Care Establishment,2 - Operations - Learning Disability,LDP South Cambs Locality - Care,Residential Independent Sector
Cambridgeshire County Council,04-Aug-16,21144894-13760549,-2321.81,Orchard Manor (Scope),Care Establishment,2 - Operations - Learning Disability,LDP South Cambs Locality - Care,Residential Independent Sector
Cambridgeshire County Council,04-Aug-16,21144896-13760550,-2321.81,Orchard Manor (Scope),Care Establishment,2 - Operations - Learning Disability,LDP South Cambs Locality - Care,Residential Independent Sector
Cambridgeshire County Council,16-Aug-16,21392036-13803211,-1871.2,Guidant Group,Trade Supplier,2 - Commissioning - Older people Pool,Older People - City & South,Pay - Agency Staff
Cambridgeshire County Council,01-Aug-16,21220692-13739765,-1815.6,The Regard Partnership Ltd,Care Establishment,4 - Commissioning - Mental Health & Supporting People,E Cambs & Fenland Mental Health Team,Supported Living
Cambridgeshire County Council,19-Aug-16,21426186-13840957,-1800,Granta Housing- 71 /73 Fen Road,Care Establishment,2 - Operations - Learning Disability,LDP City Locality - Care,Nursing Independent Sector
Cambridgeshire County Council,19-Aug-16,21426191-13840962,-1800,Granta Housing- 71 /73 Fen Road,Care Establishment,2 - Operations - Learning Disability,LDP City Locality - Care,Nursing Independent Sector
Cambridgeshire County Council,19-Aug-16,21426193-13840964,-1800,Granta Housing- 71 /73 Fen Road,Care Establishment,2 - Operations - Learning Disability,LDP City Locality - Care,Nursing Independent Sector
Cambridgeshire County Council,19-Aug-16,21426195-13840966,-1800,Granta Housing- 71 /73 Fen Road,Care Establishment,2 - Operations - Learning Disability,LDP City Locality - Care,Nursing Independent Sector
Cambridgeshire County Council,19-Aug-16,21426200-13840971,-1800,Granta Housing- 71 /73 Fen Road,Care Establishment,2 - Operations - Learning Disability,LDP City Locality - Care,Nursing Independent Sector
Cambridgeshire County Council,19-Aug-16,21426203-13840974,-1800,Granta Housing- 71 /73 Fen Road,Care Establishment,2 - Operations - Learning Disability,LDP City Locality - Care,Nursing Independent Sector
Cambridgeshire County Council,25-Aug-16,21419144-13867594,-1365.16,The Manor Cheshire Home,Care Establishment,2 - Commissioning - Older people Pool,Hunts O P  Team,Residential Independent Sector
Cambridgeshire County Council,25-Aug-16,21419145-13867595,-1365.16,The Manor Cheshire Home,Care Establishment,2 - Commissioning - Older people Pool,Hunts O P  Team,Residential Independent Sector
Cambridgeshire County Council,25-Aug-16,21419146-13867596,-1365.16,The Manor Cheshire Home,Care Establishment,2 - Commissioning - Older people Pool,Hunts O P  Team,Residential Independent Sector
Cambridgeshire County Council,25-Aug-16,21419147-13867597,-1365.16,The Manor Cheshire Home,Care Establishment,2 - Commissioning - Older people Pool,Hunts O P  Team,Residential Independent Sector
Cambridgeshire County Council,25-Aug-16,21419148-13867598,-1365.16,The Manor Cheshire Home,Care Establishment,2 - Commissioning - Older people Pool,Hunts O P  Team,Residential Independent Sector
Cambridgeshire County Council,19-Aug-16,21412481-13820859,-1283.52,Meadows Homecare Services,Care Establishment,2 - Commissioning - Older people Pool,Hunts O P  Team,Day and Domicillary Care Independent Sector
Cambridgeshire County Council,19-Aug-16,21412483-13820860,-1283.52,Meadows Homecare Services,Care Establishment,2 - Commissioning - Older people Pool,Hunts O P  Team,Day and Domicillary Care Independent Sector
Cambridgeshire County Council,19-Aug-16,21412495-13820868,-1283.52,Meadows Homecare Services,Care Establishment,2 - Commissioning - Older people Pool,Hunts O P  Team,Day and Domicillary Care Independent Sector
Cambridgeshire County Council,19-Aug-16,21412500-13820856,-1283.52,Meadows Homecare Services,Care Establishment,2 - Commissioning - Older people Pool,Hunts O P  Team,Day and Domicillary Care Independent Sector
Cambridgeshire County Council,23-Aug-16,21407534-13849009,-1255.3,Wizard Recruitment Ltd,Trade Supplier,S&C,Catering - St Helen's Primary School,Pay - Agency Staff
Cambridgeshire County Council,30-Aug-16,21496484-13888125,-1195.54,Guidant Group,Trade Supplier,4 - Operations - Providers services,No. 20 Alder Close Respite,Pay - Agency Staff
Cambridgeshire County Council,19-Aug-16,21423788-13829542,-1185.74,Conquest Care Homes Peterborough,Care Establishment,2 - Operations - Learning Disability,LDP City Locality - Care,Residential Independent Sector
Cambridgeshire County Council,19-Aug-16,21423803-13829545,-1185.74,Conquest Care Homes Peterborough,Care Establishment,2 - Operations - Learning Disability,LDP City Locality - Care,Residential Independent Sector
Cambridgeshire County Council,19-Aug-16,21423804-13829546,-1185.74,Conquest Care Homes Peterborough,Care Establishment,2 - Operations - Learning Disability,LDP City Locality - Care,Residential Independent Sector
Cambridgeshire County Council,19-Aug-16,21423814-13829550,-1185.74,Conquest Care Homes Peterborough,Care Establishment,2 - Operations - Learning Disability,LDP City Locality - Care,Residential Independent Sector
Cambridgeshire County Council,19-Aug-16,21423828-13829553,-1185.74,Conquest Care Homes Peterborough,Care Establishment,2 - Operations - Learning Disability,LDP City Locality - Care,Residential Independent Sector
Cambridgeshire County Council,19-Aug-16,21423836-13829527,-1185.74,Conquest Care Homes Peterborough,Care Establishment,2 - Operations - Learning Disability,LDP City Locality - Care,Residential Independent Sector
Cambridgeshire County Council,25-Aug-16,21419143-13867593,-1170.14,The Manor Cheshire Home,Care Establishment,2 - Commissioning - Older people Pool,Hunts O P  Team,Residential Independent Sector
Cambridgeshire County Council,04-Aug-16,21272142-13760096,-1056.37,Redacted Personal Data,Individual,2 - Operations - Learning Disability,LDP City Locality - Care,SDS - Care and support Services
Cambridgeshire County Council,04-Aug-16,21272152-13760106,-1056.37,Redacted Personal Data,Individual,2 - Operations - Learning Disability,LDP City Locality - Care,SDS - Care and support Services
Cambridgeshire County Council,04-Aug-16,21272157-13760111,-1056.37,Redacted Personal Data,Individual,2 - Operations - Learning Disability,LDP City Locality - Care,SDS - Care and support Services
Cambridgeshire County Council,04-Aug-16,21272160-13760114,-1056.37,Redacted Personal Data,Individual,2 - Operations - Learning Disability,LDP City Locality - Care,SDS - Care and support Services
Cambridgeshire County Council,04-Aug-16,21272163-13760117,-1056.37,Redacted Personal Data,Individual,2 - Operations - Learning Disability,LDP City Locality - Care,SDS - Care and support Services
Cambridgeshire County Council,04-Aug-16,21272173-13760127,-1056.37,Redacted Personal Data,Individual,2 - Operations - Learning Disability,LDP City Locality - Care,SDS - Care and support Services
Cambridgeshire County Council,04-Aug-16,21272176-13760130,-1056.37,Redacted Personal Data,Individual,2 - Operations - Learning Disability,LDP City Locality - Care,SDS - Care and support Services
Cambridgeshire County Council,04-Aug-16,21278120-13760077,-1056.37,Redacted Personal Data,Individual,2 - Operations - Learning Disability,LDP City Locality - Care,SDS - Care and support Services
Cambridgeshire County Council,11-Aug-16,21321997-13789953,-998.19,Redacted Personal Data,Individual,3 - Operations - Countywide Services,Countywide PD Service - Care,Direct Payments - Social Services
Cambridgeshire County Council,11-Aug-16,21321999-13789955,-998.19,Redacted Personal Data,Individual,3 - Operations - Countywide Services,Countywide PD Service - Care,Direct Payments - Social Services
Cambridgeshire County Council,11-Aug-16,21322002-13789958,-998.19,Redacted Personal Data,Individual,3 - Operations - Countywide Services,Countywide PD Service - Care,Direct Payments - Social Services
Cambridgeshire County Council,11-Aug-16,21322003-13789959,-998.19,Redacted Personal Data,Individual,3 - Operations - Countywide Services,Countywide PD Service - Care,Direct Payments - Social Services
Cambridgeshire County Council,11-Aug-16,21322004-13789960,-998.19,Redacted Personal Data,Individual,3 - Operations - Countywide Services,Countywide PD Service - Care,Direct Payments - Social Services
Cambridgeshire County Council,11-Aug-16,21323533-13789975,-998.19,Redacted Personal Data,Individual,3 - Operations - Countywide Services,Countywide PD Service - Care,Direct Payments - Social Services
Cambridgeshire County Council,11-Aug-16,21323536-13789978,-998.19,Redacted Personal Data,Individual,3 - Operations - Countywide Services,Countywide PD Service - Care,Direct Payments - Social Services
Cambridgeshire County Council,11-Aug-16,21323545-13789987,-998.19,Redacted Personal Data,Individual,3 - Operations - Countywide Services,Countywide PD Service - Care,Direct Payments - Social Services
Cambridgeshire County Council,11-Aug-16,21323546-13789988,-998.19,Redacted Personal Data,Individual,3 - Operations - Countywide Services,Countywide PD Service - Care,Direct Payments - Social Services
Cambridgeshire County Council,11-Aug-16,21323549-13789991,-998.19,Redacted Personal Data,Individual,3 - Operations - Countywide Services,Countywide PD Service - Care,Direct Payments - Social Services
Cambridgeshire County Council,11-Aug-16,21323561-13790003,-998.19,Redacted Personal Data,Individual,3 - Operations - Countywide Services,Countywide PD Service - Care,Direct Payments - Social Services
Cambridgeshire County Council,11-Aug-16,21323564-13790006,-998.19,Redacted Personal Data,Individual,3 - Operations - Countywide Services,Countywide PD Service - Care,Direct Payments - Social Services
Cambridgeshire County Council,11-Aug-16,21323565-13790007,-998.19,Redacted Personal Data,Individual,3 - Operations - Countywide Services,Countywide PD Service - Care,Direct Payments - Social Services
Cambridgeshire County Council,05-Aug-16,21089256-13765316,-997.5,The Riverside Group Ltd,Care Establishment,S&C,Placements - Social Care,Childrens Lodgings
Cambridgeshire County Council,04-Aug-16,21144873-13760545,-995.06,Orchard Manor (Scope),Care Establishment,2 - Operations - Learning Disability,LDP South Cambs Locality - Care,Residential Independent Sector
Cambridgeshire County Council,25-Aug-16,21463600-13865639,-965.21,Redacted Personal Data,Individual,3 - Operations - Countywide Services,Countywide PD Service - Care,Direct Payments - Social Services
Cambridgeshire County Council,25-Aug-16,21463601-13865640,-965.21,Redacted Personal Data,Individual,3 - Operations - Countywide Services,Countywide PD Service - Care,Direct Payments - Social Services
Cambridgeshire County Council,19-Aug-16,21176892-13838924,-945,The Cambridge Nursing Centre,Care Establishment,2 - Commissioning - Older people Pool,Older People Mental Health E Cambs,Nursing Independent Sector
Cambridgeshire County Council,19-Aug-16,21176893-13838925,-945,The Cambridge Nursing Centre,Care Establishment,2 - Commissioning - Older people Pool,Older People Mental Health E Cambs,Nursing Independent Sector
Cambridgeshire County Council,19-Aug-16,21176894-13838926,-945,The Cambridge Nursing Centre,Care Establishment,2 - Commissioning - Older people Pool,Older People Mental Health E Cambs,Nursing Independent Sector
Cambridgeshire County Council,19-Aug-16,21176896-13838928,-945,The Cambridge Nursing Centre,Care Establishment,2 - Commissioning - Older people Pool,Older People Mental Health E Cambs,Nursing Independent Sector
Cambridgeshire County Council,19-Aug-16,21272048-13838908,-945,The Cambridge Nursing Centre,Care Establishment,2 - Commissioning - Older people Pool,Older People Mental Health E Cambs,Nursing Independent Sector
Cambridgeshire County Council,19-Aug-16,21272049-13838909,-945,The Cambridge Nursing Centre,Care Establishment,2 - Commissioning - Older people Pool,Older People Mental Health E Cambs,Nursing Independent Sector
Cambridgeshire County Council,19-Aug-16,21272050-13838910,-945,The Cambridge Nursing Centre,Care Establishment,2 - Commissioning - Older people Pool,Older People Mental Health E Cambs,Nursing Independent Sector
Cambridgeshire County Council,19-Aug-16,21272053-13838911,-945,The Cambridge Nursing Centre,Care Establishment,2 - Commissioning - Older people Pool,Older People Mental Health E Cambs,Nursing Independent Sector
Cambridgeshire County Council,19-Aug-16,21272054-13838912,-945,The Cambridge Nursing Centre,Care Establishment,2 - Commissioning - Older people Pool,Older People Mental Health E Cambs,Nursing Independent Sector
Cambridgeshire County Council,19-Aug-16,21272059-13838914,-945,The Cambridge Nursing Centre,Care Establishment,2 - Commissioning - Older people Pool,Older People Mental Health E Cambs,Nursing Independent Sector
Cambridgeshire County Council,19-Aug-16,21272071-13838915,-945,The Cambridge Nursing Centre,Care Establishment,2 - Commissioning - Older people Pool,Older People Mental Health E Cambs,Nursing Independent Sector
Cambridgeshire County Council,19-Aug-16,21272089-13838917,-945,The Cambridge Nursing Centre,Care Establishment,2 - Commissioning - Older people Pool,Older People Mental Health E Cambs,Nursing Independent Sector
Cambridgeshire County Council,19-Aug-16,21272093-13838918,-945,The Cambridge Nursing Centre,Care Establishment,2 - Commissioning - Older people Pool,Older People Mental Health E Cambs,Nursing Independent Sector
Cambridgeshire County Council,19-Aug-16,21272095-13838919,-945,The Cambridge Nursing Centre,Care Establishment,2 - Commissioning - Older people Pool,Older People Mental Health E Cambs,Nursing Independent Sector
Cambridgeshire County Council,04-Aug-16,21277202-13758084,-926.11,Making Space#1,Care Establishment,3 - Operations - Countywide Services,Countywide PD Service - Care,Nursing Independent Sector
Cambridgeshire County Council,04-Aug-16,21277203-13758085,-926.11,Making Space#1,Care Establishment,3 - Operations - Countywide Services,Countywide PD Service - Care,Nursing Independent Sector
Cambridgeshire County Council,04-Aug-16,21277204-13758086,-926.11,Making Space#1,Care Establishment,3 - Operations - Countywide Services,Countywide PD Service - Care,Nursing Independent Sector
Cambridgeshire County Council,04-Aug-16,21277208-13758090,-926.11,Making Space#1,Care Establishment,3 - Operations - Countywide Services,Countywide PD Service - Care,Nursing Independent Sector
Cambridgeshire County Council,04-Aug-16,21277209-13758091,-926.11,Making Space#1,Care Establishment,3 - Operations - Countywide Services,Countywide PD Service - Care,Nursing Independent Sector
Cambridgeshire County Council,04-Aug-16,21277211-13758093,-926.11,Making Space#1,Care Establishment,3 - Operations - Countywide Services,Countywide PD Service - Care,Nursing Independent Sector
Cambridgeshire County Council,04-Aug-16,21277214-13758096,-926.11,Making Space#1,Care Establishment,3 - Operations - Countywide Services,Countywide PD Service - Care,Nursing Independent Sector
Cambridgeshire County Council,04-Aug-16,21277217-13758099,-926.11,Making Space#1,Care Establishment,3 - Operations - Countywide Services,Countywide PD Service - Care,Nursing Independent Sector
Cambridgeshire County Council,04-Aug-16,21277221-13758103,-926.11,Making Space#1,Care Establishment,3 - Operations - Countywide Services,Countywide PD Service - Care,Nursing Independent Sector
Cambridgeshire County Council,04-Aug-16,21277222-13758104,-926.11,Making Space#1,Care Establishment,3 - Operations - Countywide Services,Countywide PD Service - Care,Nursing Independent Sector
Cambridgeshire County Council,04-Aug-16,21277224-13758106,-926.11,Making Space#1,Care Establishment,3 - Operations - Countywide Services,Countywide PD Service - Care,Nursing Independent Sector
Cambridgeshire County Council,04-Aug-16,21277225-13758107,-926.11,Making Space#1,Care Establishment,3 - Operations - Countywide Services,Countywide PD Service - Care,Nursing Independent Sector
Cambridgeshire County Council,04-Aug-16,21279145-13758033,-926.11,Making Space#1,Care Establishment,3 - Operations - Countywide Services,Countywide PD Service - Care,Nursing Independent Sector
Cambridgeshire County Council,04-Aug-16,21279146-13758034,-926.11,Making Space#1,Care Establishment,3 - Operations - Countywide Services,Countywide PD Service - Care,Nursing Independent Sector
Cambridgeshire County Council,04-Aug-16,21279147-13758035,-926.11,Making Space#1,Care Establishment,3 - Operations - Countywide Services,Countywide PD Service - Care,Nursing Independent Sector
Cambridgeshire County Council,04-Aug-16,21279151-13758039,-926.11,Making Space#1,Care Establishment,3 - Operations - Countywide Services,Countywide PD Service - Care,Nursing Independent Sector
Cambridgeshire County Council,04-Aug-16,21279152-13758040,-926.11,Making Space#1,Care Establishment,3 - Operations - Countywide Services,Countywide PD Service - Care,Nursing Independent Sector
Cambridgeshire County Council,04-Aug-16,21279153-13758041,-926.11,Making Space#1,Care Establishment,3 - Operations - Countywide Services,Countywide PD Service - Care,Nursing Independent Sector
Cambridgeshire County Council,04-Aug-16,21279156-13758044,-926.11,Making Space#1,Care Establishment,3 - Operations - Countywide Services,Countywide PD Service - Care,Nursing Independent Sector
Cambridgeshire County Council,04-Aug-16,21279160-13758048,-926.11,Making Space#1,Care Establishment,3 - Operations - Countywide Services,Countywide PD Service - Care,Nursing Independent Sector
Cambridgeshire County Council,04-Aug-16,21279161-13758049,-926.11,Making Space#1,Care Establishment,3 - Operations - Countywide Services,Countywide PD Service - Care,Nursing Independent Sector
Cambridgeshire County Council,04-Aug-16,21279162-13758050,-926.11,Making Space#1,Care Establishment,3 - Operations - Countywide Services,Countywide PD Service - Care,Nursing Independent Sector
Cambridgeshire County Council,04-Aug-16,21279164-13758052,-926.11,Making Space#1,Care Establishment,3 - Operations - Countywide Services,Countywide PD Service - Care,Nursing Independent Sector
Cambridgeshire County Council,04-Aug-16,21279165-13758053,-926.11,Making Space#1,Care Establishment,3 - Operations - Countywide Services,Countywide PD Service - Care,Nursing Independent Sector
Cambridgeshire County Council,04-Aug-16,21279169-13758057,-926.11,Making Space#1,Care Establishment,3 - Operations - Countywide Services,Countywide PD Service - Care,Nursing Independent Sector
Cambridgeshire County Council,04-Aug-16,21279170-13758058,-926.11,Making Space#1,Care Establishment,3 - Operations - Countywide Services,Countywide PD Service - Care,Nursing Independent Sector
Cambridgeshire County Council,04-Aug-16,21279174-13758062,-926.11,Making Space#1,Care Establishment,3 - Operations - Countywide Services,Countywide PD Service - Care,Nursing Independent Sector
Cambridgeshire County Council,04-Aug-16,21279176-13758064,-926.11,Making Space#1,Care Establishment,3 - Operations - Countywide Services,Countywide PD Service - Care,Nursing Independent Sector
Cambridgeshire County Council,04-Aug-16,21279177-13758065,-926.11,Making Space#1,Care Establishment,3 - Operations - Countywide Services,Countywide PD Service - Care,Nursing Independent Sector
Cambridgeshire County Council,04-Aug-16,21279178-13758066,-926.11,Making Space#1,Care Establishment,3 - Operations - Countywide Services,Countywide PD Service - Care,Nursing Independent Sector
Cambridgeshire County Council,04-Aug-16,21279179-13758067,-926.11,Making Space#1,Care Establishment,3 - Operations - Countywide Services,Countywide PD Service - Care,Nursing Independent Sector
Cambridgeshire County Council,04-Aug-16,21279183-13758071,-926.11,Making Space#1,Care Establishment,3 - Operations - Countywide Services,Countywide PD Service - Care,Nursing Independent Sector
Cambridgeshire County Council,25-Aug-16,21422358-13866384,-926.11,Making Space#1,Care Establishment,3 - Operations - Countywide Services,Countywide PD Service - Care,Nursing Independent Sector
Cambridgeshire County Council,25-Aug-16,21422360-13866386,-926.11,Making Space#1,Care Establishment,3 - Operations - Countywide Services,Countywide PD Service - Care,Nursing Independent Sector
Cambridgeshire County Council,25-Aug-16,21422361-13866387,-926.11,Making Space#1,Care Establishment,3 - Operations - Countywide Services,Countywide PD Service - Care,Nursing Independent Sector
Cambridgeshire County Council,25-Aug-16,21422362-13866388,-926.11,Making Space#1,Care Establishment,3 - Operations - Countywide Services,Countywide PD Service - Care,Nursing Independent Sector
Cambridgeshire County Council,25-Aug-16,21422364-13866390,-926.11,Making Space#1,Care Establishment,3 - Operations - Countywide Services,Countywide PD Service - Care,Nursing Independent Sector
Cambridgeshire County Council,25-Aug-16,21422365-13866391,-926.11,Making Space#1,Care Establishment,3 - Operations - Countywide Services,Countywide PD Service - Care,Nursing Independent Sector
Cambridgeshire County Council,25-Aug-16,21423446-13866394,-926.11,Making Space#1,Care Establishment,3 - Operations - Countywide Services,Countywide PD Service - Care,Nursing Independent Sector
Cambridgeshire County Council,25-Aug-16,21423447-13866395,-926.11,Making Space#1,Care Establishment,3 - Operations - Countywide Services,Countywide PD Service - Care,Nursing Independent Sector
Cambridgeshire County Council,25-Aug-16,21423448-13866396,-926.11,Making Space#1,Care Establishment,3 - Operations - Countywide Services,Countywide PD Service - Care,Nursing Independent Sector
Cambridgeshire County Council,25-Aug-16,21423450-13866398,-926.11,Making Space#1,Care Establishment,3 - Operations - Countywide Services,Countywide PD Service - Care,Nursing Independent Sector
Cambridgeshire County Council,25-Aug-16,21423451-13866399,-926.11,Making Space#1,Care Establishment,3 - Operations - Countywide Services,Countywide PD Service - Care,Nursing Independent Sector
Cambridgeshire County Council,25-Aug-16,21423457-13866405,-926.11,Making Space#1,Care Establishment,3 - Operations - Countywide Services,Countywide PD Service - Care,Nursing Independent Sector
Cambridgeshire County Council,25-Aug-16,21423461-13866409,-926.11,Making Space#1,Care Establishment,3 - Operations - Countywide Services,Countywide PD Service - Care,Nursing Independent Sector
Cambridgeshire County Council,25-Aug-16,21423462-13866410,-926.11,Making Space#1,Care Establishment,3 - Operations - Countywide Services,Countywide PD Service - Care,Nursing Independent Sector
Cambridgeshire County Council,25-Aug-16,21423463-13866411,-926.11,Making Space#1,Care Establishment,3 - Operations - Countywide Services,Countywide PD Service - Care,Nursing Independent Sector
Cambridgeshire County Council,25-Aug-16,21423464-13866412,-926.11,Making Space#1,Care Establishment,3 - Operations - Countywide Services,Countywide PD Service - Care,Nursing Independent Sector
Cambridgeshire County Council,25-Aug-16,21423465-13866413,-926.11,Making Space#1,Care Establishment,3 - Operations - Countywide Services,Countywide PD Service - Care,Nursing Independent Sector
Cambridgeshire County Council,25-Aug-16,21423467-13866364,-926.11,Making Space#1,Care Establishment,3 - Operations - Countywide Services,Countywide PD Service - Care,Nursing Independent Sector
Cambridgeshire County Council,25-Aug-16,21423468-13866365,-926.11,Making Space#1,Care Establishment,3 - Operations - Countywide Services,Countywide PD Service - Care,Nursing Independent Sector
Cambridgeshire County Council,25-Aug-16,21423469-13866366,-926.11,Making Space#1,Care Establishment,3 - Operations - Countywide Services,Countywide PD Service - Care,Nursing Independent Sector
Cambridgeshire County Council,25-Aug-16,21423472-13866369,-926.11,Making Space#1,Care Establishment,3 - Operations - Countywide Services,Countywide PD Service - Care,Nursing Independent Sector
Cambridgeshire County Council,25-Aug-16,21423473-13866370,-926.11,Making Space#1,Care Establishment,3 - Operations - Countywide Services,Countywide PD Service - Care,Nursing Independent Sector
Cambridgeshire County Council,25-Aug-16,21423474-13866371,-926.11,Making Space#1,Care Establishment,3 - Operations - Countywide Services,Countywide PD Service - Care,Nursing Independent Sector
Cambridgeshire County Council,25-Aug-16,21423477-13866374,-926.11,Making Space#1,Care Establishment,3 - Operations - Countywide Services,Countywide PD Service - Care,Nursing Independent Sector
Cambridgeshire County Council,25-Aug-16,21423478-13866375,-926.11,Making Space#1,Care Establishment,3 - Operations - Countywide Services,Countywide PD Service - Care,Nursing Independent Sector
Cambridgeshire County Council,25-Aug-16,21423479-13866376,-926.11,Making Space#1,Care Establishment,3 - Operations - Countywide Services,Countywide PD Service - Care,Nursing Independent Sector
Cambridgeshire County Council,25-Aug-16,21423481-13866378,-926.11,Making Space#1,Care Establishment,3 - Operations - Countywide Services,Countywide PD Service - Care,Nursing Independent Sector
Cambridgeshire County Council,25-Aug-16,21423487-13866351,-926.11,Making Space#1,Care Establishment,3 - Operations - Countywide Services,Countywide PD Service - Care,Nursing Independent Sector
Cambridgeshire County Council,25-Aug-16,21423490-13866354,-926.11,Making Space#1,Care Establishment,3 - Operations - Countywide Services,Countywide PD Service - Care,Nursing Independent Sector
Cambridgeshire County Council,25-Aug-16,21423495-13866359,-926.11,Making Space#1,Care Establishment,3 - Operations - Countywide Services,Countywide PD Service - Care,Nursing Independent Sector
Cambridgeshire County Council,25-Aug-16,21423496-13866360,-926.11,Making Space#1,Care Establishment,3 - Operations - Countywide Services,Countywide PD Service - Care,Nursing Independent Sector
Cambridgeshire County Council,25-Aug-16,21423499-13866363,-926.11,Making Space#1,Care Establishment,3 - Operations - Countywide Services,Countywide PD Service - Care,Nursing Independent Sector
Cambridgeshire County Council,25-Aug-16,21461942-13866427,-926.11,Making Space#1,Care Establishment,3 - Operations - Countywide Services,Countywide PD Service - Care,Nursing Independent Sector
Cambridgeshire County Council,25-Aug-16,21461944-13866429,-926.11,Making Space#1,Care Establishment,3 - Operations - Countywide Services,Countywide PD Service - Care,Nursing Independent Sector
Cambridgeshire County Council,25-Aug-16,21461945-13866430,-926.11,Making Space#1,Care Establishment,3 - Operations - Countywide Services,Countywide PD Service - Care,Nursing Independent Sector
Cambridgeshire County Council,25-Aug-16,21461946-13866431,-926.11,Making Space#1,Care Establishment,3 - Operations - Countywide Services,Countywide PD Service - Care,Nursing Independent Sector
Cambridgeshire County Council,25-Aug-16,21461947-13866432,-926.11,Making Space#1,Care Establishment,3 - Operations - Countywide Services,Countywide PD Service - Care,Nursing Independent Sector
Cambridgeshire County Council,25-Aug-16,21461948-13866433,-926.11,Making Space#1,Care Establishment,3 - Operations - Countywide Services,Countywide PD Service - Care,Nursing Independent Sector
Cambridgeshire County Council,25-Aug-16,21461950-13866435,-926.11,Making Space#1,Care Establishment,3 - Operations - Countywide Services,Countywide PD Service - Care,Nursing Independent Sector
Cambridgeshire County Council,25-Aug-16,21461953-13866438,-926.11,Making Space#1,Care Establishment,3 - Operations - Countywide Services,Countywide PD Service - Care,Nursing Independent Sector
Cambridgeshire County Council,25-Aug-16,21461956-13866441,-926.11,Making Space#1,Care Establishment,3 - Operations - Countywide Services,Countywide PD Service - Care,Nursing Independent Sector
Cambridgeshire County Council,25-Aug-16,21461960-13866445,-926.11,Making Space#1,Care Establishment,3 - Operations - Countywide Services,Countywide PD Service - Care,Nursing Independent Sector
Cambridgeshire County Council,25-Aug-16,21461961-13866446,-926.11,Making Space#1,Care Establishment,3 - Operations - Countywide Services,Countywide PD Service - Care,Nursing Independent Sector
Cambridgeshire County Council,25-Aug-16,21461962-13866447,-926.11,Making Space#1,Care Establishment,3 - Operations - Countywide Services,Countywide PD Service - Care,Nursing Independent Sector
Cambridgeshire County Council,25-Aug-16,21461965-13866450,-926.11,Making Space#1,Care Establishment,3 - Operations - Countywide Services,Countywide PD Service - Care,Nursing Independent Sector
Cambridgeshire County Council,25-Aug-16,21461970-13866455,-926.11,Making Space#1,Care Establishment,3 - Operations - Countywide Services,Countywide PD Service - Care,Nursing Independent Sector
Cambridgeshire County Council,25-Aug-16,21461971-13866456,-926.11,Making Space#1,Care Establishment,3 - Operations - Countywide Services,Countywide PD Service - Care,Nursing Independent Sector
Cambridgeshire County Council,25-Aug-16,21461974-13866459,-926.11,Making Space#1,Care Establishment,3 - Operations - Countywide Services,Countywide PD Service - Care,Nursing Independent Sector
Cambridgeshire County Council,25-Aug-16,21461975-13866460,-926.11,Making Space#1,Care Establishment,3 - Operations - Countywide Services,Countywide PD Service - Care,Nursing Independent Sector
Cambridgeshire County Council,25-Aug-16,21461976-13866461,-926.11,Making Space#1,Care Establishment,3 - Operations - Countywide Services,Countywide PD Service - Care,Nursing Independent Sector
Cambridgeshire County Council,25-Aug-16,21461982-13866467,-926.11,Making Space#1,Care Establishment,3 - Operations - Countywide Services,Countywide PD Service - Care,Nursing Independent Sector
Cambridgeshire County Council,25-Aug-16,21461983-13866468,-926.11,Making Space#1,Care Establishment,3 - Operations - Countywide Services,Countywide PD Service - Care,Nursing Independent Sector
Cambridgeshire County Council,25-Aug-16,21461984-13866469,-926.11,Making Space#1,Care Establishment,3 - Operations - Countywide Services,Countywide PD Service - Care,Nursing Independent Sector
Cambridgeshire County Council,25-Aug-16,21461989-13866474,-926.11,Making Space#1,Care Establishment,3 - Operations - Countywide Services,Countywide PD Service - Care,Nursing Independent Sector
Cambridgeshire County Council,25-Aug-16,21461990-13866475,-926.11,Making Space#1,Care Establishment,3 - Operations - Countywide Services,Countywide PD Service - Care,Nursing Independent Sector
Cambridgeshire County Council,25-Aug-16,21461991-13866476,-926.11,Making Space#1,Care Establishment,3 - Operations - Countywide Services,Countywide PD Service - Care,Nursing Independent Sector
Cambridgeshire County Council,25-Aug-16,21461992-13866477,-926.11,Making Space#1,Care Establishment,3 - Operations - Countywide Services,Countywide PD Service - Care,Nursing Independent Sector
Cambridgeshire County Council,25-Aug-16,21461993-13866478,-926.11,Making Space#1,Care Establishment,3 - Operations - Countywide Services,Countywide PD Service - Care,Nursing Independent Sector
Cambridgeshire County Council,25-Aug-16,21461995-13866480,-926.11,Making Space#1,Care Establishment,3 - Operations - Countywide Services,Countywide PD Service - Care,Nursing Independent Sector
Cambridgeshire County Council,25-Aug-16,21461998-13866483,-926.11,Making Space#1,Care Establishment,3 - Operations - Countywide Services,Countywide PD Service - Care,Nursing Independent Sector
Cambridgeshire County Council,25-Aug-16,21462000-13866485,-926.11,Making Space#1,Care Establishment,3 - Operations - Countywide Services,Countywide PD Service - Care,Nursing Independent Sector
Cambridgeshire County Council,25-Aug-16,21462002-13866487,-926.11,Making Space#1,Care Establishment,3 - Operations - Countywide Services,Countywide PD Service - Care,Nursing Independent Sector
Cambridgeshire County Council,25-Aug-16,21462004-13866489,-926.11,Making Space#1,Care Establishment,3 - Operations - Countywide Services,Countywide PD Service - Care,Nursing Independent Sector
Cambridgeshire County Council,25-Aug-16,21462008-13866493,-926.11,Making Space#1,Care Establishment,3 - Operations - Countywide Services,Countywide PD Service - Care,Nursing Independent Sector
Cambridgeshire County Council,19-Aug-16,21418469-13837483,-917,Woodlands Care Centre,Care Establishment,3 - Operations - Countywide Services,Countywide PD Service - Care,Nursing Independent Sector
Cambridgeshire County Council,19-Aug-16,21418498-13837491,-917,Woodlands Care Centre,Care Establishment,3 - Operations - Countywide Services,Countywide PD Service - Care,Nursing Independent Sector
Cambridgeshire County Council,11-Aug-16,21322953-13789130,-846.23,Redacted Personal Data,Individual,2 - Operations - Learning Disability,LDP South Cambs Locality - Care,SDS - Care and support Services
Cambridgeshire County Council,11-Aug-16,21322963-13789139,-846.23,Redacted Personal Data,Individual,2 - Operations - Learning Disability,LDP South Cambs Locality - Care,SDS - Care and support Services
Cambridgeshire County Council,11-Aug-16,21322964-13789140,-846.23,Redacted Personal Data,Individual,2 - Operations - Learning Disability,LDP South Cambs Locality - Care,SDS - Care and support Services
Cambridgeshire County Council,11-Aug-16,21322970-13789143,-846.23,Redacted Personal Data,Individual,2 - Operations - Learning Disability,LDP South Cambs Locality - Care,SDS - Care and support Services
Cambridgeshire County Council,16-Aug-16,21388929-13803528,-822.57,Fostering Solutions Ltd,Care Establishment,S&C,Placements - Social Care,Agency Placements - In Cambs
Cambridgeshire County Council,16-Aug-16,21388930-13803529,-822.57,Fostering Solutions Ltd,Care Establishment,S&C,Placements - Social Care,Agency Placements - In Cambs
Cambridgeshire County Council,16-Aug-16,21391883-13803530,-822.57,Fostering Solutions Ltd,Care Establishment,S&C,Placements - Social Care,Agency Placements - In Cambs
Cambridgeshire County Council,04-Aug-16,21279173-13758061,-793.81,Making Space#1,Care Establishment,3 - Operations - Countywide Services,Countywide PD Service - Care,Nursing Independent Sector
Cambridgeshire County Council,25-Aug-16,21423497-13866361,-793.81,Making Space#1,Care Establishment,3 - Operations - Countywide Services,Countywide PD Service - Care,Nursing Independent Sector
Cambridgeshire County Council,25-Aug-16,21461954-13866439,-793.81,Making Space#1,Care Establishment,3 - Operations - Countywide Services,Countywide PD Service - Care,Nursing Independent Sector
Cambridgeshire County Council,19-Aug-16,21280599-13836011,-773.25,Barchester Healthcare Homes Ltd,Care Establishment,2 - Commissioning - Older people Pool,Older People - City & South,Nursing Independent Sector
Cambridgeshire County Council,19-Aug-16,21280601-13836012,-773.25,Barchester Healthcare Homes Ltd,Care Establishment,2 - Commissioning - Older people Pool,Older People - City & South,Nursing Independent Sector
Cambridgeshire County Council,19-Aug-16,21280608-13836013,-773.25,Barchester Healthcare Homes Ltd,Care Establishment,2 - Commissioning - Older people Pool,Older People - City & South,Nursing Independent Sector
Cambridgeshire County Council,19-Aug-16,21280612-13836014,-773.25,Barchester Healthcare Homes Ltd,Care Establishment,2 - Commissioning - Older people Pool,Older People - City & South,Nursing Independent Sector
Cambridgeshire County Council,19-Aug-16,21280613-13836015,-773.25,Barchester Healthcare Homes Ltd,Care Establishment,2 - Commissioning - Older people Pool,Older People - City & South,Nursing Independent Sector
Cambridgeshire County Council,25-Aug-16,21114859-13868509,-757.52,Hovenden House,Care Establishment,2 - Commissioning - Older people Pool,Older People - Fenland,Residential Independent Sector
Cambridgeshire County Council,25-Aug-16,21114861-13868511,-757.52,Hovenden House,Care Establishment,2 - Commissioning - Older people Pool,Older People - Fenland,Residential Independent Sector
Cambridgeshire County Council,25-Aug-16,21114862-13868512,-757.52,Hovenden House,Care Establishment,2 - Commissioning - Older people Pool,Older People - Fenland,Residential Independent Sector
Cambridgeshire County Council,25-Aug-16,21114863-13868513,-757.52,Hovenden House,Care Establishment,2 - Commissioning - Older people Pool,Older People - Fenland,Residential Independent Sector
Cambridgeshire County Council,25-Aug-16,21114864-13868514,-757.52,Hovenden House,Care Establishment,2 - Commissioning - Older people Pool,Older People - Fenland,Residential Independent Sector
Cambridgeshire County Council,19-Aug-16,21323335-13818634,-740.03,Redacted Personal Data,Individual,3 - Operations - Countywide Services,Countywide PD Service - Care,Direct Payments - Social Services
Cambridgeshire County Council,19-Aug-16,21323336-13818635,-740.03,Redacted Personal Data,Individual,3 - Operations - Countywide Services,Countywide PD Service - Care,Direct Payments - Social Services
Cambridgeshire County Council,19-Aug-16,21323337-13818636,-740.03,Redacted Personal Data,Individual,3 - Operations - Countywide Services,Countywide PD Service - Care,Direct Payments - Social Services
Cambridgeshire County Council,19-Aug-16,21323339-13818638,-740.03,Redacted Personal Data,Individual,3 - Operations - Countywide Services,Countywide PD Service - Care,Direct Payments - Social Services
Cambridgeshire County Council,19-Aug-16,21323340-13818639,-740.03,Redacted Personal Data,Individual,3 - Operations - Countywide Services,Countywide PD Service - Care,Direct Payments - Social Services
Cambridgeshire County Council,19-Aug-16,21323341-13818640,-740.03,Redacted Personal Data,Individual,3 - Operations - Countywide Services,Countywide PD Service - Care,Direct Payments - Social Services
Cambridgeshire County Council,19-Aug-16,21323342-13818641,-740.03,Redacted Personal Data,Individual,3 - Operations - Countywide Services,Countywide PD Service - Care,Direct Payments - Social Services
Cambridgeshire County Council,19-Aug-16,21323343-13818642,-740.03,Redacted Personal Data,Individual,3 - Operations - Countywide Services,Countywide PD Service - Care,Direct Payments - Social Services
Cambridgeshire County Council,19-Aug-16,21323344-13818643,-740.03,Redacted Personal Data,Individual,3 - Operations - Countywide Services,Countywide PD Service - Care,Direct Payments - Social Services
Cambridgeshire County Council,19-Aug-16,21323345-13818644,-740.03,Redacted Personal Data,Individual,3 - Operations - Countywide Services,Countywide PD Service - Care,Direct Payments - Social Services
Cambridgeshire County Council,19-Aug-16,21323346-13818645,-740.03,Redacted Personal Data,Individual,3 - Operations - Countywide Services,Countywide PD Service - Care,Direct Payments - Social Services
Cambridgeshire County Council,19-Aug-16,21415856-13829762,-712.58,St George'S Court,Care Establishment,2 - Commissioning - Older people Pool,Older People - City & South,Nursing Independent Sector
Cambridgeshire County Council,19-Aug-16,21415860-13829766,-712.58,St George'S Court,Care Establishment,2 - Commissioning - Older people Pool,Older People - City & South,Nursing Independent Sector
Cambridgeshire County Council,19-Aug-16,21415863-13829769,-712.58,St George'S Court,Care Establishment,2 - Commissioning - Older people Pool,Older People - City & South,Nursing Independent Sector
Cambridgeshire County Council,19-Aug-16,21415864-13829770,-712.58,St George'S Court,Care Establishment,2 - Commissioning - Older people Pool,Older People - City & South,Nursing Independent Sector
Cambridgeshire County Council,19-Aug-16,21415865-13829771,-712.58,St George'S Court,Care Establishment,2 - Commissioning - Older people Pool,Older People - City & South,Nursing Independent Sector
Cambridgeshire County Council,19-Aug-16,21415866-13829772,-712.58,St George'S Court,Care Establishment,2 - Commissioning - Older people Pool,Older People - City & South,Nursing Independent Sector
Cambridgeshire County Council,19-Aug-16,21415868-13829773,-712.58,St George'S Court,Care Establishment,2 - Commissioning - Older people Pool,Older People - City & South,Nursing Independent Sector
Cambridgeshire County Council,19-Aug-16,21415872-13829777,-712.58,St George'S Court,Care Establishment,2 - Commissioning - Older people Pool,Older People - City & South,Nursing Independent Sector
Cambridgeshire County Council,19-Aug-16,21415875-13829779,-712.58,St George'S Court,Care Establishment,2 - Commissioning - Older people Pool,Older People - City & South,Nursing Independent Sector
Cambridgeshire County Council,19-Aug-16,21415877-13829781,-712.58,St George'S Court,Care Establishment,2 - Commissioning - Older people Pool,Older People - City & South,Nursing Independent Sector
Cambridgeshire County Council,19-Aug-16,21415878-13829782,-712.58,St George'S Court,Care Establishment,2 - Commissioning - Older people Pool,Older People - City & South,Nursing Independent Sector
Cambridgeshire County Council,19-Aug-16,21415882-13829786,-712.58,St George'S Court,Care Establishment,2 - Commissioning - Older people Pool,Older People - City & South,Nursing Independent Sector
Cambridgeshire County Council,19-Aug-16,21415885-13829789,-712.58,St George'S Court,Care Establishment,2 - Commissioning - Older people Pool,Older People - City & South,Nursing Independent Sector
Cambridgeshire County Council,19-Aug-16,21415887-13829790,-712.58,St George'S Court,Care Establishment,2 - Commissioning - Older people Pool,Older People - City & South,Nursing Independent Sector
Cambridgeshire County Council,19-Aug-16,21415888-13829791,-712.58,St George'S Court,Care Establishment,2 - Commissioning - Older people Pool,Older People - City & South,Nursing Independent Sector
Cambridgeshire County Council,19-Aug-16,21321947-13838882,-700,The Cambridge Nursing Centre,Care Establishment,2 - Commissioning - Older people Pool,Older People - City & South,Nursing Independent Sector
Cambridgeshire County Council,19-Aug-16,21321948-13838883,-700,The Cambridge Nursing Centre,Care Establishment,2 - Commissioning - Older people Pool,Older People - City & South,Nursing Independent Sector
Cambridgeshire County Council,19-Aug-16,21321949-13838884,-700,The Cambridge Nursing Centre,Care Establishment,2 - Commissioning - Older people Pool,Older People - City & South,Nursing Independent Sector
Cambridgeshire County Council,19-Aug-16,21321950-13838885,-700,The Cambridge Nursing Centre,Care Establishment,2 - Commissioning - Older people Pool,Older People - City & South,Nursing Independent Sector
Cambridgeshire County Council,19-Aug-16,21321952-13838887,-700,The Cambridge Nursing Centre,Care Establishment,2 - Commissioning - Older people Pool,Older People - City & South,Nursing Independent Sector
Cambridgeshire County Council,19-Aug-16,21321953-13838888,-700,The Cambridge Nursing Centre,Care Establishment,2 - Commissioning - Older people Pool,Older People - City & South,Nursing Independent Sector
Cambridgeshire County Council,19-Aug-16,21321954-13838889,-700,The Cambridge Nursing Centre,Care Establishment,2 - Commissioning - Older people Pool,Older People - City & South,Nursing Independent Sector
Cambridgeshire County Council,25-Aug-16,21468763-13865772,-700,Hardwick Dene,Care Establishment,2 - Commissioning - Older people Pool,Older People Mental Health Hunts,Residential Independent Sector
Cambridgeshire County Council,25-Aug-16,21468767-13865773,-700,Hardwick Dene,Care Establishment,2 - Commissioning - Older people Pool,Older People Mental Health Hunts,Residential Independent Sector
Cambridgeshire County Council,25-Aug-16,21468770-13865776,-700,Hardwick Dene,Care Establishment,2 - Commissioning - Older people Pool,Older People Mental Health Hunts,Residential Independent Sector
Cambridgeshire County Council,25-Aug-16,21468773-13865777,-700,Hardwick Dene,Care Establishment,2 - Commissioning - Older people Pool,Older People Mental Health Hunts,Residential Independent Sector
Cambridgeshire County Council,25-Aug-16,21468775-13865779,-700,Hardwick Dene,Care Establishment,2 - Commissioning - Older people Pool,Older People Mental Health Hunts,Residential Independent Sector
Cambridgeshire County Council,25-Aug-16,21468784-13865781,-700,Hardwick Dene,Care Establishment,2 - Commissioning - Older people Pool,Older People Mental Health Hunts,Residential Independent Sector
Cambridgeshire County Council,25-Aug-16,21468785-13865782,-700,Hardwick Dene,Care Establishment,2 - Commissioning - Older people Pool,Older People Mental Health Hunts,Residential Independent Sector
Cambridgeshire County Council,25-Aug-16,21468786-13865783,-700,Hardwick Dene,Care Establishment,2 - Commissioning - Older people Pool,Older People Mental Health Hunts,Residential Independent Sector
Cambridgeshire County Council,25-Aug-16,21468787-13865784,-700,Hardwick Dene,Care Establishment,2 - Commissioning - Older people Pool,Older People Mental Health Hunts,Residential Independent Sector
Cambridgeshire County Council,25-Aug-16,21468792-13865788,-700,Hardwick Dene,Care Establishment,2 - Commissioning - Older people Pool,Older People Mental Health Hunts,Residential Independent Sector
Cambridgeshire County Council,25-Aug-16,21468800-13865789,-700,Hardwick Dene,Care Establishment,2 - Commissioning - Older people Pool,Older People Mental Health Hunts,Residential Independent Sector
Cambridgeshire County Council,25-Aug-16,21468801-13865790,-700,Hardwick Dene,Care Establishment,2 - Commissioning - Older people Pool,Older People Mental Health Hunts,Residential Independent Sector
Cambridgeshire County Council,25-Aug-16,21468811-13865794,-700,Hardwick Dene,Care Establishment,2 - Commissioning - Older people Pool,Older People Mental Health Hunts,Residential Independent Sector
Cambridgeshire County Council,25-Aug-16,21468814-13865795,-700,Hardwick Dene,Care Establishment,2 - Commissioning - Older people Pool,Older People Mental Health Hunts,Residential Independent Sector
Cambridgeshire County Council,25-Aug-16,21468818-13865796,-700,Hardwick Dene,Care Establishment,2 - Commissioning - Older people Pool,Older People Mental Health Hunts,Residential Independent Sector
Cambridgeshire County Council,25-Aug-16,21468827-13865800,-700,Hardwick Dene,Care Establishment,2 - Commissioning - Older people Pool,Older People Mental Health Hunts,Residential Independent Sector
Cambridgeshire County Council,25-Aug-16,21468836-13865804,-700,Hardwick Dene,Care Establishment,2 - Commissioning - Older people Pool,Older People Mental Health Hunts,Residential Independent Sector
Cambridgeshire County Council,25-Aug-16,21468843-13865806,-700,Hardwick Dene,Care Establishment,2 - Commissioning - Older people Pool,Older People Mental Health Hunts,Residential Independent Sector
Cambridgeshire County Council,25-Aug-16,21468849-13865808,-700,Hardwick Dene,Care Establishment,2 - Commissioning - Older people Pool,Older People Mental Health Hunts,Residential Independent Sector
Cambridgeshire County Council,25-Aug-16,21468851-13865810,-700,Hardwick Dene,Care Establishment,2 - Commissioning - Older people Pool,Older People Mental Health Hunts,Residential Independent Sector
Cambridgeshire County Council,25-Aug-16,21468855-13865812,-700,Hardwick Dene,Care Establishment,2 - Commissioning - Older people Pool,Older People Mental Health Hunts,Residential Independent Sector
Cambridgeshire County Council,25-Aug-16,21468856-13865813,-700,Hardwick Dene,Care Establishment,2 - Commissioning - Older people Pool,Older People Mental Health Hunts,Residential Independent Sector
Cambridgeshire County Council,25-Aug-16,21468864-13865816,-700,Hardwick Dene,Care Establishment,2 - Commissioning - Older people Pool,Older People Mental Health Hunts,Residential Independent Sector
Cambridgeshire County Council,25-Aug-16,21469478-13865769,-700,Hardwick Dene,Care Establishment,2 - Commissioning - Older people Pool,Older People Mental Health Hunts,Residential Independent Sector
Cambridgeshire County Council,04-Aug-16,21179073-13757250,-696.61,Askham Place Pd,Care Establishment,3 - Operations - Countywide Services,Countywide PD Service - Care,Residential Independent Sector
Cambridgeshire County Council,19-Aug-16,21415857-13829763,-677.7,St George'S Court,Care Establishment,2 - Commissioning - Older people Pool,Older People - City & South,Nursing Independent Sector
Cambridgeshire County Council,19-Aug-16,21415859-13829765,-677.7,St George'S Court,Care Establishment,2 - Commissioning - Older people Pool,Older People - City & South,Nursing Independent Sector
Cambridgeshire County Council,19-Aug-16,21415861-13829767,-677.7,St George'S Court,Care Establishment,2 - Commissioning - Older people Pool,Older People - City & South,Nursing Independent Sector
Cambridgeshire County Council,19-Aug-16,21415870-13829775,-677.7,St George'S Court,Care Establishment,2 - Commissioning - Older people Pool,Older People - City & South,Nursing Independent Sector
Cambridgeshire County Council,19-Aug-16,21415871-13829776,-677.7,St George'S Court,Care Establishment,2 - Commissioning - Older people Pool,Older People - City & South,Nursing Independent Sector
Cambridgeshire County Council,19-Aug-16,21415874-13829778,-677.7,St George'S Court,Care Establishment,2 - Commissioning - Older people Pool,Older People - City & South,Nursing Independent Sector
Cambridgeshire County Council,19-Aug-16,21415876-13829780,-677.7,St George'S Court,Care Establishment,2 - Commissioning - Older people Pool,Older People - City & South,Nursing Independent Sector
Cambridgeshire County Council,19-Aug-16,21415879-13829783,-677.7,St George'S Court,Care Establishment,2 - Commissioning - Older people Pool,Older People - City & South,Nursing Independent Sector
Cambridgeshire County Council,19-Aug-16,21415880-13829784,-677.7,St George'S Court,Care Establishment,2 - Commissioning - Older people Pool,Older People - City & South,Nursing Independent Sector
Cambridgeshire County Council,19-Aug-16,21415883-13829787,-677.7,St George'S Court,Care Establishment,2 - Commissioning - Older people Pool,Older People - City & South,Nursing Independent Sector
Cambridgeshire County Council,19-Aug-16,21415884-13829788,-677.7,St George'S Court,Care Establishment,2 - Commissioning - Older people Pool,Older People - City & South,Nursing Independent Sector
Cambridgeshire County Council,19-Aug-16,21423883-13829532,-677.57,Conquest Care Homes Peterborough,Care Establishment,2 - Operations - Learning Disability,LDP City Locality - Care,Residential Independent Sector
Cambridgeshire County Council,19-Aug-16,21418277-13838689,-675.78,Orchard Manor Transition Service (Scope),Care Establishment,2 - Operations - Learning Disability,LDP South Cambs Locality - Care,Daycare
Cambridgeshire County Council,19-Aug-16,21418278-13838690,-675.78,Orchard Manor Transition Service (Scope),Care Establishment,2 - Operations - Learning Disability,LDP South Cambs Locality - Care,Daycare
Cambridgeshire County Council,19-Aug-16,21418279-13838691,-675.78,Orchard Manor Transition Service (Scope),Care Establishment,2 - Operations - Learning Disability,LDP South Cambs Locality - Care,Daycare
Cambridgeshire County Council,19-Aug-16,21418280-13838692,-675.78,Orchard Manor Transition Service (Scope),Care Establishment,2 - Operations - Learning Disability,LDP South Cambs Locality - Care,Daycare
Cambridgeshire County Council,19-Aug-16,21418281-13838693,-675.78,Orchard Manor Transition Service (Scope),Care Establishment,2 - Operations - Learning Disability,LDP South Cambs Locality - Care,Daycare
Cambridgeshire County Council,19-Aug-16,21418282-13838694,-675.78,Orchard Manor Transition Service (Scope),Care Establishment,2 - Operations - Learning Disability,LDP South Cambs Locality - Care,Daycare
Cambridgeshire County Council,19-Aug-16,21418283-13838695,-675.78,Orchard Manor Transition Service (Scope),Care Establishment,2 - Operations - Learning Disability,LDP South Cambs Locality - Care,Daycare
Cambridgeshire County Council,19-Aug-16,21418284-13838696,-675.78,Orchard Manor Transition Service (Scope),Care Establishment,2 - Operations - Learning Disability,LDP South Cambs Locality - Care,Daycare
Cambridgeshire County Council,19-Aug-16,21418285-13838697,-675.78,Orchard Manor Transition Service (Scope),Care Establishment,2 - Operations - Learning Disability,LDP South Cambs Locality - Care,Daycare
Cambridgeshire County Council,19-Aug-16,21418286-13838698,-675.78,Orchard Manor Transition Service (Scope),Care Establishment,2 - Operations - Learning Disability,LDP South Cambs Locality - Care,Daycare
Cambridgeshire County Council,19-Aug-16,21428366-13834247,-669.42,Dimensions (Uk) Ltd,Care Establishment,2 - Operations - Learning Disability,LDP City Locality - Care,Supported Living
Cambridgeshire County Council,19-Aug-16,21428828-13834223,-667.8,Dimensions (Uk) Ltd,Care Establishment,2 - Operations - Learning Disability,LDP South Cambs Locality - Care,Supported Living
Cambridgeshire County Council,19-Aug-16,21179593-13834426,-639.22,Home Close Ltd,Care Establishment,2 - Commissioning - Older people Pool,Older People - City & South,Nursing Independent Sector
Cambridgeshire County Council,19-Aug-16,21179595-13834427,-639.22,Home Close Ltd,Care Establishment,2 - Commissioning - Older people Pool,Older People - City & South,Nursing Independent Sector
Cambridgeshire County Council,19-Aug-16,21182474-13834429,-639.22,Home Close Ltd,Care Establishment,2 - Commissioning - Older people Pool,Older People - City & South,Nursing Independent Sector
Cambridgeshire County Council,19-Aug-16,21182494-13834433,-639.22,Home Close Ltd,Care Establishment,2 - Commissioning - Older people Pool,Older People - City & South,Nursing Independent Sector
Cambridgeshire County Council,11-Aug-16,21322416-13788202,-630,Firgrove House,Care Establishment,2 - Commissioning - Older people Pool,Older People - City & South,Residential Independent Sector
Cambridgeshire County Council,11-Aug-16,21322417-13788203,-630,Firgrove House,Care Establishment,2 - Commissioning - Older people Pool,Older People - City & South,Residential Independent Sector
Cambridgeshire County Council,11-Aug-16,21322419-13788205,-630,Firgrove House,Care Establishment,2 - Commissioning - Older people Pool,Older People - City & South,Residential Independent Sector
Cambridgeshire County Council,11-Aug-16,21322422-13788208,-630,Firgrove House,Care Establishment,2 - Commissioning - Older people Pool,Older People - City & South,Residential Independent Sector
Cambridgeshire County Council,11-Aug-16,21322423-13788209,-630,Firgrove House,Care Establishment,2 - Commissioning - Older people Pool,Older People - City & South,Residential Independent Sector
Cambridgeshire County Council,11-Aug-16,21323409-13788183,-630,Firgrove House,Care Establishment,2 - Commissioning - Older people Pool,Older People - City & South,Residential Independent Sector
Cambridgeshire County Council,11-Aug-16,21323411-13788185,-630,Firgrove House,Care Establishment,2 - Commissioning - Older people Pool,Older People - City & South,Residential Independent Sector
Cambridgeshire County Council,11-Aug-16,21323412-13788186,-630,Firgrove House,Care Establishment,2 - Commissioning - Older people Pool,Older People - City & South,Residential Independent Sector
Cambridgeshire County Council,11-Aug-16,21323413-13788187,-630,Firgrove House,Care Establishment,2 - Commissioning - Older people Pool,Older People - City & South,Residential Independent Sector
Cambridgeshire County Council,11-Aug-16,21323415-13788189,-630,Firgrove House,Care Establishment,2 - Commissioning - Older people Pool,Older People - City & South,Residential Independent Sector
Cambridgeshire County Council,11-Aug-16,21323419-13788193,-630,Firgrove House,Care Establishment,2 - Commissioning - Older people Pool,Older People - City & South,Residential Independent Sector
Cambridgeshire County Council,11-Aug-16,21323420-13788194,-630,Firgrove House,Care Establishment,2 - Commissioning - Older people Pool,Older People - City & South,Residential Independent Sector
Cambridgeshire County Council,11-Aug-16,21323426-13788200,-630,Firgrove House,Care Establishment,2 - Commissioning - Older people Pool,Older People - City & South,Residential Independent Sector
Cambridgeshire County Council,11-Aug-16,21323427-13788201,-630,Firgrove House,Care Establishment,2 - Commissioning - Older people Pool,Older People - City & South,Residential Independent Sector
Cambridgeshire County Council,22-Aug-16,21264480-13846420,-614.42,Alliance Foster Care Ltd,Care Establishment,S&C,Placements - Social Care,Agency Placements - In Cambs
Cambridgeshire County Council,19-Aug-16,21415858-13829764,-610.78,St George'S Court,Care Establishment,2 - Commissioning - Older people Pool,Older People - City & South,Nursing Independent Sector
Cambridgeshire County Council,11-Aug-16,21319445-13789531,-610.55,Etheldred House,Care Establishment,2 - Commissioning - Older people Pool,Older People - City & South,Residential Independent Sector
Cambridgeshire County Council,11-Aug-16,21319446-13789532,-610.55,Etheldred House,Care Establishment,2 - Commissioning - Older people Pool,Older People - City & South,Residential Independent Sector
Cambridgeshire County Council,11-Aug-16,21319447-13789533,-610.55,Etheldred House,Care Establishment,2 - Commissioning - Older people Pool,Older People - City & South,Residential Independent Sector
Cambridgeshire County Council,11-Aug-16,21319448-13789534,-610.55,Etheldred House,Care Establishment,2 - Commissioning - Older people Pool,Older People - City & South,Residential Independent Sector
Cambridgeshire County Council,11-Aug-16,21319449-13789535,-610.55,Etheldred House,Care Establishment,2 - Commissioning - Older people Pool,Older People - City & South,Residential Independent Sector
Cambridgeshire County Council,11-Aug-16,21319450-13789536,-610.55,Etheldred House,Care Establishment,2 - Commissioning - Older people Pool,Older People - City & South,Residential Independent Sector
Cambridgeshire County Council,11-Aug-16,21319451-13789537,-610.55,Etheldred House,Care Establishment,2 - Commissioning - Older people Pool,Older People - City & South,Residential Independent Sector
Cambridgeshire County Council,11-Aug-16,21319452-13789538,-610.55,Etheldred House,Care Establishment,2 - Commissioning - Older people Pool,Older People - City & South,Residential Independent Sector
Cambridgeshire County Council,11-Aug-16,21319453-13789539,-610.55,Etheldred House,Care Establishment,2 - Commissioning - Older people Pool,Older People - City & South,Residential Independent Sector
Cambridgeshire County Council,11-Aug-16,21319454-13789540,-610.55,Etheldred House,Care Establishment,2 - Commissioning - Older people Pool,Older People - City & South,Residential Independent Sector
Cambridgeshire County Council,11-Aug-16,21319455-13789541,-610.55,Etheldred House,Care Establishment,2 - Commissioning - Older people Pool,Older People - City & South,Residential Independent Sector
Cambridgeshire County Council,11-Aug-16,21319456-13789542,-610.55,Etheldred House,Care Establishment,2 - Commissioning - Older people Pool,Older People - City & South,Residential Independent Sector
Cambridgeshire County Council,11-Aug-16,21319457-13789543,-610.55,Etheldred House,Care Establishment,2 - Commissioning - Older people Pool,Older People - City & South,Residential Independent Sector
Cambridgeshire County Council,11-Aug-16,21319458-13789544,-610.55,Etheldred House,Care Establishment,2 - Commissioning - Older people Pool,Older People - City & South,Residential Independent Sector
Cambridgeshire County Council,11-Aug-16,21323352-13789408,-610.55,Buchan Healthcare Ltd,Care Establishment,2 - Commissioning - Older people Pool,Older People - City & South,Residential Independent Sector
Cambridgeshire County Council,11-Aug-16,21323353-13789409,-610.55,Buchan Healthcare Ltd,Care Establishment,2 - Commissioning - Older people Pool,Older People - City & South,Residential Independent Sector
Cambridgeshire County Council,11-Aug-16,21323354-13789410,-610.55,Buchan Healthcare Ltd,Care Establishment,2 - Commissioning - Older people Pool,Older People - City & South,Residential Independent Sector
Cambridgeshire County Council,11-Aug-16,21323355-13789411,-610.55,Buchan Healthcare Ltd,Care Establishment,2 - Commissioning - Older people Pool,Older People - City & South,Residential Independent Sector
Cambridgeshire County Council,11-Aug-16,21323853-13789393,-610.55,Buchan Healthcare Ltd,Care Establishment,2 - Commissioning - Older people Pool,Older People - City & South,Residential Independent Sector
Cambridgeshire County Council,11-Aug-16,21323854-13789394,-610.55,Buchan Healthcare Ltd,Care Establishment,2 - Commissioning - Older people Pool,Older People - City & South,Residential Independent Sector
Cambridgeshire County Council,11-Aug-16,21323855-13789395,-610.55,Buchan Healthcare Ltd,Care Establishment,2 - Commissioning - Older people Pool,Older People - City & South,Residential Independent Sector
Cambridgeshire County Council,11-Aug-16,21323856-13789396,-610.55,Buchan Healthcare Ltd,Care Establishment,2 - Commissioning - Older people Pool,Older People - City & South,Residential Independent Sector
Cambridgeshire County Council,11-Aug-16,21323858-13789398,-610.55,Buchan Healthcare Ltd,Care Establishment,2 - Commissioning - Older people Pool,Older People - City & South,Residential Independent Sector
Cambridgeshire County Council,11-Aug-16,21323859-13789399,-610.55,Buchan Healthcare Ltd,Care Establishment,2 - Commissioning - Older people Pool,Older People - City & South,Residential Independent Sector
Cambridgeshire County Council,11-Aug-16,21323860-13789400,-610.55,Buchan Healthcare Ltd,Care Establishment,2 - Commissioning - Older people Pool,Older People - City & South,Residential Independent Sector
Cambridgeshire County Council,11-Aug-16,21323861-13789401,-610.55,Buchan Healthcare Ltd,Care Establishment,2 - Commissioning - Older people Pool,Older People - City & South,Residential Independent Sector
Cambridgeshire County Council,11-Aug-16,21323862-13789402,-610.55,Buchan Healthcare Ltd,Care Establishment,2 - Commissioning - Older people Pool,Older People - City & South,Residential Independent Sector
Cambridgeshire County Council,11-Aug-16,21323865-13789405,-610.55,Buchan Healthcare Ltd,Care Establishment,2 - Commissioning - Older people Pool,Older People - City & South,Residential Independent Sector
Cambridgeshire County Council,11-Aug-16,21323866-13789406,-610.55,Buchan Healthcare Ltd,Care Establishment,2 - Commissioning - Older people Pool,Older People - City & South,Residential Independent Sector
Cambridgeshire County Council,19-Aug-16,21423583-13829729,-610.55,St George'S Court,Care Establishment,2 - Commissioning - Older people Pool,Older People - City & South,Residential Independent Sector
Cambridgeshire County Council,19-Aug-16,21423584-13829730,-610.55,St George'S Court,Care Establishment,2 - Commissioning - Older people Pool,Older People - City & South,Residential Independent Sector
Cambridgeshire County Council,19-Aug-16,21423585-13829731,-610.55,St George'S Court,Care Establishment,2 - Commissioning - Older people Pool,Older People - City & South,Residential Independent Sector
Cambridgeshire County Council,04-Aug-16,21177959-13759262,-600.29,Midfield Lodge Care Centre,Care Establishment,2 - Commissioning - Older people Pool,Older People - City & South,Nursing Independent Sector
Cambridgeshire County Council,04-Aug-16,21177961-13759264,-600.29,Midfield Lodge Care Centre,Care Establishment,2 - Commissioning - Older people Pool,Older People - City & South,Nursing Independent Sector
Cambridgeshire County Council,04-Aug-16,21177962-13759265,-600.29,Midfield Lodge Care Centre,Care Establishment,2 - Commissioning - Older people Pool,Older People - City & South,Nursing Independent Sector
Cambridgeshire County Council,04-Aug-16,21177963-13759266,-600.29,Midfield Lodge Care Centre,Care Establishment,2 - Commissioning - Older people Pool,Older People - City & South,Nursing Independent Sector
Cambridgeshire County Council,04-Aug-16,21177964-13759267,-600.29,Midfield Lodge Care Centre,Care Establishment,2 - Commissioning - Older people Pool,Older People - City & South,Nursing Independent Sector
Cambridgeshire County Council,19-Aug-16,21427390-13837981,-600.29,Midfield Lodge Care Centre,Care Establishment,2 - Commissioning - Older people Pool,Older People - City & South,Nursing Independent Sector
Cambridgeshire County Council,19-Aug-16,21427391-13837982,-600.29,Midfield Lodge Care Centre,Care Establishment,2 - Commissioning - Older people Pool,Older People - City & South,Nursing Independent Sector
Cambridgeshire County Council,25-Aug-16,21464510-13869628,-600.29,Midfield Lodge Care Centre,Care Establishment,2 - Commissioning - Older people Pool,Hunts O P  Team,Nursing Independent Sector
Cambridgeshire County Council,25-Aug-16,21464515-13869632,-600.29,Midfield Lodge Care Centre,Care Establishment,2 - Commissioning - Older people Pool,Hunts O P  Team,Nursing Independent Sector
Cambridgeshire County Council,25-Aug-16,21464518-13869635,-600.29,Midfield Lodge Care Centre,Care Establishment,2 - Commissioning - Older people Pool,Hunts O P  Team,Nursing Independent Sector
Cambridgeshire County Council,25-Aug-16,21464519-13869636,-600.29,Midfield Lodge Care Centre,Care Establishment,2 - Commissioning - Older people Pool,Hunts O P  Team,Nursing Independent Sector
Cambridgeshire County Council,25-Aug-16,21464520-13869637,-600.29,Midfield Lodge Care Centre,Care Establishment,2 - Commissioning - Older people Pool,Hunts O P  Team,Nursing Independent Sector
Cambridgeshire County Council,25-Aug-16,21464522-13869639,-600.29,Midfield Lodge Care Centre,Care Establishment,2 - Commissioning - Older people Pool,Hunts O P  Team,Nursing Independent Sector
Cambridgeshire County Council,25-Aug-16,21464527-13869643,-600.29,Midfield Lodge Care Centre,Care Establishment,2 - Commissioning - Older people Pool,Hunts O P  Team,Nursing Independent Sector
Cambridgeshire County Council,25-Aug-16,21464528-13869644,-600.29,Midfield Lodge Care Centre,Care Establishment,2 - Commissioning - Older people Pool,Hunts O P  Team,Nursing Independent Sector
Cambridgeshire County Council,25-Aug-16,21464529-13869645,-600.29,Midfield Lodge Care Centre,Care Establishment,2 - Commissioning - Older people Pool,Hunts O P  Team,Nursing Independent Sector
Cambridgeshire County Council,25-Aug-16,21464531-13869647,-600.29,Midfield Lodge Care Centre,Care Establishment,2 - Commissioning - Older people Pool,Hunts O P  Team,Nursing Independent Sector
Cambridgeshire County Council,25-Aug-16,21468865-13865817,-600,Hardwick Dene,Care Establishment,2 - Commissioning - Older people Pool,Older People Mental Health Hunts,Residential Independent Sector
Cambridgeshire County Council,04-Aug-16,21276595-13759775,-586.46,Woodlands Care Centre,Care Establishment,2 - Commissioning - Older people Pool,Older People Mental Health City & South,Nursing Independent Sector
Cambridgeshire County Council,04-Aug-16,21276602-13759782,-586.46,Woodlands Care Centre,Care Establishment,2 - Commissioning - Older people Pool,Older People Mental Health City & South,Nursing Independent Sector
Cambridgeshire County Council,04-Aug-16,21278457-13759568,-586.46,Woodlands Care Centre,Care Establishment,2 - Commissioning - Older people Pool,Older People Mental Health City & South,Nursing Independent Sector
Cambridgeshire County Council,04-Aug-16,21278466-13759575,-586.46,Woodlands Care Centre,Care Establishment,2 - Commissioning - Older people Pool,Older People Mental Health City & South,Nursing Independent Sector
Cambridgeshire County Council,04-Aug-16,21278467-13759576,-586.46,Woodlands Care Centre,Care Establishment,2 - Commissioning - Older people Pool,Older People Mental Health City & South,Nursing Independent Sector
Cambridgeshire County Council,04-Aug-16,21278473-13759580,-586.46,Woodlands Care Centre,Care Establishment,2 - Commissioning - Older people Pool,Older People Mental Health City & South,Nursing Independent Sector
Cambridgeshire County Council,04-Aug-16,21278495-13759599,-586.46,Woodlands Care Centre,Care Establishment,2 - Commissioning - Older people Pool,Older People Mental Health City & South,Nursing Independent Sector
Cambridgeshire County Council,04-Aug-16,21278502-13759606,-586.46,Woodlands Care Centre,Care Establishment,2 - Commissioning - Older people Pool,Older People Mental Health City & South,Nursing Independent Sector
Cambridgeshire County Council,04-Aug-16,21278503-13759607,-586.46,Woodlands Care Centre,Care Establishment,2 - Commissioning - Older people Pool,Older People Mental Health City & South,Nursing Independent Sector
Cambridgeshire County Council,04-Aug-16,21278519-13759621,-586.46,Woodlands Care Centre,Care Establishment,2 - Commissioning - Older people Pool,Older People Mental Health City & South,Nursing Independent Sector
Cambridgeshire County Council,04-Aug-16,21278530-13759631,-586.46,Woodlands Care Centre,Care Establishment,2 - Commissioning - Older people Pool,Older People Mental Health City & South,Nursing Independent Sector
Cambridgeshire County Council,04-Aug-16,21278535-13759636,-586.46,Woodlands Care Centre,Care Establishment,2 - Commissioning - Older people Pool,Older People Mental Health City & South,Nursing Independent Sector
Cambridgeshire County Council,04-Aug-16,21278538-13759481,-586.46,Woodlands Care Centre,Care Establishment,2 - Commissioning - Older people Pool,Older People Mental Health City & South,Nursing Independent Sector
Cambridgeshire County Council,04-Aug-16,21278545-13759487,-586.46,Woodlands Care Centre,Care Establishment,2 - Commissioning - Older people Pool,Older People Mental Health City & South,Nursing Independent Sector
Cambridgeshire County Council,04-Aug-16,21278546-13759488,-586.46,Woodlands Care Centre,Care Establishment,2 - Commissioning - Older people Pool,Older People Mental Health City & South,Nursing Independent Sector
Cambridgeshire County Council,04-Aug-16,21278551-13759493,-586.46,Woodlands Care Centre,Care Establishment,2 - Commissioning - Older people Pool,Older People Mental Health City & South,Nursing Independent Sector
Cambridgeshire County Council,04-Aug-16,21278563-13759439,-586.46,Woodlands Care Centre,Care Establishment,2 - Commissioning - Older people Pool,Older People Mental Health City & South,Nursing Independent Sector
Cambridgeshire County Council,04-Aug-16,21278572-13759448,-586.46,Woodlands Care Centre,Care Establishment,2 - Commissioning - Older people Pool,Older People Mental Health City & South,Nursing Independent Sector
Cambridgeshire County Council,04-Aug-16,21278586-13759461,-586.46,Woodlands Care Centre,Care Establishment,2 - Commissioning - Older people Pool,Older People Mental Health City & South,Nursing Independent Sector
Cambridgeshire County Council,04-Aug-16,21278591-13759464,-586.46,Woodlands Care Centre,Care Establishment,2 - Commissioning - Older people Pool,Older People Mental Health City & South,Nursing Independent Sector
Cambridgeshire County Council,19-Aug-16,21422441-13829595,-584.64,Conquest Care Homes Peterborough,Care Establishment,2 - Operations - Learning Disability,LDP City Locality - Care,Day and Domicillary Care Independent Sector
Cambridgeshire County Council,19-Aug-16,21423685-13829554,-584.64,Conquest Care Homes Peterborough,Care Establishment,2 - Operations - Learning Disability,LDP City Locality - Care,Day and Domicillary Care Independent Sector
Cambridgeshire County Council,19-Aug-16,21423701-13829557,-584.64,Conquest Care Homes Peterborough,Care Establishment,2 - Operations - Learning Disability,LDP City Locality - Care,Day and Domicillary Care Independent Sector
Cambridgeshire County Council,19-Aug-16,21423702-13829558,-584.64,Conquest Care Homes Peterborough,Care Establishment,2 - Operations - Learning Disability,LDP City Locality - Care,Day and Domicillary Care Independent Sector
Cambridgeshire County Council,19-Aug-16,21423715-13829561,-584.64,Conquest Care Homes Peterborough,Care Establishment,2 - Operations - Learning Disability,LDP City Locality - Care,Day and Domicillary Care Independent Sector
Cambridgeshire County Council,19-Aug-16,21423716-13829562,-584.64,Conquest Care Homes Peterborough,Care Establishment,2 - Operations - Learning Disability,LDP City Locality - Care,Day and Domicillary Care Independent Sector
Cambridgeshire County Council,19-Aug-16,21423735-13829565,-584.64,Conquest Care Homes Peterborough,Care Establishment,2 - Operations - Learning Disability,LDP City Locality - Care,Day and Domicillary Care Independent Sector
Cambridgeshire County Council,19-Aug-16,21423751-13829569,-584.64,Conquest Care Homes Peterborough,Care Establishment,2 - Operations - Learning Disability,LDP City Locality - Care,Day and Domicillary Care Independent Sector
Cambridgeshire County Council,19-Aug-16,21423752-13829570,-584.64,Conquest Care Homes Peterborough,Care Establishment,2 - Operations - Learning Disability,LDP City Locality - Care,Day and Domicillary Care Independent Sector
Cambridgeshire County Council,19-Aug-16,21423762-13829534,-584.64,Conquest Care Homes Peterborough,Care Establishment,2 - Operations - Learning Disability,LDP City Locality - Care,Day and Domicillary Care Independent Sector
Cambridgeshire County Council,19-Aug-16,21423763-13829535,-584.64,Conquest Care Homes Peterborough,Care Establishment,2 - Operations - Learning Disability,LDP City Locality - Care,Day and Domicillary Care Independent Sector
Cambridgeshire County Council,19-Aug-16,21423772-13829538,-584.64,Conquest Care Homes Peterborough,Care Establishment,2 - Operations - Learning Disability,LDP City Locality - Care,Day and Domicillary Care Independent Sector
Cambridgeshire County Council,19-Aug-16,21423785-13829539,-584.64,Conquest Care Homes Peterborough,Care Establishment,2 - Operations - Learning Disability,LDP City Locality - Care,Day and Domicillary Care Independent Sector
Cambridgeshire County Council,19-Aug-16,21423802-13829544,-584.64,Conquest Care Homes Peterborough,Care Establishment,2 - Operations - Learning Disability,LDP City Locality - Care,Day and Domicillary Care Independent Sector
Cambridgeshire County Council,19-Aug-16,21423812-13829548,-584.64,Conquest Care Homes Peterborough,Care Establishment,2 - Operations - Learning Disability,LDP City Locality - Care,Day and Domicillary Care Independent Sector
Cambridgeshire County Council,19-Aug-16,21423813-13829549,-584.64,Conquest Care Homes Peterborough,Care Establishment,2 - Operations - Learning Disability,LDP City Locality - Care,Day and Domicillary Care Independent Sector
Cambridgeshire County Council,19-Aug-16,21423819-13829551,-584.64,Conquest Care Homes Peterborough,Care Establishment,2 - Operations - Learning Disability,LDP City Locality - Care,Day and Domicillary Care Independent Sector
Cambridgeshire County Council,19-Aug-16,21423827-13829552,-584.64,Conquest Care Homes Peterborough,Care Establishment,2 - Operations - Learning Disability,LDP City Locality - Care,Day and Domicillary Care Independent Sector
Cambridgeshire County Council,19-Aug-16,21423869-13829529,-584.64,Conquest Care Homes Peterborough,Care Establishment,2 - Operations - Learning Disability,LDP City Locality - Care,Day and Domicillary Care Independent Sector
Cambridgeshire County Council,19-Aug-16,21423891-13829533,-584.64,Conquest Care Homes Peterborough,Care Establishment,2 - Operations - Learning Disability,LDP City Locality - Care,Day and Domicillary Care Independent Sector
Cambridgeshire County Council,19-Aug-16,21415869-13829774,-580.89,St George'S Court,Care Establishment,2 - Commissioning - Older people Pool,Older People - City & South,Nursing Independent Sector
Cambridgeshire County Council,04-Aug-16,21277760-13759697,-577.08,Woodlands Care Centre,Care Establishment,2 - Commissioning - Older people Pool,Older People Mental Health City & South,Nursing Independent Sector
Cambridgeshire County Council,04-Aug-16,21277772-13759709,-577.08,Woodlands Care Centre,Care Establishment,2 - Commissioning - Older people Pool,Older People Mental Health City & South,Nursing Independent Sector
Cambridgeshire County Council,04-Aug-16,21277785-13759721,-577.08,Woodlands Care Centre,Care Establishment,2 - Commissioning - Older people Pool,Older People Mental Health City & South,Nursing Independent Sector
Cambridgeshire County Council,04-Aug-16,21277788-13759724,-577.08,Woodlands Care Centre,Care Establishment,2 - Commissioning - Older people Pool,Older People Mental Health City & South,Nursing Independent Sector
Cambridgeshire County Council,04-Aug-16,21277798-13759734,-577.08,Woodlands Care Centre,Care Establishment,2 - Commissioning - Older people Pool,Older People Mental Health City & South,Nursing Independent Sector
Cambridgeshire County Council,04-Aug-16,21277818-13759754,-577.08,Woodlands Care Centre,Care Establishment,2 - Commissioning - Older people Pool,Older People Mental Health City & South,Nursing Independent Sector
Cambridgeshire County Council,04-Aug-16,21277829-13759765,-577.08,Woodlands Care Centre,Care Establishment,2 - Commissioning - Older people Pool,Older People Mental Health City & South,Nursing Independent Sector
Cambridgeshire County Council,04-Aug-16,21277830-13759766,-577.08,Woodlands Care Centre,Care Establishment,2 - Commissioning - Older people Pool,Older People Mental Health City & South,Nursing Independent Sector
Cambridgeshire County Council,04-Aug-16,21277831-13759660,-577.08,Woodlands Care Centre,Care Establishment,2 - Commissioning - Older people Pool,Older People Mental Health City & South,Nursing Independent Sector
Cambridgeshire County Council,04-Aug-16,21277846-13759672,-577.08,Woodlands Care Centre,Care Establishment,2 - Commissioning - Older people Pool,Older People Mental Health City & South,Nursing Independent Sector
Cambridgeshire County Council,04-Aug-16,21277850-13759639,-577.08,Woodlands Care Centre,Care Establishment,2 - Commissioning - Older people Pool,Older People Mental Health City & South,Nursing Independent Sector
Cambridgeshire County Council,04-Aug-16,21277851-13759640,-577.08,Woodlands Care Centre,Care Establishment,2 - Commissioning - Older people Pool,Older People Mental Health City & South,Nursing Independent Sector
Cambridgeshire County Council,04-Aug-16,21277867-13759654,-577.08,Woodlands Care Centre,Care Establishment,2 - Commissioning - Older people Pool,Older People Mental Health City & South,Nursing Independent Sector
Cambridgeshire County Council,04-Aug-16,21279714-13759383,-577.08,Woodlands Care Centre,Care Establishment,2 - Commissioning - Older people Pool,Older People Mental Health City & South,Nursing Independent Sector
Cambridgeshire County Council,04-Aug-16,21279716-13759385,-577.08,Woodlands Care Centre,Care Establishment,2 - Commissioning - Older people Pool,Older People Mental Health City & South,Nursing Independent Sector
Cambridgeshire County Council,04-Aug-16,21279717-13759386,-577.08,Woodlands Care Centre,Care Establishment,2 - Commissioning - Older people Pool,Older People Mental Health City & South,Nursing Independent Sector
Cambridgeshire County Council,04-Aug-16,21279727-13759396,-577.08,Woodlands Care Centre,Care Establishment,2 - Commissioning - Older people Pool,Older People Mental Health City & South,Nursing Independent Sector
Cambridgeshire County Council,04-Aug-16,21279737-13759406,-577.08,Woodlands Care Centre,Care Establishment,2 - Commissioning - Older people Pool,Older People Mental Health City & South,Nursing Independent Sector
Cambridgeshire County Council,04-Aug-16,21279738-13759407,-577.08,Woodlands Care Centre,Care Establishment,2 - Commissioning - Older people Pool,Older People Mental Health City & South,Nursing Independent Sector
Cambridgeshire County Council,04-Aug-16,21279747-13759416,-577.08,Woodlands Care Centre,Care Establishment,2 - Commissioning - Older people Pool,Older People Mental Health City & South,Nursing Independent Sector
Cambridgeshire County Council,09-Aug-16,21111362-13773742,-576,The Cambridgeshire Football Association Ltd,Trade Supplier,LRNG,Social CTD Child Care Training,Casual hire of facilities
Cambridgeshire County Council,19-Aug-16,21277328-13825934,-575.85,Cambridge Manor Care Home (Tlc),Care Establishment,2 - Commissioning - Older people Pool,Older People Mental Health City & South,Nursing Independent Sector
Cambridgeshire County Council,19-Aug-16,21277329-13825935,-575.85,Cambridge Manor Care Home (Tlc),Care Establishment,2 - Commissioning - Older people Pool,Older People Mental Health City & South,Nursing Independent Sector
Cambridgeshire County Council,19-Aug-16,21279249-13825927,-575.85,Cambridge Manor Care Home (Tlc),Care Establishment,2 - Commissioning - Older people Pool,Older People Mental Health City & South,Nursing Independent Sector
Cambridgeshire County Council,19-Aug-16,21279290-13825929,-575.85,Cambridge Manor Care Home (Tlc),Care Establishment,2 - Commissioning - Older people Pool,Older People Mental Health City & South,Nursing Independent Sector
Cambridgeshire County Council,04-Aug-16,21272051-13759891,-568.83,Woodlands Care Centre,Care Establishment,2 - Commissioning - Older people Pool,Older People Mental Health City & South,Nursing Independent Sector
Cambridgeshire County Council,04-Aug-16,21272052-13759892,-568.83,Woodlands Care Centre,Care Establishment,2 - Commissioning - Older people Pool,Older People Mental Health City & South,Nursing Independent Sector
Cambridgeshire County Council,04-Aug-16,21272056-13759893,-568.83,Woodlands Care Centre,Care Establishment,2 - Commissioning - Older people Pool,Older People Mental Health City & South,Nursing Independent Sector
Cambridgeshire County Council,04-Aug-16,21272058-13759895,-568.83,Woodlands Care Centre,Care Establishment,2 - Commissioning - Older people Pool,Older People Mental Health City & South,Nursing Independent Sector
Cambridgeshire County Council,04-Aug-16,21272061-13759897,-568.83,Woodlands Care Centre,Care Establishment,2 - Commissioning - Older people Pool,Older People Mental Health City & South,Nursing Independent Sector
Cambridgeshire County Council,04-Aug-16,21272062-13759898,-568.83,Woodlands Care Centre,Care Establishment,2 - Commissioning - Older people Pool,Older People Mental Health City & South,Nursing Independent Sector
Cambridgeshire County Council,04-Aug-16,21272065-13759901,-568.83,Woodlands Care Centre,Care Establishment,2 - Commissioning - Older people Pool,Older People Mental Health City & South,Nursing Independent Sector
Cambridgeshire County Council,04-Aug-16,21272066-13759902,-568.83,Woodlands Care Centre,Care Establishment,2 - Commissioning - Older people Pool,Older People Mental Health City & South,Nursing Independent Sector
Cambridgeshire County Council,04-Aug-16,21272067-13759903,-568.83,Woodlands Care Centre,Care Establishment,2 - Commissioning - Older people Pool,Older People Mental Health City & South,Nursing Independent Sector
Cambridgeshire County Council,04-Aug-16,21272075-13759910,-568.83,Woodlands Care Centre,Care Establishment,2 - Commissioning - Older people Pool,Older People Mental Health City & South,Nursing Independent Sector
Cambridgeshire County Council,04-Aug-16,21272076-13759911,-568.83,Woodlands Care Centre,Care Establishment,2 - Commissioning - Older people Pool,Older People Mental Health City & South,Nursing Independent Sector
Cambridgeshire County Council,04-Aug-16,21272081-13759915,-568.83,Woodlands Care Centre,Care Establishment,2 - Commissioning - Older people Pool,Older People Mental Health City & South,Nursing Independent Sector
Cambridgeshire County Council,04-Aug-16,21272082-13759916,-568.83,Woodlands Care Centre,Care Establishment,2 - Commissioning - Older people Pool,Older People Mental Health City & South,Nursing Independent Sector
Cambridgeshire County Council,04-Aug-16,21272083-13759917,-568.83,Woodlands Care Centre,Care Establishment,2 - Commissioning - Older people Pool,Older People Mental Health City & South,Nursing Independent Sector
Cambridgeshire County Council,04-Aug-16,21272087-13759921,-568.83,Woodlands Care Centre,Care Establishment,2 - Commissioning - Older people Pool,Older People Mental Health City & South,Nursing Independent Sector
Cambridgeshire County Council,04-Aug-16,21272092-13759925,-568.83,Woodlands Care Centre,Care Establishment,2 - Commissioning - Older people Pool,Older People Mental Health City & South,Nursing Independent Sector
Cambridgeshire County Council,04-Aug-16,21272094-13759926,-568.83,Woodlands Care Centre,Care Establishment,2 - Commissioning - Older people Pool,Older People Mental Health City & South,Nursing Independent Sector
Cambridgeshire County Council,04-Aug-16,21272096-13759927,-568.83,Woodlands Care Centre,Care Establishment,2 - Commissioning - Older people Pool,Older People Mental Health City & South,Nursing Independent Sector
Cambridgeshire County Council,04-Aug-16,21272262-13759787,-568.83,Woodlands Care Centre,Care Establishment,2 - Commissioning - Older people Pool,Older People Mental Health City & South,Nursing Independent Sector
Cambridgeshire County Council,04-Aug-16,21272265-13759790,-568.83,Woodlands Care Centre,Care Establishment,2 - Commissioning - Older people Pool,Older People Mental Health City & South,Nursing Independent Sector
Cambridgeshire County Council,04-Aug-16,21272269-13759794,-568.83,Woodlands Care Centre,Care Establishment,2 - Commissioning - Older people Pool,Older People Mental Health City & South,Nursing Independent Sector
Cambridgeshire County Council,04-Aug-16,21272270-13759795,-568.83,Woodlands Care Centre,Care Establishment,2 - Commissioning - Older people Pool,Older People Mental Health City & South,Nursing Independent Sector
Cambridgeshire County Council,04-Aug-16,21272273-13759798,-568.83,Woodlands Care Centre,Care Establishment,2 - Commissioning - Older people Pool,Older People Mental Health City & South,Nursing Independent Sector
Cambridgeshire County Council,04-Aug-16,21272274-13759799,-568.83,Woodlands Care Centre,Care Establishment,2 - Commissioning - Older people Pool,Older People Mental Health City & South,Nursing Independent Sector
Cambridgeshire County Council,04-Aug-16,21272275-13759800,-568.83,Woodlands Care Centre,Care Establishment,2 - Commissioning - Older people Pool,Older People Mental Health City & South,Nursing Independent Sector
Cambridgeshire County Council,04-Aug-16,21272276-13759801,-568.83,Woodlands Care Centre,Care Establishment,2 - Commissioning - Older people Pool,Older People Mental Health City & South,Nursing Independent Sector
Cambridgeshire County Council,04-Aug-16,21272279-13759804,-568.83,Woodlands Care Centre,Care Establishment,2 - Commissioning - Older people Pool,Older People Mental Health City & South,Nursing Independent Sector
Cambridgeshire County Council,04-Aug-16,21272282-13759807,-568.83,Woodlands Care Centre,Care Establishment,2 - Commissioning - Older people Pool,Older People Mental Health City & South,Nursing Independent Sector
Cambridgeshire County Council,04-Aug-16,21272283-13759808,-568.83,Woodlands Care Centre,Care Establishment,2 - Commissioning - Older people Pool,Older People Mental Health City & South,Nursing Independent Sector
Cambridgeshire County Council,04-Aug-16,21272284-13759809,-568.83,Woodlands Care Centre,Care Establishment,2 - Commissioning - Older people Pool,Older People Mental Health City & South,Nursing Independent Sector
Cambridgeshire County Council,04-Aug-16,21272285-13759810,-568.83,Woodlands Care Centre,Care Establishment,2 - Commissioning - Older people Pool,Older People Mental Health City & South,Nursing Independent Sector
Cambridgeshire County Council,04-Aug-16,21272289-13759814,-568.83,Woodlands Care Centre,Care Establishment,2 - Commissioning - Older people Pool,Older People Mental Health City & South,Nursing Independent Sector
Cambridgeshire County Council,04-Aug-16,21272290-13759815,-568.83,Woodlands Care Centre,Care Establishment,2 - Commissioning - Older people Pool,Older People Mental Health City & South,Nursing Independent Sector
Cambridgeshire County Council,04-Aug-16,21272292-13759817,-568.83,Woodlands Care Centre,Care Establishment,2 - Commissioning - Older people Pool,Older People Mental Health City & South,Nursing Independent Sector
Cambridgeshire County Council,04-Aug-16,21272293-13759818,-568.83,Woodlands Care Centre,Care Establishment,2 - Commissioning - Older people Pool,Older People Mental Health City & South,Nursing Independent Sector
Cambridgeshire County Council,04-Aug-16,21272294-13759819,-568.83,Woodlands Care Centre,Care Establishment,2 - Commissioning - Older people Pool,Older People Mental Health City & South,Nursing Independent Sector
Cambridgeshire County Council,04-Aug-16,21272297-13759822,-568.83,Woodlands Care Centre,Care Establishment,2 - Commissioning - Older people Pool,Older People Mental Health City & South,Nursing Independent Sector
Cambridgeshire County Council,04-Aug-16,21272301-13759826,-568.83,Woodlands Care Centre,Care Establishment,2 - Commissioning - Older people Pool,Older People Mental Health City & South,Nursing Independent Sector
Cambridgeshire County Council,04-Aug-16,21272303-13759828,-568.83,Woodlands Care Centre,Care Establishment,2 - Commissioning - Older people Pool,Older People Mental Health City & South,Nursing Independent Sector
Cambridgeshire County Council,04-Aug-16,21272305-13759830,-568.83,Woodlands Care Centre,Care Establishment,2 - Commissioning - Older people Pool,Older People Mental Health City & South,Nursing Independent Sector
Cambridgeshire County Council,04-Aug-16,21272306-13759831,-568.83,Woodlands Care Centre,Care Establishment,2 - Commissioning - Older people Pool,Older People Mental Health City & South,Nursing Independent Sector
Cambridgeshire County Council,04-Aug-16,21272307-13759832,-568.83,Woodlands Care Centre,Care Establishment,2 - Commissioning - Older people Pool,Older People Mental Health City & South,Nursing Independent Sector
Cambridgeshire County Council,04-Aug-16,21272311-13759836,-568.83,Woodlands Care Centre,Care Establishment,2 - Commissioning - Older people Pool,Older People Mental Health City & South,Nursing Independent Sector
Cambridgeshire County Council,04-Aug-16,21272312-13759837,-568.83,Woodlands Care Centre,Care Establishment,2 - Commissioning - Older people Pool,Older People Mental Health City & South,Nursing Independent Sector
Cambridgeshire County Council,04-Aug-16,21272317-13759842,-568.83,Woodlands Care Centre,Care Establishment,2 - Commissioning - Older people Pool,Older People Mental Health City & South,Nursing Independent Sector
Cambridgeshire County Council,04-Aug-16,21272319-13759844,-568.83,Woodlands Care Centre,Care Establishment,2 - Commissioning - Older people Pool,Older People Mental Health City & South,Nursing Independent Sector
Cambridgeshire County Council,04-Aug-16,21272321-13759846,-568.83,Woodlands Care Centre,Care Establishment,2 - Commissioning - Older people Pool,Older People Mental Health City & South,Nursing Independent Sector
Cambridgeshire County Council,04-Aug-16,21272478-13759850,-568.83,Woodlands Care Centre,Care Establishment,2 - Commissioning - Older people Pool,Older People Mental Health City & South,Nursing Independent Sector
Cambridgeshire County Council,04-Aug-16,21276481-13759853,-568.83,Woodlands Care Centre,Care Establishment,2 - Commissioning - Older people Pool,Older People Mental Health City & South,Nursing Independent Sector
Cambridgeshire County Council,04-Aug-16,21276482-13759854,-568.83,Woodlands Care Centre,Care Establishment,2 - Commissioning - Older people Pool,Older People Mental Health City & South,Nursing Independent Sector
Cambridgeshire County Council,04-Aug-16,21276486-13759858,-568.83,Woodlands Care Centre,Care Establishment,2 - Commissioning - Older people Pool,Older People Mental Health City & South,Nursing Independent Sector
Cambridgeshire County Council,04-Aug-16,21276488-13759860,-568.83,Woodlands Care Centre,Care Establishment,2 - Commissioning - Older people Pool,Older People Mental Health City & South,Nursing Independent Sector
Cambridgeshire County Council,04-Aug-16,21276489-13759861,-568.83,Woodlands Care Centre,Care Establishment,2 - Commissioning - Older people Pool,Older People Mental Health City & South,Nursing Independent Sector
Cambridgeshire County Council,04-Aug-16,21276490-13759862,-568.83,Woodlands Care Centre,Care Establishment,2 - Commissioning - Older people Pool,Older People Mental Health City & South,Nursing Independent Sector
Cambridgeshire County Council,04-Aug-16,21276491-13759863,-568.83,Woodlands Care Centre,Care Establishment,2 - Commissioning - Older people Pool,Older People Mental Health City & South,Nursing Independent Sector
Cambridgeshire County Council,04-Aug-16,21276493-13759865,-568.83,Woodlands Care Centre,Care Establishment,2 - Commissioning - Older people Pool,Older People Mental Health City & South,Nursing Independent Sector
Cambridgeshire County Council,04-Aug-16,21276498-13759870,-568.83,Woodlands Care Centre,Care Establishment,2 - Commissioning - Older people Pool,Older People Mental Health City & South,Nursing Independent Sector
Cambridgeshire County Council,04-Aug-16,21276499-13759871,-568.83,Woodlands Care Centre,Care Establishment,2 - Commissioning - Older people Pool,Older People Mental Health City & South,Nursing Independent Sector
Cambridgeshire County Council,04-Aug-16,21276500-13759872,-568.83,Woodlands Care Centre,Care Establishment,2 - Commissioning - Older people Pool,Older People Mental Health City & South,Nursing Independent Sector
Cambridgeshire County Council,04-Aug-16,21276501-13759873,-568.83,Woodlands Care Centre,Care Establishment,2 - Commissioning - Older people Pool,Older People Mental Health City & South,Nursing Independent Sector
Cambridgeshire County Council,04-Aug-16,21276503-13759875,-568.83,Woodlands Care Centre,Care Establishment,2 - Commissioning - Older people Pool,Older People Mental Health City & South,Nursing Independent Sector
Cambridgeshire County Council,04-Aug-16,21276504-13759876,-568.83,Woodlands Care Centre,Care Establishment,2 - Commissioning - Older people Pool,Older People Mental Health City & South,Nursing Independent Sector
Cambridgeshire County Council,04-Aug-16,21276505-13759877,-568.83,Woodlands Care Centre,Care Establishment,2 - Commissioning - Older people Pool,Older People Mental Health City & South,Nursing Independent Sector
Cambridgeshire County Council,04-Aug-16,21276506-13759878,-568.83,Woodlands Care Centre,Care Establishment,2 - Commissioning - Older people Pool,Older People Mental Health City & South,Nursing Independent Sector
Cambridgeshire County Council,04-Aug-16,21276508-13759880,-568.83,Woodlands Care Centre,Care Establishment,2 - Commissioning - Older people Pool,Older People Mental Health City & South,Nursing Independent Sector
Cambridgeshire County Council,04-Aug-16,21276511-13759883,-568.83,Woodlands Care Centre,Care Establishment,2 - Commissioning - Older people Pool,Older People Mental Health City & South,Nursing Independent Sector
Cambridgeshire County Council,04-Aug-16,21276512-13759884,-568.83,Woodlands Care Centre,Care Establishment,2 - Commissioning - Older people Pool,Older People Mental Health City & South,Nursing Independent Sector
Cambridgeshire County Council,04-Aug-16,21276513-13759885,-568.83,Woodlands Care Centre,Care Establishment,2 - Commissioning - Older people Pool,Older People Mental Health City & South,Nursing Independent Sector
Cambridgeshire County Council,04-Aug-16,21276517-13759889,-568.83,Woodlands Care Centre,Care Establishment,2 - Commissioning - Older people Pool,Older People Mental Health City & South,Nursing Independent Sector
Cambridgeshire County Council,04-Aug-16,21276518-13759890,-568.83,Woodlands Care Centre,Care Establishment,2 - Commissioning - Older people Pool,Older People Mental Health City & South,Nursing Independent Sector
Cambridgeshire County Council,04-Aug-16,21276586-13759768,-568.83,Woodlands Care Centre,Care Establishment,2 - Commissioning - Older people Pool,Older People Mental Health City & South,Nursing Independent Sector
Cambridgeshire County Council,04-Aug-16,21276587-13759769,-568.83,Woodlands Care Centre,Care Establishment,2 - Commissioning - Older people Pool,Older People Mental Health City & South,Nursing Independent Sector
Cambridgeshire County Council,04-Aug-16,21276588-13759770,-568.83,Woodlands Care Centre,Care Establishment,2 - Commissioning - Older people Pool,Older People Mental Health City & South,Nursing Independent Sector
Cambridgeshire County Council,04-Aug-16,21276589-13759771,-568.83,Woodlands Care Centre,Care Establishment,2 - Commissioning - Older people Pool,Older People Mental Health City & South,Nursing Independent Sector
Cambridgeshire County Council,04-Aug-16,21276592-13759772,-568.83,Woodlands Care Centre,Care Establishment,2 - Commissioning - Older people Pool,Older People Mental Health City & South,Nursing Independent Sector
Cambridgeshire County Council,04-Aug-16,21276599-13759779,-568.83,Woodlands Care Centre,Care Establishment,2 - Commissioning - Older people Pool,Older People Mental Health City & South,Nursing Independent Sector
Cambridgeshire County Council,04-Aug-16,21276607-13759784,-568.83,Woodlands Care Centre,Care Establishment,2 - Commissioning - Older people Pool,Older People Mental Health City & South,Nursing Independent Sector
Cambridgeshire County Council,04-Aug-16,21276608-13759785,-568.83,Woodlands Care Centre,Care Establishment,2 - Commissioning - Older people Pool,Older People Mental Health City & South,Nursing Independent Sector
Cambridgeshire County Council,04-Aug-16,21276609-13759786,-568.83,Woodlands Care Centre,Care Establishment,2 - Commissioning - Older people Pool,Older People Mental Health City & South,Nursing Independent Sector
Cambridgeshire County Council,04-Aug-16,21277604-13759677,-568.83,Woodlands Care Centre,Care Establishment,2 - Commissioning - Older people Pool,Older People Mental Health City & South,Nursing Independent Sector
Cambridgeshire County Council,04-Aug-16,21277606-13759679,-568.83,Woodlands Care Centre,Care Establishment,2 - Commissioning - Older people Pool,Older People Mental Health City & South,Nursing Independent Sector
Cambridgeshire County Council,04-Aug-16,21277609-13759682,-568.83,Woodlands Care Centre,Care Establishment,2 - Commissioning - Older people Pool,Older People Mental Health City & South,Nursing Independent Sector
Cambridgeshire County Council,04-Aug-16,21277610-13759683,-568.83,Woodlands Care Centre,Care Establishment,2 - Commissioning - Older people Pool,Older People Mental Health City & South,Nursing Independent Sector
Cambridgeshire County Council,04-Aug-16,21277611-13759684,-568.83,Woodlands Care Centre,Care Establishment,2 - Commissioning - Older people Pool,Older People Mental Health City & South,Nursing Independent Sector
Cambridgeshire County Council,04-Aug-16,21277613-13759686,-568.83,Woodlands Care Centre,Care Establishment,2 - Commissioning - Older people Pool,Older People Mental Health City & South,Nursing Independent Sector
Cambridgeshire County Council,04-Aug-16,21277618-13759691,-568.83,Woodlands Care Centre,Care Establishment,2 - Commissioning - Older people Pool,Older People Mental Health City & South,Nursing Independent Sector
Cambridgeshire County Council,04-Aug-16,21278254-13759500,-568.83,Woodlands Care Centre,Care Establishment,2 - Commissioning - Older people Pool,Older People Mental Health City & South,Nursing Independent Sector
Cambridgeshire County Council,04-Aug-16,21278255-13759501,-568.83,Woodlands Care Centre,Care Establishment,2 - Commissioning - Older people Pool,Older People Mental Health City & South,Nursing Independent Sector
Cambridgeshire County Council,04-Aug-16,21278259-13759505,-568.83,Woodlands Care Centre,Care Establishment,2 - Commissioning - Older people Pool,Older People Mental Health City & South,Nursing Independent Sector
Cambridgeshire County Council,04-Aug-16,21278260-13759506,-568.83,Woodlands Care Centre,Care Establishment,2 - Commissioning - Older people Pool,Older People Mental Health City & South,Nursing Independent Sector
Cambridgeshire County Council,04-Aug-16,21278261-13759507,-568.83,Woodlands Care Centre,Care Establishment,2 - Commissioning - Older people Pool,Older People Mental Health City & South,Nursing Independent Sector
Cambridgeshire County Council,04-Aug-16,21278262-13759508,-568.83,Woodlands Care Centre,Care Establishment,2 - Commissioning - Older people Pool,Older People Mental Health City & South,Nursing Independent Sector
Cambridgeshire County Council,04-Aug-16,21278267-13759513,-568.83,Woodlands Care Centre,Care Establishment,2 - Commissioning - Older people Pool,Older People Mental Health City & South,Nursing Independent Sector
Cambridgeshire County Council,04-Aug-16,21278269-13759515,-568.83,Woodlands Care Centre,Care Establishment,2 - Commissioning - Older people Pool,Older People Mental Health City & South,Nursing Independent Sector
Cambridgeshire County Council,04-Aug-16,21278270-13759516,-568.83,Woodlands Care Centre,Care Establishment,2 - Commissioning - Older people Pool,Older People Mental Health City & South,Nursing Independent Sector
Cambridgeshire County Council,04-Aug-16,21278271-13759517,-568.83,Woodlands Care Centre,Care Establishment,2 - Commissioning - Older people Pool,Older People Mental Health City & South,Nursing Independent Sector
Cambridgeshire County Council,04-Aug-16,21278332-13759518,-568.83,Woodlands Care Centre,Care Establishment,2 - Commissioning - Older people Pool,Older People Mental Health City & South,Nursing Independent Sector
Cambridgeshire County Council,04-Aug-16,21278333-13759519,-568.83,Woodlands Care Centre,Care Establishment,2 - Commissioning - Older people Pool,Older People Mental Health City & South,Nursing Independent Sector
Cambridgeshire County Council,04-Aug-16,21278336-13759522,-568.83,Woodlands Care Centre,Care Establishment,2 - Commissioning - Older people Pool,Older People Mental Health City & South,Nursing Independent Sector
Cambridgeshire County Council,04-Aug-16,21278340-13759526,-568.83,Woodlands Care Centre,Care Establishment,2 - Commissioning - Older people Pool,Older People Mental Health City & South,Nursing Independent Sector
Cambridgeshire County Council,04-Aug-16,21278343-13759529,-568.83,Woodlands Care Centre,Care Establishment,2 - Commissioning - Older people Pool,Older People Mental Health City & South,Nursing Independent Sector
Cambridgeshire County Council,04-Aug-16,21278346-13759532,-568.83,Woodlands Care Centre,Care Establishment,2 - Commissioning - Older people Pool,Older People Mental Health City & South,Nursing Independent Sector
Cambridgeshire County Council,04-Aug-16,21278347-13759533,-568.83,Woodlands Care Centre,Care Establishment,2 - Commissioning - Older people Pool,Older People Mental Health City & South,Nursing Independent Sector
Cambridgeshire County Council,04-Aug-16,21278349-13759535,-568.83,Woodlands Care Centre,Care Establishment,2 - Commissioning - Older people Pool,Older People Mental Health City & South,Nursing Independent Sector
Cambridgeshire County Council,04-Aug-16,21278354-13759540,-568.83,Woodlands Care Centre,Care Establishment,2 - Commissioning - Older people Pool,Older People Mental Health City & South,Nursing Independent Sector
Cambridgeshire County Council,04-Aug-16,21278355-13759541,-568.83,Woodlands Care Centre,Care Establishment,2 - Commissioning - Older people Pool,Older People Mental Health City & South,Nursing Independent Sector
Cambridgeshire County Council,04-Aug-16,21278357-13759543,-568.83,Woodlands Care Centre,Care Establishment,2 - Commissioning - Older people Pool,Older People Mental Health City & South,Nursing Independent Sector
Cambridgeshire County Council,04-Aug-16,21278359-13759545,-568.83,Woodlands Care Centre,Care Establishment,2 - Commissioning - Older people Pool,Older People Mental Health City & South,Nursing Independent Sector
Cambridgeshire County Council,04-Aug-16,21278364-13759550,-568.83,Woodlands Care Centre,Care Establishment,2 - Commissioning - Older people Pool,Older People Mental Health City & South,Nursing Independent Sector
Cambridgeshire County Council,04-Aug-16,21278365-13759551,-568.83,Woodlands Care Centre,Care Establishment,2 - Commissioning - Older people Pool,Older People Mental Health City & South,Nursing Independent Sector
Cambridgeshire County Council,04-Aug-16,21278367-13759553,-568.83,Woodlands Care Centre,Care Establishment,2 - Commissioning - Older people Pool,Older People Mental Health City & South,Nursing Independent Sector
Cambridgeshire County Council,04-Aug-16,21278368-13759554,-568.83,Woodlands Care Centre,Care Establishment,2 - Commissioning - Older people Pool,Older People Mental Health City & South,Nursing Independent Sector
Cambridgeshire County Council,04-Aug-16,21278456-13759567,-568.83,Woodlands Care Centre,Care Establishment,2 - Commissioning - Older people Pool,Older People Mental Health City & South,Nursing Independent Sector
Cambridgeshire County Council,04-Aug-16,21278461-13759570,-568.83,Woodlands Care Centre,Care Establishment,2 - Commissioning - Older people Pool,Older People Mental Health City & South,Nursing Independent Sector
Cambridgeshire County Council,04-Aug-16,21278463-13759572,-568.83,Woodlands Care Centre,Care Establishment,2 - Commissioning - Older people Pool,Older People Mental Health City & South,Nursing Independent Sector
Cambridgeshire County Council,04-Aug-16,21278478-13759583,-568.83,Woodlands Care Centre,Care Establishment,2 - Commissioning - Older people Pool,Older People Mental Health City & South,Nursing Independent Sector
Cambridgeshire County Council,04-Aug-16,21278479-13759584,-568.83,Woodlands Care Centre,Care Establishment,2 - Commissioning - Older people Pool,Older People Mental Health City & South,Nursing Independent Sector
Cambridgeshire County Council,04-Aug-16,21278481-13759586,-568.83,Woodlands Care Centre,Care Establishment,2 - Commissioning - Older people Pool,Older People Mental Health City & South,Nursing Independent Sector
Cambridgeshire County Council,04-Aug-16,21278484-13759589,-568.83,Woodlands Care Centre,Care Establishment,2 - Commissioning - Older people Pool,Older People Mental Health City & South,Nursing Independent Sector
Cambridgeshire County Council,04-Aug-16,21278486-13759591,-568.83,Woodlands Care Centre,Care Establishment,2 - Commissioning - Older people Pool,Older People Mental Health City & South,Nursing Independent Sector
Cambridgeshire County Council,04-Aug-16,21278491-13759595,-568.83,Woodlands Care Centre,Care Establishment,2 - Commissioning - Older people Pool,Older People Mental Health City & South,Nursing Independent Sector
Cambridgeshire County Council,04-Aug-16,21278493-13759597,-568.83,Woodlands Care Centre,Care Establishment,2 - Commissioning - Older people Pool,Older People Mental Health City & South,Nursing Independent Sector
Cambridgeshire County Council,04-Aug-16,21278498-13759602,-568.83,Woodlands Care Centre,Care Establishment,2 - Commissioning - Older people Pool,Older People Mental Health City & South,Nursing Independent Sector
Cambridgeshire County Council,04-Aug-16,21278499-13759603,-568.83,Woodlands Care Centre,Care Establishment,2 - Commissioning - Older people Pool,Older People Mental Health City & South,Nursing Independent Sector
Cambridgeshire County Council,04-Aug-16,21278500-13759604,-568.83,Woodlands Care Centre,Care Establishment,2 - Commissioning - Older people Pool,Older People Mental Health City & South,Nursing Independent Sector
Cambridgeshire County Council,04-Aug-16,21278504-13759608,-568.83,Woodlands Care Centre,Care Establishment,2 - Commissioning - Older people Pool,Older People Mental Health City & South,Nursing Independent Sector
Cambridgeshire County Council,04-Aug-16,21278507-13759611,-568.83,Woodlands Care Centre,Care Establishment,2 - Commissioning - Older people Pool,Older People Mental Health City & South,Nursing Independent Sector
Cambridgeshire County Council,04-Aug-16,21278508-13759612,-568.83,Woodlands Care Centre,Care Establishment,2 - Commissioning - Older people Pool,Older People Mental Health City & South,Nursing Independent Sector
Cambridgeshire County Council,04-Aug-16,21278513-13759615,-568.83,Woodlands Care Centre,Care Establishment,2 - Commissioning - Older people Pool,Older People Mental Health City & South,Nursing Independent Sector
Cambridgeshire County Council,04-Aug-16,21278515-13759617,-568.83,Woodlands Care Centre,Care Establishment,2 - Commissioning - Older people Pool,Older People Mental Health City & South,Nursing Independent Sector
Cambridgeshire County Council,04-Aug-16,21278521-13759622,-568.83,Woodlands Care Centre,Care Establishment,2 - Commissioning - Older people Pool,Older People Mental Health City & South,Nursing Independent Sector
Cambridgeshire County Council,04-Aug-16,21278522-13759623,-568.83,Woodlands Care Centre,Care Establishment,2 - Commissioning - Older people Pool,Older People Mental Health City & South,Nursing Independent Sector
Cambridgeshire County Council,04-Aug-16,21278525-13759626,-568.83,Woodlands Care Centre,Care Establishment,2 - Commissioning - Older people Pool,Older People Mental Health City & South,Nursing Independent Sector
Cambridgeshire County Council,04-Aug-16,21278526-13759627,-568.83,Woodlands Care Centre,Care Establishment,2 - Commissioning - Older people Pool,Older People Mental Health City & South,Nursing Independent Sector
Cambridgeshire County Council,04-Aug-16,21278528-13759629,-568.83,Woodlands Care Centre,Care Establishment,2 - Commissioning - Older people Pool,Older People Mental Health City & South,Nursing Independent Sector
Cambridgeshire County Council,04-Aug-16,21278532-13759633,-568.83,Woodlands Care Centre,Care Establishment,2 - Commissioning - Older people Pool,Older People Mental Health City & South,Nursing Independent Sector
Cambridgeshire County Council,04-Aug-16,21278542-13759484,-568.83,Woodlands Care Centre,Care Establishment,2 - Commissioning - Older people Pool,Older People Mental Health City & South,Nursing Independent Sector
Cambridgeshire County Council,04-Aug-16,21278544-13759486,-568.83,Woodlands Care Centre,Care Establishment,2 - Commissioning - Older people Pool,Older People Mental Health City & South,Nursing Independent Sector
Cambridgeshire County Council,04-Aug-16,21278550-13759492,-568.83,Woodlands Care Centre,Care Establishment,2 - Commissioning - Older people Pool,Older People Mental Health City & South,Nursing Independent Sector
Cambridgeshire County Council,04-Aug-16,21278554-13759495,-568.83,Woodlands Care Centre,Care Establishment,2 - Commissioning - Older people Pool,Older People Mental Health City & South,Nursing Independent Sector
Cambridgeshire County Council,04-Aug-16,21278556-13759497,-568.83,Woodlands Care Centre,Care Establishment,2 - Commissioning - Older people Pool,Older People Mental Health City & South,Nursing Independent Sector
Cambridgeshire County Council,04-Aug-16,21278560-13759436,-568.83,Woodlands Care Centre,Care Establishment,2 - Commissioning - Older people Pool,Older People Mental Health City & South,Nursing Independent Sector
Cambridgeshire County Council,04-Aug-16,21278564-13759440,-568.83,Woodlands Care Centre,Care Establishment,2 - Commissioning - Older people Pool,Older People Mental Health City & South,Nursing Independent Sector
Cambridgeshire County Council,04-Aug-16,21278568-13759444,-568.83,Woodlands Care Centre,Care Establishment,2 - Commissioning - Older people Pool,Older People Mental Health City & South,Nursing Independent Sector
Cambridgeshire County Council,04-Aug-16,21278569-13759445,-568.83,Woodlands Care Centre,Care Establishment,2 - Commissioning - Older people Pool,Older People Mental Health City & South,Nursing Independent Sector
Cambridgeshire County Council,04-Aug-16,21278571-13759447,-568.83,Woodlands Care Centre,Care Establishment,2 - Commissioning - Older people Pool,Older People Mental Health City & South,Nursing Independent Sector
Cambridgeshire County Council,04-Aug-16,21278574-13759450,-568.83,Woodlands Care Centre,Care Establishment,2 - Commissioning - Older people Pool,Older People Mental Health City & South,Nursing Independent Sector
Cambridgeshire County Council,04-Aug-16,21278575-13759451,-568.83,Woodlands Care Centre,Care Establishment,2 - Commissioning - Older people Pool,Older People Mental Health City & South,Nursing Independent Sector
Cambridgeshire County Council,04-Aug-16,21278576-13759452,-568.83,Woodlands Care Centre,Care Establishment,2 - Commissioning - Older people Pool,Older People Mental Health City & South,Nursing Independent Sector
Cambridgeshire County Council,04-Aug-16,21278577-13759453,-568.83,Woodlands Care Centre,Care Establishment,2 - Commissioning - Older people Pool,Older People Mental Health City & South,Nursing Independent Sector
Cambridgeshire County Council,04-Aug-16,21278581-13759456,-568.83,Woodlands Care Centre,Care Establishment,2 - Commissioning - Older people Pool,Older People Mental Health City & South,Nursing Independent Sector
Cambridgeshire County Council,04-Aug-16,21278582-13759457,-568.83,Woodlands Care Centre,Care Establishment,2 - Commissioning - Older people Pool,Older People Mental Health City & South,Nursing Independent Sector
Cambridgeshire County Council,04-Aug-16,21278590-13759463,-568.83,Woodlands Care Centre,Care Establishment,2 - Commissioning - Older people Pool,Older People Mental Health City & South,Nursing Independent Sector
Cambridgeshire County Council,04-Aug-16,21278867-13759465,-568.83,Woodlands Care Centre,Care Establishment,2 - Commissioning - Older people Pool,Older People Mental Health City & South,Nursing Independent Sector
Cambridgeshire County Council,04-Aug-16,21278868-13759466,-568.83,Woodlands Care Centre,Care Establishment,2 - Commissioning - Older people Pool,Older People Mental Health City & South,Nursing Independent Sector
Cambridgeshire County Council,04-Aug-16,21278870-13759468,-568.83,Woodlands Care Centre,Care Establishment,2 - Commissioning - Older people Pool,Older People Mental Health City & South,Nursing Independent Sector
Cambridgeshire County Council,04-Aug-16,21278873-13759471,-568.83,Woodlands Care Centre,Care Establishment,2 - Commissioning - Older people Pool,Older People Mental Health City & South,Nursing Independent Sector
Cambridgeshire County Council,04-Aug-16,21278875-13759473,-568.83,Woodlands Care Centre,Care Establishment,2 - Commissioning - Older people Pool,Older People Mental Health City & South,Nursing Independent Sector
Cambridgeshire County Council,04-Aug-16,21278877-13759475,-568.83,Woodlands Care Centre,Care Establishment,2 - Commissioning - Older people Pool,Older People Mental Health City & South,Nursing Independent Sector
Cambridgeshire County Council,04-Aug-16,21278880-13759478,-568.83,Woodlands Care Centre,Care Establishment,2 - Commissioning - Older people Pool,Older People Mental Health City & South,Nursing Independent Sector
Cambridgeshire County Council,04-Aug-16,21278881-13759479,-568.83,Woodlands Care Centre,Care Establishment,2 - Commissioning - Older people Pool,Older People Mental Health City & South,Nursing Independent Sector
Cambridgeshire County Council,04-Aug-16,21278882-13759480,-568.83,Woodlands Care Centre,Care Establishment,2 - Commissioning - Older people Pool,Older People Mental Health City & South,Nursing Independent Sector
Cambridgeshire County Council,04-Aug-16,21278883-13759426,-568.83,Woodlands Care Centre,Care Establishment,2 - Commissioning - Older people Pool,Older People Mental Health City & South,Nursing Independent Sector
Cambridgeshire County Council,04-Aug-16,21278888-13759431,-568.83,Woodlands Care Centre,Care Establishment,2 - Commissioning - Older people Pool,Older People Mental Health City & South,Nursing Independent Sector
Cambridgeshire County Council,04-Aug-16,21279625-13759331,-568.83,Woodlands Care Centre,Care Establishment,2 - Commissioning - Older people Pool,Older People Mental Health City & South,Nursing Independent Sector
Cambridgeshire County Council,04-Aug-16,21279626-13759332,-568.83,Woodlands Care Centre,Care Establishment,2 - Commissioning - Older people Pool,Older People Mental Health City & South,Nursing Independent Sector
Cambridgeshire County Council,04-Aug-16,21279628-13759334,-568.83,Woodlands Care Centre,Care Establishment,2 - Commissioning - Older people Pool,Older People Mental Health City & South,Nursing Independent Sector
Cambridgeshire County Council,04-Aug-16,21279629-13759335,-568.83,Woodlands Care Centre,Care Establishment,2 - Commissioning - Older people Pool,Older People Mental Health City & South,Nursing Independent Sector
Cambridgeshire County Council,04-Aug-16,21279632-13759338,-568.83,Woodlands Care Centre,Care Establishment,2 - Commissioning - Older people Pool,Older People Mental Health City & South,Nursing Independent Sector
Cambridgeshire County Council,04-Aug-16,21279634-13759340,-568.83,Woodlands Care Centre,Care Establishment,2 - Commissioning - Older people Pool,Older People Mental Health City & South,Nursing Independent Sector
Cambridgeshire County Council,04-Aug-16,21279636-13759342,-568.83,Woodlands Care Centre,Care Establishment,2 - Commissioning - Older people Pool,Older People Mental Health City & South,Nursing Independent Sector
Cambridgeshire County Council,04-Aug-16,21279638-13759344,-568.83,Woodlands Care Centre,Care Establishment,2 - Commissioning - Older people Pool,Older People Mental Health City & South,Nursing Independent Sector
Cambridgeshire County Council,04-Aug-16,21279642-13759348,-568.83,Woodlands Care Centre,Care Establishment,2 - Commissioning - Older people Pool,Older People Mental Health City & South,Nursing Independent Sector
Cambridgeshire County Council,04-Aug-16,21279643-13759349,-568.83,Woodlands Care Centre,Care Establishment,2 - Commissioning - Older people Pool,Older People Mental Health City & South,Nursing Independent Sector
Cambridgeshire County Council,04-Aug-16,21279645-13759351,-568.83,Woodlands Care Centre,Care Establishment,2 - Commissioning - Older people Pool,Older People Mental Health City & South,Nursing Independent Sector
Cambridgeshire County Council,04-Aug-16,21279649-13759355,-568.83,Woodlands Care Centre,Care Establishment,2 - Commissioning - Older people Pool,Older People Mental Health City & South,Nursing Independent Sector
Cambridgeshire County Council,04-Aug-16,21279650-13759356,-568.83,Woodlands Care Centre,Care Establishment,2 - Commissioning - Older people Pool,Older People Mental Health City & South,Nursing Independent Sector
Cambridgeshire County Council,04-Aug-16,21279651-13759357,-568.83,Woodlands Care Centre,Care Establishment,2 - Commissioning - Older people Pool,Older People Mental Health City & South,Nursing Independent Sector
Cambridgeshire County Council,04-Aug-16,21279652-13759358,-568.83,Woodlands Care Centre,Care Establishment,2 - Commissioning - Older people Pool,Older People Mental Health City & South,Nursing Independent Sector
Cambridgeshire County Council,04-Aug-16,21279656-13759362,-568.83,Woodlands Care Centre,Care Establishment,2 - Commissioning - Older people Pool,Older People Mental Health City & South,Nursing Independent Sector
Cambridgeshire County Council,04-Aug-16,21279657-13759363,-568.83,Woodlands Care Centre,Care Establishment,2 - Commissioning - Older people Pool,Older People Mental Health City & South,Nursing Independent Sector
Cambridgeshire County Council,04-Aug-16,21279658-13759364,-568.83,Woodlands Care Centre,Care Establishment,2 - Commissioning - Older people Pool,Older People Mental Health City & South,Nursing Independent Sector
Cambridgeshire County Council,04-Aug-16,21279660-13759366,-568.83,Woodlands Care Centre,Care Establishment,2 - Commissioning - Older people Pool,Older People Mental Health City & South,Nursing Independent Sector
Cambridgeshire County Council,04-Aug-16,21279662-13759368,-568.83,Woodlands Care Centre,Care Establishment,2 - Commissioning - Older people Pool,Older People Mental Health City & South,Nursing Independent Sector
Cambridgeshire County Council,04-Aug-16,21279664-13759370,-568.83,Woodlands Care Centre,Care Establishment,2 - Commissioning - Older people Pool,Older People Mental Health City & South,Nursing Independent Sector
Cambridgeshire County Council,04-Aug-16,21279668-13759374,-568.83,Woodlands Care Centre,Care Establishment,2 - Commissioning - Older people Pool,Older People Mental Health City & South,Nursing Independent Sector
Cambridgeshire County Council,04-Aug-16,21279669-13759375,-568.83,Woodlands Care Centre,Care Establishment,2 - Commissioning - Older people Pool,Older People Mental Health City & South,Nursing Independent Sector
Cambridgeshire County Council,04-Aug-16,21279672-13759378,-568.83,Woodlands Care Centre,Care Establishment,2 - Commissioning - Older people Pool,Older People Mental Health City & South,Nursing Independent Sector
Cambridgeshire County Council,22-Aug-16,21097581-13846405,-567,Alliance Foster Care Ltd,Care Establishment,S&C,Placements - Social Care,Agency Placements - Out County
Cambridgeshire County Council,19-Aug-16,21183956-13827601,-566.39,Cherry Hinton Nursing Home,Care Establishment,2 - Commissioning - Older people Pool,Older People - City & South,Nursing Independent Sector
Cambridgeshire County Council,19-Aug-16,21183957-13827602,-566.39,Cherry Hinton Nursing Home,Care Establishment,2 - Commissioning - Older people Pool,Older People - City & South,Nursing Independent Sector
Cambridgeshire County Council,19-Aug-16,21183958-13827603,-566.39,Cherry Hinton Nursing Home,Care Establishment,2 - Commissioning - Older people Pool,Older People - City & South,Nursing Independent Sector
Cambridgeshire County Council,19-Aug-16,21183959-13827604,-566.39,Cherry Hinton Nursing Home,Care Establishment,2 - Commissioning - Older people Pool,Older People - City & South,Nursing Independent Sector
Cambridgeshire County Council,19-Aug-16,21183960-13827605,-566.39,Cherry Hinton Nursing Home,Care Establishment,2 - Commissioning - Older people Pool,Older People - City & South,Nursing Independent Sector
Cambridgeshire County Council,19-Aug-16,21183961-13827606,-566.39,Cherry Hinton Nursing Home,Care Establishment,2 - Commissioning - Older people Pool,Older People - City & South,Nursing Independent Sector
Cambridgeshire County Council,19-Aug-16,21183963-13827608,-566.39,Cherry Hinton Nursing Home,Care Establishment,2 - Commissioning - Older people Pool,Older People - City & South,Nursing Independent Sector
Cambridgeshire County Council,19-Aug-16,21183964-13827609,-566.39,Cherry Hinton Nursing Home,Care Establishment,2 - Commissioning - Older people Pool,Older People - City & South,Nursing Independent Sector
Cambridgeshire County Council,04-Aug-16,21277756-13759693,-559.73,Woodlands Care Centre,Care Establishment,2 - Commissioning - Older people Pool,Older People Mental Health City & South,Nursing Independent Sector
Cambridgeshire County Council,04-Aug-16,21277759-13759696,-559.73,Woodlands Care Centre,Care Establishment,2 - Commissioning - Older people Pool,Older People Mental Health City & South,Nursing Independent Sector
Cambridgeshire County Council,04-Aug-16,21277766-13759703,-559.73,Woodlands Care Centre,Care Establishment,2 - Commissioning - Older people Pool,Older People Mental Health City & South,Nursing Independent Sector
Cambridgeshire County Council,04-Aug-16,21277767-13759704,-559.73,Woodlands Care Centre,Care Establishment,2 - Commissioning - Older people Pool,Older People Mental Health City & South,Nursing Independent Sector
Cambridgeshire County Council,04-Aug-16,21277768-13759705,-559.73,Woodlands Care Centre,Care Establishment,2 - Commissioning - Older people Pool,Older People Mental Health City & South,Nursing Independent Sector
Cambridgeshire County Council,04-Aug-16,21277771-13759708,-559.73,Woodlands Care Centre,Care Establishment,2 - Commissioning - Older people Pool,Older People Mental Health City & South,Nursing Independent Sector
Cambridgeshire County Council,04-Aug-16,21277776-13759712,-559.73,Woodlands Care Centre,Care Establishment,2 - Commissioning - Older people Pool,Older People Mental Health City & South,Nursing Independent Sector
Cambridgeshire County Council,04-Aug-16,21277778-13759714,-559.73,Woodlands Care Centre,Care Establishment,2 - Commissioning - Older people Pool,Older People Mental Health City & South,Nursing Independent Sector
Cambridgeshire County Council,04-Aug-16,21277779-13759715,-559.73,Woodlands Care Centre,Care Establishment,2 - Commissioning - Older people Pool,Older People Mental Health City & South,Nursing Independent Sector
Cambridgeshire County Council,04-Aug-16,21277781-13759717,-559.73,Woodlands Care Centre,Care Establishment,2 - Commissioning - Older people Pool,Older People Mental Health City & South,Nursing Independent Sector
Cambridgeshire County Council,04-Aug-16,21277784-13759720,-559.73,Woodlands Care Centre,Care Establishment,2 - Commissioning - Older people Pool,Older People Mental Health City & South,Nursing Independent Sector
Cambridgeshire County Council,04-Aug-16,21277789-13759725,-559.73,Woodlands Care Centre,Care Establishment,2 - Commissioning - Older people Pool,Older People Mental Health City & South,Nursing Independent Sector
Cambridgeshire County Council,04-Aug-16,21277790-13759726,-559.73,Woodlands Care Centre,Care Establishment,2 - Commissioning - Older people Pool,Older People Mental Health City & South,Nursing Independent Sector
Cambridgeshire County Council,04-Aug-16,21277791-13759727,-559.73,Woodlands Care Centre,Care Establishment,2 - Commissioning - Older people Pool,Older People Mental Health City & South,Nursing Independent Sector
Cambridgeshire County Council,04-Aug-16,21277792-13759728,-559.73,Woodlands Care Centre,Care Establishment,2 - Commissioning - Older people Pool,Older People Mental Health City & South,Nursing Independent Sector
Cambridgeshire County Council,04-Aug-16,21277793-13759729,-559.73,Woodlands Care Centre,Care Establishment,2 - Commissioning - Older people Pool,Older People Mental Health City & South,Nursing Independent Sector
Cambridgeshire County Council,04-Aug-16,21277795-13759731,-559.73,Woodlands Care Centre,Care Establishment,2 - Commissioning - Older people Pool,Older People Mental Health City & South,Nursing Independent Sector
Cambridgeshire County Council,04-Aug-16,21277802-13759738,-559.73,Woodlands Care Centre,Care Establishment,2 - Commissioning - Older people Pool,Older People Mental Health City & South,Nursing Independent Sector
Cambridgeshire County Council,04-Aug-16,21277803-13759739,-559.73,Woodlands Care Centre,Care Establishment,2 - Commissioning - Older people Pool,Older People Mental Health City & South,Nursing Independent Sector
Cambridgeshire County Council,04-Aug-16,21277804-13759740,-559.73,Woodlands Care Centre,Care Establishment,2 - Commissioning - Older people Pool,Older People Mental Health City & South,Nursing Independent Sector
Cambridgeshire County Council,04-Aug-16,21277806-13759742,-559.73,Woodlands Care Centre,Care Establishment,2 - Commissioning - Older people Pool,Older People Mental Health City & South,Nursing Independent Sector
Cambridgeshire County Council,04-Aug-16,21277808-13759744,-559.73,Woodlands Care Centre,Care Establishment,2 - Commissioning - Older people Pool,Older People Mental Health City & South,Nursing Independent Sector
Cambridgeshire County Council,04-Aug-16,21277809-13759745,-559.73,Woodlands Care Centre,Care Establishment,2 - Commissioning - Older people Pool,Older People Mental Health City & South,Nursing Independent Sector
Cambridgeshire County Council,04-Aug-16,21277814-13759750,-559.73,Woodlands Care Centre,Care Establishment,2 - Commissioning - Older people Pool,Older People Mental Health City & South,Nursing Independent Sector
Cambridgeshire County Council,04-Aug-16,21277820-13759756,-559.73,Woodlands Care Centre,Care Establishment,2 - Commissioning - Older people Pool,Older People Mental Health City & South,Nursing Independent Sector
Cambridgeshire County Council,04-Aug-16,21277827-13759763,-559.73,Woodlands Care Centre,Care Establishment,2 - Commissioning - Older people Pool,Older People Mental Health City & South,Nursing Independent Sector
Cambridgeshire County Council,04-Aug-16,21277840-13759666,-559.73,Woodlands Care Centre,Care Establishment,2 - Commissioning - Older people Pool,Older People Mental Health City & South,Nursing Independent Sector
Cambridgeshire County Council,04-Aug-16,21277841-13759667,-559.73,Woodlands Care Centre,Care Establishment,2 - Commissioning - Older people Pool,Older People Mental Health City & South,Nursing Independent Sector
Cambridgeshire County Council,04-Aug-16,21277842-13759668,-559.73,Woodlands Care Centre,Care Establishment,2 - Commissioning - Older people Pool,Older People Mental Health City & South,Nursing Independent Sector
Cambridgeshire County Council,04-Aug-16,21277843-13759669,-559.73,Woodlands Care Centre,Care Establishment,2 - Commissioning - Older people Pool,Older People Mental Health City & South,Nursing Independent Sector
Cambridgeshire County Council,04-Aug-16,21277847-13759673,-559.73,Woodlands Care Centre,Care Establishment,2 - Commissioning - Older people Pool,Older People Mental Health City & South,Nursing Independent Sector
Cambridgeshire County Council,04-Aug-16,21277848-13759674,-559.73,Woodlands Care Centre,Care Establishment,2 - Commissioning - Older people Pool,Older People Mental Health City & South,Nursing Independent Sector
Cambridgeshire County Council,04-Aug-16,21277849-13759675,-559.73,Woodlands Care Centre,Care Establishment,2 - Commissioning - Older people Pool,Older People Mental Health City & South,Nursing Independent Sector
Cambridgeshire County Council,04-Aug-16,21277854-13759642,-559.73,Woodlands Care Centre,Care Establishment,2 - Commissioning - Older people Pool,Older People Mental Health City & South,Nursing Independent Sector
Cambridgeshire County Council,04-Aug-16,21277856-13759644,-559.73,Woodlands Care Centre,Care Establishment,2 - Commissioning - Older people Pool,Older People Mental Health City & South,Nursing Independent Sector
Cambridgeshire County Council,04-Aug-16,21277860-13759648,-559.73,Woodlands Care Centre,Care Establishment,2 - Commissioning - Older people Pool,Older People Mental Health City & South,Nursing Independent Sector
Cambridgeshire County Council,04-Aug-16,21277863-13759650,-559.73,Woodlands Care Centre,Care Establishment,2 - Commissioning - Older people Pool,Older People Mental Health City & South,Nursing Independent Sector
Cambridgeshire County Council,04-Aug-16,21277865-13759652,-559.73,Woodlands Care Centre,Care Establishment,2 - Commissioning - Older people Pool,Older People Mental Health City & South,Nursing Independent Sector
Cambridgeshire County Council,04-Aug-16,21277868-13759655,-559.73,Woodlands Care Centre,Care Establishment,2 - Commissioning - Older people Pool,Older People Mental Health City & South,Nursing Independent Sector
Cambridgeshire County Council,04-Aug-16,21277869-13759656,-559.73,Woodlands Care Centre,Care Establishment,2 - Commissioning - Older people Pool,Older People Mental Health City & South,Nursing Independent Sector
Cambridgeshire County Council,04-Aug-16,21278936-13759424,-559.73,Woodlands Care Centre,Care Establishment,2 - Commissioning - Older people Pool,Older People Mental Health City & South,Nursing Independent Sector
Cambridgeshire County Council,04-Aug-16,21279719-13759388,-559.73,Woodlands Care Centre,Care Establishment,2 - Commissioning - Older people Pool,Older People Mental Health City & South,Nursing Independent Sector
Cambridgeshire County Council,04-Aug-16,21279722-13759391,-559.73,Woodlands Care Centre,Care Establishment,2 - Commissioning - Older people Pool,Older People Mental Health City & South,Nursing Independent Sector
Cambridgeshire County Council,04-Aug-16,21279723-13759392,-559.73,Woodlands Care Centre,Care Establishment,2 - Commissioning - Older people Pool,Older People Mental Health City & South,Nursing Independent Sector
Cambridgeshire County Council,04-Aug-16,21279725-13759394,-559.73,Woodlands Care Centre,Care Establishment,2 - Commissioning - Older people Pool,Older People Mental Health City & South,Nursing Independent Sector
Cambridgeshire County Council,04-Aug-16,21279728-13759397,-559.73,Woodlands Care Centre,Care Establishment,2 - Commissioning - Older people Pool,Older People Mental Health City & South,Nursing Independent Sector
Cambridgeshire County Council,04-Aug-16,21279729-13759398,-559.73,Woodlands Care Centre,Care Establishment,2 - Commissioning - Older people Pool,Older People Mental Health City & South,Nursing Independent Sector
Cambridgeshire County Council,04-Aug-16,21279732-13759401,-559.73,Woodlands Care Centre,Care Establishment,2 - Commissioning - Older people Pool,Older People Mental Health City & South,Nursing Independent Sector
Cambridgeshire County Council,04-Aug-16,21279734-13759403,-559.73,Woodlands Care Centre,Care Establishment,2 - Commissioning - Older people Pool,Older People Mental Health City & South,Nursing Independent Sector
Cambridgeshire County Council,04-Aug-16,21279744-13759413,-559.73,Woodlands Care Centre,Care Establishment,2 - Commissioning - Older people Pool,Older People Mental Health City & South,Nursing Independent Sector
Cambridgeshire County Council,19-Aug-16,21412490-13820865,-550.08,Meadows Homecare Services,Care Establishment,2 - Commissioning - Older people Pool,Hunts O P  Team,Day and Domicillary Care Independent Sector
Cambridgeshire County Council,25-Aug-16,21464055-13871588,-548.7,Aria Court,Care Establishment,2 - Commissioning - Older people Pool,Older People Mental Health Fenland,Nursing Independent Sector
Cambridgeshire County Council,19-Aug-16,21177272-13837048,-543.97,Orchard House Nursing Home,Care Establishment,2 - Commissioning - Older people Pool,Older People Mental Health Fenland,Nursing Independent Sector
Cambridgeshire County Council,19-Aug-16,21177273-13837049,-543.97,Orchard House Nursing Home,Care Establishment,2 - Commissioning - Older people Pool,Older People Mental Health Fenland,Nursing Independent Sector
Cambridgeshire County Council,19-Aug-16,21177274-13837050,-543.97,Orchard House Nursing Home,Care Establishment,2 - Commissioning - Older people Pool,Older People Mental Health Fenland,Nursing Independent Sector
Cambridgeshire County Council,11-Aug-16,21323417-13788191,-540,Firgrove House,Care Establishment,2 - Commissioning - Older people Pool,Older People - City & South,Residential Independent Sector
Cambridgeshire County Council,19-Aug-16,21176895-13838927,-540,The Cambridge Nursing Centre,Care Establishment,2 - Commissioning - Older people Pool,Older People Mental Health E Cambs,Nursing Independent Sector
Cambridgeshire County Council,19-Aug-16,21418477-13837486,-524,Woodlands Care Centre,Care Establishment,3 - Operations - Countywide Services,Countywide PD Service - Care,Nursing Independent Sector
Cambridgeshire County Council,11-Aug-16,21323857-13789397,-523.33,Buchan Healthcare Ltd,Care Establishment,2 - Commissioning - Older people Pool,Older People - City & South,Residential Independent Sector
Cambridgeshire County Council,04-Aug-16,21277234-13757743,-515.51,Midas Care Ltd,Care Establishment,3 - Operations - Countywide Services,Countywide PD Service - Care,Day and Domicillary Care Independent Sector
Cambridgeshire County Council,04-Aug-16,21177960-13759263,-514.53,Midfield Lodge Care Centre,Care Establishment,2 - Commissioning - Older people Pool,Older People - City & South,Nursing Independent Sector
Cambridgeshire County Council,19-Aug-16,21278216-13820709,-514.44,Iceni House#1,Care Establishment,3 - Operations - Countywide Services,Countywide PD Service - Care,Nursing Independent Sector
Cambridgeshire County Council,19-Aug-16,21278217-13820710,-514.44,Iceni House#1,Care Establishment,3 - Operations - Countywide Services,Countywide PD Service - Care,Nursing Independent Sector
Cambridgeshire County Council,19-Aug-16,21278218-13820711,-514.44,Iceni House#1,Care Establishment,3 - Operations - Countywide Services,Countywide PD Service - Care,Nursing Independent Sector
Cambridgeshire County Council,19-Aug-16,21278219-13820712,-514.44,Iceni House#1,Care Establishment,3 - Operations - Countywide Services,Countywide PD Service - Care,Nursing Independent Sector
Cambridgeshire County Council,19-Aug-16,21278222-13820715,-514.44,Iceni House#1,Care Establishment,3 - Operations - Countywide Services,Countywide PD Service - Care,Nursing Independent Sector
Cambridgeshire County Council,19-Aug-16,21278223-13820716,-514.44,Iceni House#1,Care Establishment,3 - Operations - Countywide Services,Countywide PD Service - Care,Nursing Independent Sector
Cambridgeshire County Council,19-Aug-16,21278224-13820717,-514.44,Iceni House#1,Care Establishment,3 - Operations - Countywide Services,Countywide PD Service - Care,Nursing Independent Sector
Cambridgeshire County Council,19-Aug-16,21278230-13820723,-514.44,Iceni House#1,Care Establishment,3 - Operations - Countywide Services,Countywide PD Service - Care,Nursing Independent Sector
Cambridgeshire County Council,19-Aug-16,21278235-13820728,-514.44,Iceni House#1,Care Establishment,3 - Operations - Countywide Services,Countywide PD Service - Care,Nursing Independent Sector
Cambridgeshire County Council,19-Aug-16,21278236-13820729,-514.44,Iceni House#1,Care Establishment,3 - Operations - Countywide Services,Countywide PD Service - Care,Nursing Independent Sector
Cambridgeshire County Council,19-Aug-16,21278237-13820730,-514.44,Iceni House#1,Care Establishment,3 - Operations - Countywide Services,Countywide PD Service - Care,Nursing Independent Sector
Cambridgeshire County Council,19-Aug-16,21278238-13820731,-514.44,Iceni House#1,Care Establishment,3 - Operations - Countywide Services,Countywide PD Service - Care,Nursing Independent Sector
Cambridgeshire County Council,19-Aug-16,21278243-13820736,-514.44,Iceni House#1,Care Establishment,3 - Operations - Countywide Services,Countywide PD Service - Care,Nursing Independent Sector
Cambridgeshire County Council,19-Aug-16,21426189-13840960,-514.29,Granta Housing- 71 /73 Fen Road,Care Establishment,2 - Operations - Learning Disability,LDP City Locality - Care,Nursing Independent Sector
Cambridgeshire County Council,19-Aug-16,21416029-13836840,-512.12,Mihomecare Ltd (Enara Hunts),Care Establishment,2 - Commissioning - Older people Pool,Hunts O P  Team,Day and Domicillary Care Independent Sector
Cambridgeshire County Council,19-Aug-16,21412137-13833011,-509.6,Abbey Healthcare (Huntingdon) Ltd,Care Establishment,2 - Commissioning - Older people Pool,Hunts O P  Team,Nursing Independent Sector
Cambridgeshire County Council,19-Aug-16,21412143-13833013,-509.6,Abbey Healthcare (Huntingdon) Ltd,Care Establishment,2 - Commissioning - Older people Pool,Hunts O P  Team,Nursing Independent Sector
Cambridgeshire County Council,19-Aug-16,21412148-13833016,-509.6,Abbey Healthcare (Huntingdon) Ltd,Care Establishment,2 - Commissioning - Older people Pool,Hunts O P  Team,Nursing Independent Sector
Cambridgeshire County Council,19-Aug-16,21412150-13833017,-509.6,Abbey Healthcare (Huntingdon) Ltd,Care Establishment,2 - Commissioning - Older people Pool,Hunts O P  Team,Nursing Independent Sector
Cambridgeshire County Council,19-Aug-16,21412155-13833019,-509.6,Abbey Healthcare (Huntingdon) Ltd,Care Establishment,2 - Commissioning - Older people Pool,Hunts O P  Team,Nursing Independent Sector
Cambridgeshire County Council,19-Aug-16,21412162-13833021,-509.6,Abbey Healthcare (Huntingdon) Ltd,Care Establishment,2 - Commissioning - Older people Pool,Hunts O P  Team,Nursing Independent Sector
Cambridgeshire County Council,19-Aug-16,21412165-13833022,-509.6,Abbey Healthcare (Huntingdon) Ltd,Care Establishment,2 - Commissioning - Older people Pool,Hunts O P  Team,Nursing Independent Sector
Cambridgeshire County Council,19-Aug-16,21412168-13833024,-509.6,Abbey Healthcare (Huntingdon) Ltd,Care Establishment,2 - Commissioning - Older people Pool,Hunts O P  Team,Nursing Independent Sector
Cambridgeshire County Council,19-Aug-16,21412176-13833028,-509.6,Abbey Healthcare (Huntingdon) Ltd,Care Establishment,2 - Commissioning - Older people Pool,Hunts O P  Team,Nursing Independent Sector
Cambridgeshire County Council,19-Aug-16,21412177-13833029,-509.6,Abbey Healthcare (Huntingdon) Ltd,Care Establishment,2 - Commissioning - Older people Pool,Hunts O P  Team,Nursing Independent Sector
Cambridgeshire County Council,19-Aug-16,21412182-13833033,-509.6,Abbey Healthcare (Huntingdon) Ltd,Care Establishment,2 - Commissioning - Older people Pool,Hunts O P  Team,Nursing Independent Sector
Cambridgeshire County Council,19-Aug-16,21412185-13833034,-509.6,Abbey Healthcare (Huntingdon) Ltd,Care Establishment,2 - Commissioning - Older people Pool,Hunts O P  Team,Nursing Independent Sector
Cambridgeshire County Council,19-Aug-16,21412186-13833035,-509.6,Abbey Healthcare (Huntingdon) Ltd,Care Establishment,2 - Commissioning - Older people Pool,Hunts O P  Team,Nursing Independent Sector
Cambridgeshire County Council,19-Aug-16,21412190-13833036,-509.6,Abbey Healthcare (Huntingdon) Ltd,Care Establishment,2 - Commissioning - Older people Pool,Hunts O P  Team,Nursing Independent Sector
Cambridgeshire County Council,19-Aug-16,21412191-13833037,-509.6,Abbey Healthcare (Huntingdon) Ltd,Care Establishment,2 - Commissioning - Older people Pool,Hunts O P  Team,Nursing Independent Sector
Cambridgeshire County Council,19-Aug-16,21412192-13833038,-509.6,Abbey Healthcare (Huntingdon) Ltd,Care Establishment,2 - Commissioning - Older people Pool,Hunts O P  Team,Nursing Independent Sector
Cambridgeshire County Council,19-Aug-16,21412193-13833039,-509.6,Abbey Healthcare (Huntingdon) Ltd,Care Establishment,2 - Commissioning - Older people Pool,Hunts O P  Team,Nursing Independent Sector
Cambridgeshire County Council,19-Aug-16,21412197-13833041,-509.6,Abbey Healthcare (Huntingdon) Ltd,Care Establishment,2 - Commissioning - Older people Pool,Hunts O P  Team,Nursing Independent Sector
Cambridgeshire County Council,19-Aug-16,21412200-13833043,-509.6,Abbey Healthcare (Huntingdon) Ltd,Care Establishment,2 - Commissioning - Older people Pool,Hunts O P  Team,Nursing Independent Sector
Cambridgeshire County Council,19-Aug-16,21412201-13833044,-509.6,Abbey Healthcare (Huntingdon) Ltd,Care Establishment,2 - Commissioning - Older people Pool,Hunts O P  Team,Nursing Independent Sector
Cambridgeshire County Council,19-Aug-16,21180017-13840407,-508.8,Ringshill Care Home,Care Establishment,2 - Commissioning - Older people Pool,Older People - Fenland,Residential Independent Sector
Cambridgeshire County Council,19-Aug-16,21180019-13840408,-508.8,Ringshill Care Home,Care Establishment,2 - Commissioning - Older people Pool,Older People - Fenland,Residential Independent Sector
Cambridgeshire County Council,19-Aug-16,21180024-13840412,-508.8,Ringshill Care Home,Care Establishment,2 - Commissioning - Older people Pool,Older People - Fenland,Residential Independent Sector
Cambridgeshire County Council,19-Aug-16,21180025-13840413,-508.8,Ringshill Care Home,Care Establishment,2 - Commissioning - Older people Pool,Older People - Fenland,Residential Independent Sector
Cambridgeshire County Council,19-Aug-16,21180028-13840415,-508.8,Ringshill Care Home,Care Establishment,2 - Commissioning - Older people Pool,Older People - Fenland,Residential Independent Sector
Cambridgeshire County Council,19-Aug-16,21180029-13840416,-508.8,Ringshill Care Home,Care Establishment,2 - Commissioning - Older people Pool,Older People - Fenland,Residential Independent Sector
Cambridgeshire County Council,19-Aug-16,21180040-13840425,-508.8,Ringshill Care Home,Care Establishment,2 - Commissioning - Older people Pool,Older People - Fenland,Residential Independent Sector
Cambridgeshire County Council,19-Aug-16,21180042-13840427,-508.8,Ringshill Care Home,Care Establishment,2 - Commissioning - Older people Pool,Older People - Fenland,Residential Independent Sector
Cambridgeshire County Council,19-Aug-16,21180043-13840428,-508.8,Ringshill Care Home,Care Establishment,2 - Commissioning - Older people Pool,Older People - Fenland,Residential Independent Sector
Cambridgeshire County Council,19-Aug-16,21180048-13840432,-508.8,Ringshill Care Home,Care Establishment,2 - Commissioning - Older people Pool,Older People - Fenland,Residential Independent Sector
Cambridgeshire County Council,19-Aug-16,21180052-13840436,-508.8,Ringshill Care Home,Care Establishment,2 - Commissioning - Older people Pool,Older People - Fenland,Residential Independent Sector
Cambridgeshire County Council,19-Aug-16,21180053-13840437,-508.8,Ringshill Care Home,Care Establishment,2 - Commissioning - Older people Pool,Older People - Fenland,Residential Independent Sector
Cambridgeshire County Council,19-Aug-16,21180054-13840438,-508.8,Ringshill Care Home,Care Establishment,2 - Commissioning - Older people Pool,Older People - Fenland,Residential Independent Sector
Cambridgeshire County Council,19-Aug-16,21180055-13840439,-508.8,Ringshill Care Home,Care Establishment,2 - Commissioning - Older people Pool,Older People - Fenland,Residential Independent Sector
Cambridgeshire County Council,19-Aug-16,21180062-13840444,-508.8,Ringshill Care Home,Care Establishment,2 - Commissioning - Older people Pool,Older People - Fenland,Residential Independent Sector
Cambridgeshire County Council,04-Aug-16,21278465-13759574,-502.68,Woodlands Care Centre,Care Establishment,2 - Commissioning - Older people Pool,Older People Mental Health City & South,Nursing Independent Sector
Cambridgeshire County Council,19-Aug-16,21423882-13829531,-501.12,Conquest Care Homes Peterborough,Care Establishment,2 - Operations - Learning Disability,LDP City Locality - Care,Day and Domicillary Care Independent Sector
Cambridgeshire County Council,01-Aug-16,21171966-13739499,500,Martin Tempest,Trade Supplier,LRNG,ICT Service E Learning,Other Hired Contract Services
Cambridgeshire County Council,02-Aug-16,21188867-13746457,500,Redacted Personal Data,Individual,CSC,18-25 Service Team,Leaving Care Grants
Cambridgeshire County Council,04-Aug-16,21272258-13760025,500,Florence House(Ramsey) Residential Home For The Elderly,Care Establishment,2 - Commissioning - Older people Pool,Older People - City & South,Residential Independent Sector
Cambridgeshire County Council,04-Aug-16,21272259-13760026,500,Florence House(Ramsey) Residential Home For The Elderly,Care Establishment,2 - Commissioning - Older people Pool,Older People - City & South,Residential Independent Sector
Cambridgeshire County Council,04-Aug-16,21272260-13760027,500,Florence House(Ramsey) Residential Home For The Elderly,Care Establishment,2 - Commissioning - Older people Pool,Older People - City & South,Residential Independent Sector
Cambridgeshire County Council,04-Aug-16,21272261-13760028,500,Florence House(Ramsey) Residential Home For The Elderly,Care Establishment,2 - Commissioning - Older people Pool,Older People - City & South,Residential Independent Sector
Cambridgeshire County Council,04-Aug-16,21284504-13756293,500,Hilton Park Care Centre,Care Establishment,LGSS,Miscellaneous - Other,Suspense/Other bodies Expenditure / Payments
Cambridgeshire County Council,09-Aug-16,21285962-13773150,500,Angela Burke,Education,S&C,Procurement - TA Therapy in Special Schools,Other Hired Contract Services
Cambridgeshire County Council,11-Aug-16,21323709-13789453,500,Rose Cottage Residential Home,Care Establishment,2 - Commissioning - Older people Pool,Hunts O P  Team,Residential Independent Sector
Cambridgeshire County Council,11-Aug-16,21323710-13789454,500,Rose Cottage Residential Home,Care Establishment,2 - Commissioning - Older people Pool,Hunts O P  Team,Residential Independent Sector
Cambridgeshire County Council,11-Aug-16,21323711-13789455,500,Rose Cottage Residential Home,Care Establishment,2 - Commissioning - Older people Pool,Hunts O P  Team,Residential Independent Sector
Cambridgeshire County Council,11-Aug-16,21323712-13789456,500,Rose Cottage Residential Home,Care Establishment,2 - Commissioning - Older people Pool,Hunts O P  Team,Residential Independent Sector
Cambridgeshire County Council,11-Aug-16,21323713-13789457,500,Rose Cottage Residential Home,Care Establishment,2 - Commissioning - Older people Pool,Hunts O P  Team,Residential Independent Sector
Cambridgeshire County Council,11-Aug-16,21323714-13789458,500,Rose Cottage Residential Home,Care Establishment,2 - Commissioning - Older people Pool,Hunts O P  Team,Residential Independent Sector
Cambridgeshire County Council,11-Aug-16,21323715-13789459,500,Rose Cottage Residential Home,Care Establishment,2 - Commissioning - Older people Pool,Hunts O P  Team,Residential Independent Sector
Cambridgeshire County Council,11-Aug-16,21323716-13789460,500,Rose Cottage Residential Home,Care Establishment,2 - Commissioning - Older people Pool,Hunts O P  Team,Residential Independent Sector
Cambridgeshire County Council,11-Aug-16,21323717-13789461,500,Rose Cottage Residential Home,Care Establishment,2 - Commissioning - Older people Pool,Hunts O P  Team,Residential Independent Sector
Cambridgeshire County Council,11-Aug-16,21323719-13789463,500,Rose Cottage Residential Home,Care Establishment,2 - Commissioning - Older people Pool,Hunts O P  Team,Residential Independent Sector
Cambridgeshire County Council,11-Aug-16,21323720-13789464,500,Rose Cottage Residential Home,Care Establishment,2 - Commissioning - Older people Pool,Hunts O P  Team,Residential Independent Sector
Cambridgeshire County Council,11-Aug-16,21323721-13789465,500,Rose Cottage Residential Home,Care Establishment,2 - Commissioning - Older people Pool,Hunts O P  Team,Residential Independent Sector
Cambridgeshire County Council,11-Aug-16,21323905-13789336,500,Abbey Healthcare (Huntingdon) Ltd,Care Establishment,2 - Commissioning - Older people Pool,Older People Mental Health Hunts,Nursing Independent Sector
Cambridgeshire County Council,19-Aug-16,21410063-13818268,500,Epsom (Residential Care Only (La/Nhs))(66784),Care Establishment,2 - Commissioning - Older people Pool,Older People - Fenland,Residential Independent Sector
Cambridgeshire County Council,19-Aug-16,21410064-13818269,500,Epsom (Residential Care Only (La/Nhs))(66784),Care Establishment,2 - Commissioning - Older people Pool,Older People - Fenland,Residential Independent Sector
Cambridgeshire County Council,19-Aug-16,21410065-13818270,500,Epsom (Residential Care Only (La/Nhs))(66784),Care Establishment,2 - Commissioning - Older people Pool,Older People - Fenland,Residential Independent Sector
Cambridgeshire County Council,19-Aug-16,21410066-13818271,500,Epsom (Residential Care Only (La/Nhs))(66784),Care Establishment,2 - Commissioning - Older people Pool,Older People - Fenland,Residential Independent Sector
Cambridgeshire County Council,19-Aug-16,21416709-13818282,500,Gokul Nivas Care Home,Care Establishment,2 - Commissioning - Older people Pool,Older People - Fenland,Residential Independent Sector
Cambridgeshire County Council,19-Aug-16,21416710-13818283,500,Gokul Nivas Care Home,Care Establishment,2 - Commissioning - Older people Pool,Older People - Fenland,Residential Independent Sector
Cambridgeshire County Council,19-Aug-16,21416711-13818284,500,Gokul Nivas Care Home,Care Establishment,2 - Commissioning - Older people Pool,Older People - Fenland,Residential Independent Sector
Cambridgeshire County Council,19-Aug-16,21416712-13818285,500,Gokul Nivas Care Home,Care Establishment,2 - Commissioning - Older people Pool,Older People - Fenland,Residential Independent Sector
Cambridgeshire County Council,19-Aug-16,21423083-13833110,500,The Gables Specialist Nursing Home,Care Establishment,2 - Commissioning - Older people Pool,Older People Mental Health Fenland,Residential Independent Sector
Cambridgeshire County Council,19-Aug-16,21423084-13833111,500,The Gables Specialist Nursing Home,Care Establishment,2 - Commissioning - Older people Pool,Older People Mental Health Fenland,Residential Independent Sector
Cambridgeshire County Council,19-Aug-16,21423086-13833112,500,The Gables Specialist Nursing Home,Care Establishment,2 - Commissioning - Older people Pool,Older People Mental Health Fenland,Residential Independent Sector
Cambridgeshire County Council,19-Aug-16,21423090-13833113,500,The Gables Specialist Nursing Home,Care Establishment,2 - Commissioning - Older people Pool,Older People Mental Health Fenland,Residential Independent Sector
Cambridgeshire County Council,19-Aug-16,21423309-13818256,500,Woodfield Court,Trade Supplier,2 - Commissioning - Older people Pool,East Cambs - O P Team,Residential Independent Sector
Cambridgeshire County Council,19-Aug-16,21423310-13818257,500,Woodfield Court,Trade Supplier,2 - Commissioning - Older people Pool,East Cambs - O P Team,Residential Independent Sector
Cambridgeshire County Council,19-Aug-16,21423311-13818258,500,Woodfield Court,Trade Supplier,2 - Commissioning - Older people Pool,East Cambs - O P Team,Residential Independent Sector
Cambridgeshire County Council,19-Aug-16,21423312-13818259,500,Woodfield Court,Trade Supplier,2 - Commissioning - Older people Pool,East Cambs - O P Team,Residential Independent Sector
Cambridgeshire County Council,22-Aug-16,21291834-13846160,500,Ben Bouzan,Education,LRNG,Cambs Music  County Ensembles,Pay - Casual Staff - Course Instructors
Cambridgeshire County Council,24-Aug-16,21439693-13860184,500,Cambian Healthcare Ltd,Care Establishment,S&C,Procurement - Out-County Hospitals,Education Recoupment
Cambridgeshire County Council,25-Aug-16,21467373-13869071,500,Redacted Personal Data,Parent/Guardian,3 - Operations - Countywide Services,Countywide PD Service - Care,Direct Payments - Social Services
Cambridgeshire County Council,25-Aug-16,21467374-13869072,500,Redacted Personal Data,Parent/Guardian,3 - Operations - Countywide Services,Countywide PD Service - Care,Direct Payments - Social Services
Cambridgeshire County Council,25-Aug-16,21467375-13869073,500,Redacted Personal Data,Parent/Guardian,3 - Operations - Countywide Services,Countywide PD Service - Care,Direct Payments - Social Services
Cambridgeshire County Council,25-Aug-16,21467376-13869074,500,Redacted Personal Data,Parent/Guardian,3 - Operations - Countywide Services,Countywide PD Service - Care,Direct Payments - Social Services
Cambridgeshire County Council,30-Aug-16,21319418-13888319,500,The National Working Group,Charity,CSC,Local Safeguarding Children's Board,Subscriptions
Cambridgeshire County Council,30-Aug-16,21496522-13888212,500,Redacted Personal Data,Individual,CSC,CSC Direct Payments,Direct Payments - Social Services
Cambridgeshire County Council,19-Aug-16,21414812-13834573,500.22,Home Meadow Ltd,Care Establishment,2 - Commissioning - Older people Pool,Older People - City & South,Residential Independent Sector
Cambridgeshire County Council,19-Aug-16,21414830-13834574,500.22,Home Meadow Ltd,Care Establishment,2 - Commissioning - Older people Pool,Older People - City & South,Residential Independent Sector
Cambridgeshire County Council,19-Aug-16,21414837-13834575,500.22,Home Meadow Ltd,Care Establishment,2 - Commissioning - Older people Pool,Older People - City & South,Residential Independent Sector
Cambridgeshire County Council,19-Aug-16,21414864-13834572,500.22,Home Meadow Ltd,Care Establishment,2 - Commissioning - Older people Pool,Older People - City & South,Residential Independent Sector
Cambridgeshire County Council,19-Aug-16,21416241-13834555,500.22,Home Meadow Ltd,Care Establishment,2 - Commissioning - Older people Pool,Older People - City & South,Residential Independent Sector
Cambridgeshire County Council,19-Aug-16,21416242-13834556,500.22,Home Meadow Ltd,Care Establishment,2 - Commissioning - Older people Pool,Older People - City & South,Residential Independent Sector
Cambridgeshire County Council,19-Aug-16,21416243-13834557,500.22,Home Meadow Ltd,Care Establishment,2 - Commissioning - Older people Pool,Older People - City & South,Residential Independent Sector
Cambridgeshire County Council,19-Aug-16,21416244-13834558,500.22,Home Meadow Ltd,Care Establishment,2 - Commissioning - Older people Pool,Older People - City & South,Residential Independent Sector
Cambridgeshire County Council,19-Aug-16,21419586-13834516,500.22,Home Meadow Ltd,Care Establishment,2 - Commissioning - Older people Pool,Older People - City & South,Residential Independent Sector
Cambridgeshire County Council,19-Aug-16,21419587-13834517,500.22,Home Meadow Ltd,Care Establishment,2 - Commissioning - Older people Pool,Older People - City & South,Residential Independent Sector
Cambridgeshire County Council,19-Aug-16,21419588-13834518,500.22,Home Meadow Ltd,Care Establishment,2 - Commissioning - Older people Pool,Older People - City & South,Residential Independent Sector
Cambridgeshire County Council,19-Aug-16,21419590-13834520,500.22,Home Meadow Ltd,Care Establishment,2 - Commissioning - Older people Pool,Older People - City & South,Residential Independent Sector
Cambridgeshire County Council,19-Aug-16,21419591-13834521,500.22,Home Meadow Ltd,Care Establishment,2 - Commissioning - Older people Pool,Older People - City & South,Residential Independent Sector
Cambridgeshire County Council,19-Aug-16,21419593-13834523,500.22,Home Meadow Ltd,Care Establishment,2 - Commissioning - Older people Pool,Older People - City & South,Residential Independent Sector
Cambridgeshire County Council,19-Aug-16,21419594-13834524,500.22,Home Meadow Ltd,Care Establishment,2 - Commissioning - Older people Pool,Older People - City & South,Residential Independent Sector
Cambridgeshire County Council,19-Aug-16,21419595-13834525,500.22,Home Meadow Ltd,Care Establishment,2 - Commissioning - Older people Pool,Older People - City & South,Residential Independent Sector
Cambridgeshire County Council,19-Aug-16,21419596-13834526,500.22,Home Meadow Ltd,Care Establishment,2 - Commissioning - Older people Pool,Older People - City & South,Residential Independent Sector
Cambridgeshire County Council,19-Aug-16,21419597-13834527,500.22,Home Meadow Ltd,Care Establishment,2 - Commissioning - Older people Pool,Older People - City & South,Residential Independent Sector
Cambridgeshire County Council,19-Aug-16,21419598-13834528,500.22,Home Meadow Ltd,Care Establishment,2 - Commissioning - Older people Pool,Older People - City & South,Residential Independent Sector
Cambridgeshire County Council,19-Aug-16,21419599-13834529,500.22,Home Meadow Ltd,Care Establishment,2 - Commissioning - Older people Pool,Older People - City & South,Residential Independent Sector
Cambridgeshire County Council,19-Aug-16,21424962-13834530,500.22,Home Meadow Ltd,Care Establishment,2 - Commissioning - Older people Pool,Older People - City & South,Residential Independent Sector
Cambridgeshire County Council,19-Aug-16,21424967-13834531,500.22,Home Meadow Ltd,Care Establishment,2 - Commissioning - Older people Pool,Older People - City & South,Residential Independent Sector
Cambridgeshire County Council,19-Aug-16,21424968-13834532,500.22,Home Meadow Ltd,Care Establishment,2 - Commissioning - Older people Pool,Older People - City & South,Residential Independent Sector
Cambridgeshire County Council,19-Aug-16,21424969-13834533,500.22,Home Meadow Ltd,Care Establishment,2 - Commissioning - Older people Pool,Older People - City & South,Residential Independent Sector
Cambridgeshire County Council,05-Aug-16,21097699-13765258,500.4,Quantec Consultants Limited,Trade Supplier,LGSS Managed,County Farms,County Farms Maintenance Planned
Cambridgeshire County Council,05-Aug-16,21097700-13765259,500.4,Quantec Consultants Limited,Trade Supplier,LGSS Managed,County Farms,County Farms Maintenance Planned
Cambridgeshire County Council,05-Aug-16,21097701-13765260,500.4,Quantec Consultants Limited,Trade Supplier,LGSS Managed,County Farms,County Farms Maintenance Planned
Cambridgeshire County Council,05-Aug-16,21097703-13765261,500.4,Quantec Consultants Limited,Trade Supplier,LGSS Managed,County Farms,County Farms Maintenance Planned
Cambridgeshire County Council,05-Aug-16,21097705-13765263,500.4,Quantec Consultants Limited,Trade Supplier,LGSS Managed,County Farms,County Farms Maintenance Planned
Cambridgeshire County Council,05-Aug-16,21097750-13765264,500.4,Quantec Consultants Limited,Trade Supplier,LGSS Managed,County Farms,County Farms Maintenance Planned
Cambridgeshire County Council,05-Aug-16,21106376-13765265,500.4,Quantec Consultants Limited,Trade Supplier,LGSS Managed,County Farms,County Farms Maintenance Planned
Cambridgeshire County Council,05-Aug-16,21106377-13765266,500.4,Quantec Consultants Limited,Trade Supplier,LGSS Managed,County Farms,County Farms Maintenance Planned
Cambridgeshire County Council,05-Aug-16,21106378-13765267,500.4,Quantec Consultants Limited,Trade Supplier,LGSS Managed,County Farms,County Farms Maintenance Planned
Cambridgeshire County Council,25-Aug-16,21457019-13878135,500.54,Redacted Personal Data,Individual,LGSS Managed,County Farms,Capital WIP - land and buildings  -  Construction cost
Cambridgeshire County Council,19-Aug-16,21421191-13818349,500.9,St John'S School & College,Education,2 - Operations - Learning Disability,LDP South Cambs Locality - Care,Residential Independent Sector
Cambridgeshire County Council,19-Aug-16,21421198-13818352,500.9,St John'S School & College,Education,2 - Operations - Learning Disability,LDP South Cambs Locality - Care,Residential Independent Sector
Cambridgeshire County Council,19-Aug-16,21421199-13818353,500.9,St John'S School & College,Education,2 - Operations - Learning Disability,LDP South Cambs Locality - Care,Residential Independent Sector
Cambridgeshire County Council,19-Aug-16,21421204-13818356,500.9,St John'S School & College,Education,2 - Operations - Learning Disability,LDP South Cambs Locality - Care,Residential Independent Sector
Cambridgeshire County Council,05-Aug-16,21097704-13765262,501.6,Quantec Consultants Limited,Trade Supplier,LGSS Managed,County Farms,County Farms Maintenance Planned
Cambridgeshire County Council,30-Aug-16,21499406-13888139,501.6,Hughes Tv & Audio Ltd T/A Trade Electricals Direct,Trade Supplier,CSC,18-25 Service Team,Leaving Care Grants
Cambridgeshire County Council,19-Aug-16,21413679-13840626,501.68,Hunters Healthcare (Hunters Down),Care Establishment,2 - Commissioning - Older people Pool,Hunts O P  Team,Residential Independent Sector
Cambridgeshire County Council,19-Aug-16,21413680-13840627,501.68,Hunters Healthcare (Hunters Down),Care Establishment,2 - Commissioning - Older people Pool,Hunts O P  Team,Residential Independent Sector
Cambridgeshire County Council,19-Aug-16,21413681-13840628,501.68,Hunters Healthcare (Hunters Down),Care Establishment,2 - Commissioning - Older people Pool,Hunts O P  Team,Residential Independent Sector
Cambridgeshire County Council,19-Aug-16,21413682-13840629,501.68,Hunters Healthcare (Hunters Down),Care Establishment,2 - Commissioning - Older people Pool,Hunts O P  Team,Residential Independent Sector
Cambridgeshire County Council,19-Aug-16,21413907-13840618,501.68,Hunters Healthcare (Hunters Down),Care Establishment,2 - Commissioning - Older people Pool,Hunts O P  Team,Residential Independent Sector
Cambridgeshire County Council,19-Aug-16,21413908-13840619,501.68,Hunters Healthcare (Hunters Down),Care Establishment,2 - Commissioning - Older people Pool,Hunts O P  Team,Residential Independent Sector
Cambridgeshire County Council,19-Aug-16,21413909-13840620,501.68,Hunters Healthcare (Hunters Down),Care Establishment,2 - Commissioning - Older people Pool,Hunts O P  Team,Residential Independent Sector
Cambridgeshire County Council,19-Aug-16,21413910-13840621,501.68,Hunters Healthcare (Hunters Down),Care Establishment,2 - Commissioning - Older people Pool,Hunts O P  Team,Residential Independent Sector
Cambridgeshire County Council,11-Aug-16,21292679-13788352,502.04,Head Line Teacher Supply Service,Education,E&P,"Huntingdon & St Ives Children's Centres	",Other Hired Contract Services
Cambridgeshire County Council,09-Aug-16,21299599-13773085,502.48,Redacted Personal Data,Parent/Guardian,CSC,FCP allowances,Boarding Out Allowances
Cambridgeshire County Council,23-Aug-16,21435965-13848877,502.75,Redacted Personal Data,Individual,CSC,CSC Direct Payments,Direct Payments - Social Services
Cambridgeshire County Council,19-Aug-16,21427965-13819998,503.09,Loughton Hall,Care Establishment,2 - Commissioning - Older people Pool,Older People - City & South,Residential Independent Sector
Cambridgeshire County Council,19-Aug-16,21427966-13819999,503.09,Loughton Hall,Care Establishment,2 - Commissioning - Older people Pool,Older People - City & South,Residential Independent Sector
Cambridgeshire County Council,19-Aug-16,21427967-13820000,503.09,Loughton Hall,Care Establishment,2 - Commissioning - Older people Pool,Older People - City & South,Residential Independent Sector
Cambridgeshire County Council,19-Aug-16,21427968-13820001,503.09,Loughton Hall,Care Establishment,2 - Commissioning - Older people Pool,Older People - City & South,Residential Independent Sector
Cambridgeshire County Council,19-Aug-16,21423276-13826873,503.11,Cottenham Court Nursing Home,Care Establishment,2 - Commissioning - Older people Pool,Older People - City & South,Residential Independent Sector
Cambridgeshire County Council,19-Aug-16,21423283-13826874,503.11,Cottenham Court Nursing Home,Care Establishment,2 - Commissioning - Older people Pool,Older People - City & South,Residential Independent Sector
Cambridgeshire County Council,19-Aug-16,21423285-13826875,503.11,Cottenham Court Nursing Home,Care Establishment,2 - Commissioning - Older people Pool,Older People - City & South,Residential Independent Sector
Cambridgeshire County Council,19-Aug-16,21423290-13826876,503.11,Cottenham Court Nursing Home,Care Establishment,2 - Commissioning - Older people Pool,Older People - City & South,Residential Independent Sector
Cambridgeshire County Council,19-Aug-16,21414381-13835898,503.14,Abbott Healthcare Ltd,Care Establishment,2 - Commissioning - Older people Pool,Older People - City & South,Day and Domicillary Care Independent Sector
Cambridgeshire County Council,19-Aug-16,21414384-13835899,503.14,Abbott Healthcare Ltd,Care Establishment,2 - Commissioning - Older people Pool,Older People - City & South,Day and Domicillary Care Independent Sector
Cambridgeshire County Council,19-Aug-16,21414387-13835900,503.14,Abbott Healthcare Ltd,Care Establishment,2 - Commissioning - Older people Pool,Older People - City & South,Day and Domicillary Care Independent Sector
Cambridgeshire County Council,19-Aug-16,21414391-13835901,503.14,Abbott Healthcare Ltd,Care Establishment,2 - Commissioning - Older people Pool,Older People - City & South,Day and Domicillary Care Independent Sector
Cambridgeshire County Council,09-Aug-16,21299048-13774060,503.21,Redacted Personal Data,Foster Parent,CSC,FCP allowances,Boarding Out Allowances
Cambridgeshire County Council,09-Aug-16,21299050-13774062,503.21,Redacted Personal Data,Foster Parent,CSC,Unaccompanied Asylum Seeking Children,Boarding Out Allowances
Cambridgeshire County Council,22-Aug-16,21319386-13846205,503.48,Chs Group,Care Establishment,2 - Operations - Learning Disability,LDP E Cambs Locality - Care,Supported Living
Cambridgeshire County Council,11-Aug-16,21165408-13788598,503.91,Lex Autolease Ltd,Trade Supplier,4 - Operations - Providers services,No. 18 Alder Close High Supported Living Scheme,Leased Vehicle Costs
Cambridgeshire County Council,01-Aug-16,21124957-13739847,504,Randstad Education Limited,Trade Supplier,E&P,Head of Service SEND Specialist Services,Pay - Supply Cover - Long-term supply
Cambridgeshire County Council,05-Aug-16,21131856-13765183,504,Coach And Horses Guest House,Trade Supplier,CSC,CSC Hunts and Fenland Unit 3,Childrens Lodgings
Cambridgeshire County Council,08-Aug-16,21188995-13768721,504,Randstad Education Limited,Trade Supplier,E&P,Head of Service SEND Specialist Services,Pay - Supply Cover - Long-term supply
Cambridgeshire County Council,08-Aug-16,21285508-13768678,504,Red2green,Care Establishment,S&C,Out of School Provision - Education and Settings,Agency Placements - In Cambs
Cambridgeshire County Council,15-Aug-16,21154218-13798321,504,Stagecoach Services Ltd,Trade Supplier,E&P,YS - Positive Activities for Young People,Educational Materials
Cambridgeshire County Council,15-Aug-16,21170525-13798189,504,Science Adventures Cic,Local Clubs & Groups,CSC,DCT South,Outreach
Cambridgeshire County Council,16-Aug-16,21388945-13803396,504,Randstad Education Limited,Trade Supplier,E&P,SEND Specialist Services - Access & Inclusion,Pay - Supply Cover - Long-term supply
Cambridgeshire County Council,16-Aug-16,21388947-13803397,504,Randstad Education Limited,Trade Supplier,E&P,SEND Specialist Services - Access & Inclusion,Pay - Supply Cover - Long-term supply
Cambridgeshire County Council,22-Aug-16,21319420-13846354,504,Anglian Taxi Service,Trade Supplier,S&C,Home to School Transport - Special,Home to School - Secondary
Cambridgeshire County Council,22-Aug-16,21391904-13846478,504,Randstad Education Limited,Trade Supplier,E&P,SEND Specialist Services - Access & Inclusion,Pay - Supply Cover - Long-term supply
Cambridgeshire County Council,23-Aug-16,21302808-13848480,504,Enterprise Flex-E-Rent,Trade Supplier,Traffic Management & Road Safety,On Street Parking,Vehicle hire
Cambridgeshire County Council,24-Aug-16,21454020-13860288,504,Coach And Horses Guest House,Trade Supplier,CSC,CSC Hunts and Fenland Unit 30,General Office Expenses & Stationery
Cambridgeshire County Council,25-Aug-16,21459343-13865939,504,Coach And Horses Guest House,Trade Supplier,CSC,CSC Hunts and Fenland Unit 30,General Office Expenses & Stationery
Cambridgeshire County Council,26-Aug-16,21460343-13881303,504,Coach And Horses Guest House,Trade Supplier,CSC,CSC Hunts and Fenland Unit 30,General Office Expenses & Stationery
Cambridgeshire County Council,03-Aug-16,21257463-13755241,504.15,Ulverscroft Large Print Books Ltd,Trade Supplier,Corporate Services,Support - Stock & Distribution,Library Book Fund
Cambridgeshire County Council,08-Aug-16,21124916-13768130,504.36,Swaffham Prior Parish Council,Other Public Bodies,Local Infrastructure & Street Management,Network Management,Village Maintenance - Parishs
Cambridgeshire County Council,19-Aug-16,21413457-13838047,504.4,Westminster Homecare Limited,Care Establishment,2 - Commissioning - Older people Pool,Older People - City & South,Day and Domicillary Care Independent Sector
Cambridgeshire County Council,19-Aug-16,21417686-13838225,504.4,Westminster Homecare Limited,Care Establishment,2 - Commissioning - Older people Pool,Older People - City & South,Day and Domicillary Care Independent Sector
Cambridgeshire County Council,19-Aug-16,21417688-13838226,504.4,Westminster Homecare Limited,Care Establishment,2 - Commissioning - Older people Pool,Older People - City & South,Day and Domicillary Care Independent Sector
Cambridgeshire County Council,19-Aug-16,21417690-13838227,504.4,Westminster Homecare Limited,Care Establishment,2 - Commissioning - Older people Pool,Older People - City & South,Day and Domicillary Care Independent Sector
Cambridgeshire County Council,19-Aug-16,21428788-13838358,504.4,Westminster Homecare Limited,Care Establishment,2 - Commissioning - Older people Pool,Older People - City & South,Day and Domicillary Care Independent Sector
Cambridgeshire County Council,19-Aug-16,21428791-13838361,504.4,Westminster Homecare Limited,Care Establishment,2 - Commissioning - Older people Pool,Older People - City & South,Day and Domicillary Care Independent Sector
Cambridgeshire County Council,19-Aug-16,21428793-13838363,504.4,Westminster Homecare Limited,Care Establishment,2 - Commissioning - Older people Pool,Older People - City & South,Day and Domicillary Care Independent Sector
Cambridgeshire County Council,19-Aug-16,21428794-13838364,504.4,Westminster Homecare Limited,Care Establishment,2 - Commissioning - Older people Pool,Older People - City & South,Day and Domicillary Care Independent Sector
Cambridgeshire County Council,25-Aug-16,21462711-13865113,504.44,Redacted Personal Data,Individual,3 - Operations - Countywide Services,Countywide PD Service - Care,Direct Payments - Social Services
Cambridgeshire County Council,25-Aug-16,21462713-13865115,504.44,Redacted Personal Data,Individual,3 - Operations - Countywide Services,Countywide PD Service - Care,Direct Payments - Social Services
Cambridgeshire County Council,25-Aug-16,21462717-13865119,504.44,Redacted Personal Data,Individual,3 - Operations - Countywide Services,Countywide PD Service - Care,Direct Payments - Social Services
Cambridgeshire County Council,25-Aug-16,21462718-13865120,504.44,Redacted Personal Data,Individual,3 - Operations - Countywide Services,Countywide PD Service - Care,Direct Payments - Social Services
Cambridgeshire County Council,19-Aug-16,21404970-13818119,504.56,Redacted Personal Data,Individual,CSC,18-25 Service Indigenous,Living support grants
Cambridgeshire County Council,19-Aug-16,21428209-13818286,505,Parkside Nursing Home#1,Care Establishment,2 - Commissioning - Older people Pool,East Cambs - O P Team,Residential Independent Sector
Cambridgeshire County Council,19-Aug-16,21428211-13818287,505,Parkside Nursing Home#1,Care Establishment,2 - Commissioning - Older people Pool,East Cambs - O P Team,Residential Independent Sector
Cambridgeshire County Council,19-Aug-16,21428212-13818288,505,Parkside Nursing Home#1,Care Establishment,2 - Commissioning - Older people Pool,East Cambs - O P Team,Residential Independent Sector
Cambridgeshire County Council,19-Aug-16,21428214-13818289,505,Parkside Nursing Home#1,Care Establishment,2 - Commissioning - Older people Pool,East Cambs - O P Team,Residential Independent Sector
Cambridgeshire County Council,02-Aug-16,21230594-13745628,505.02,Anglian Water Services Limited,Company,LGSS Managed,Buttsgrove,Water charges
Cambridgeshire County Council,09-Aug-16,21299076-13773350,505.08,Redacted Personal Data,Foster Parent,CSC,Adoption Allowances,Adoption Allowances
Cambridgeshire County Council,23-Aug-16,21437528-13849362,505.08,Redacted Personal Data,Foster Parent,CSC,Adoption Allowances,Adoption Allowances
Cambridgeshire County Council,03-Aug-16,21260529-13755221,505.5,Gratte Brothers Catering Equipment Ltd,Company,S&C,"Catering - Property, Equipment & Maintenance",Repair of canteen equipment
Cambridgeshire County Council,19-Aug-16,21422928-13821573,505.91,Home Choice Care Ltd,Care Establishment,3 - Operations - Countywide Services,Countywide PD Service - Care,Day and Domicillary Care Independent Sector
Cambridgeshire County Council,19-Aug-16,21422929-13821574,505.91,Home Choice Care Ltd,Care Establishment,3 - Operations - Countywide Services,Countywide PD Service - Care,Day and Domicillary Care Independent Sector
Cambridgeshire County Council,19-Aug-16,21422931-13821576,505.91,Home Choice Care Ltd,Care Establishment,3 - Operations - Countywide Services,Countywide PD Service - Care,Day and Domicillary Care Independent Sector
Cambridgeshire County Council,19-Aug-16,21409628-13820152,505.98,Caerus Care Ltd,Care Establishment,2 - Operations - Learning Disability,LDP Fenland Locality - Care,Supported Living
Cambridgeshire County Council,19-Aug-16,21410348-13820141,505.98,Caerus Care Ltd,Care Establishment,2 - Operations - Learning Disability,LDP Fenland Locality - Care,Supported Living
Cambridgeshire County Council,19-Aug-16,21415014-13820167,505.98,Caerus Care Ltd,Care Establishment,2 - Operations - Learning Disability,LDP Fenland Locality - Care,Supported Living
Cambridgeshire County Council,19-Aug-16,21415076-13820168,505.98,Caerus Care Ltd,Care Establishment,2 - Operations - Learning Disability,LDP Fenland Locality - Care,Supported Living
Cambridgeshire County Council,25-Aug-16,21466876-13864950,506.24,Redacted Personal Data,Individual,3 - Operations - Countywide Services,Countywide PD Service - Care,Direct Payments - Social Services
Cambridgeshire County Council,25-Aug-16,21466877-13864951,506.24,Redacted Personal Data,Individual,3 - Operations - Countywide Services,Countywide PD Service - Care,Direct Payments - Social Services
Cambridgeshire County Council,25-Aug-16,21466878-13864952,506.24,Redacted Personal Data,Individual,3 - Operations - Countywide Services,Countywide PD Service - Care,Direct Payments - Social Services
Cambridgeshire County Council,25-Aug-16,21466879-13864953,506.24,Redacted Personal Data,Individual,3 - Operations - Countywide Services,Countywide PD Service - Care,Direct Payments - Social Services
Cambridgeshire County Council,25-Aug-16,21460674-13870015,506.25,Edenred (Uk Group) Ltd,Trade Supplier,Corporate Services,Director - Customer Services,Other Hired Contract Services
Cambridgeshire County Council,19-Aug-16,21409921-13840692,506.38,Farrington Care Homes Ltd T/A Woodlands Residential Care Home,Care Establishment,2 - Commissioning - Older people Pool,Hunts O P  Team,Residential Independent Sector
Cambridgeshire County Council,19-Aug-16,21409922-13840693,506.38,Farrington Care Homes Ltd T/A Woodlands Residential Care Home,Care Establishment,2 - Commissioning - Older people Pool,Hunts O P  Team,Residential Independent Sector
Cambridgeshire County Council,19-Aug-16,21409923-13840694,506.38,Farrington Care Homes Ltd T/A Woodlands Residential Care Home,Care Establishment,2 - Commissioning - Older people Pool,Hunts O P  Team,Residential Independent Sector
Cambridgeshire County Council,19-Aug-16,21409924-13840695,506.38,Farrington Care Homes Ltd T/A Woodlands Residential Care Home,Care Establishment,2 - Commissioning - Older people Pool,Hunts O P  Team,Residential Independent Sector
Cambridgeshire County Council,18-Aug-16,21403966-13813316,506.4,The Newcastle Upon Tyne Hospitals Nhs Foundation Trust,Other Public Bodies,PH,SH STI testing & treatment - Prescribed,Other Hired Contract Services
Cambridgeshire County Council,30-Aug-16,21496499-13888493,506.4,Klipspringer Ltd,Trade Supplier,S&C,Catering - Cook Freeze Unit (C3),Repair of canteen equipment
Cambridgeshire County Council,25-Aug-16,21462205-13871784,506.46,Redacted Personal Data,Individual,3 - Operations - Countywide Services,Countywide PD Service - Care,Direct Payments - Social Services
Cambridgeshire County Council,25-Aug-16,21462206-13871785,506.46,Redacted Personal Data,Individual,3 - Operations - Countywide Services,Countywide PD Service - Care,Direct Payments - Social Services
Cambridgeshire County Council,25-Aug-16,21462207-13871786,506.46,Redacted Personal Data,Individual,3 - Operations - Countywide Services,Countywide PD Service - Care,Direct Payments - Social Services
Cambridgeshire County Council,25-Aug-16,21462208-13871787,506.46,Redacted Personal Data,Individual,3 - Operations - Countywide Services,Countywide PD Service - Care,Direct Payments - Social Services
Cambridgeshire County Council,23-Aug-16,21438021-13849113,506.88,Redacted Personal Data,Parent/Guardian,CSC,Adoption Allowances,Adoption Allowances
Cambridgeshire County Council,08-Aug-16,21290033-13768267,507.36,The Orchard Surgery,Care Establishment,PH,Stop Smoking Service & Intervention - Non Prescribed,Other Hired Contract Services
Cambridgeshire County Council,15-Aug-16,21271622-13798469,507.6,Xma Limited,Trade Supplier,LRNG,ICT Service Procurement,Materials for resale
Cambridgeshire County Council,19-Aug-16,21425092-13829511,507.79,Conquest Care Homes Peterborough,Care Establishment,2 - Operations - Learning Disability,LDP Fenland Locality - Care,Supported Living
Cambridgeshire County Council,19-Aug-16,21425093-13829512,507.79,Conquest Care Homes Peterborough,Care Establishment,2 - Operations - Learning Disability,LDP Fenland Locality - Care,Supported Living
Cambridgeshire County Council,19-Aug-16,21425096-13829513,507.79,Conquest Care Homes Peterborough,Care Establishment,2 - Operations - Learning Disability,LDP Fenland Locality - Care,Supported Living
Cambridgeshire County Council,19-Aug-16,21425098-13829514,507.79,Conquest Care Homes Peterborough,Care Establishment,2 - Operations - Learning Disability,LDP Fenland Locality - Care,Supported Living
Cambridgeshire County Council,19-Aug-16,21426230-13829491,507.79,Conquest Care Homes Peterborough,Care Establishment,2 - Operations - Learning Disability,LDP Fenland Locality - Care,Supported Living
Cambridgeshire County Council,19-Aug-16,21426234-13829495,507.79,Conquest Care Homes Peterborough,Care Establishment,2 - Operations - Learning Disability,LDP Fenland Locality - Care,Supported Living
Cambridgeshire County Council,19-Aug-16,21426236-13829497,507.79,Conquest Care Homes Peterborough,Care Establishment,2 - Operations - Learning Disability,LDP Fenland Locality - Care,Supported Living
Cambridgeshire County Council,19-Aug-16,21426237-13829498,507.79,Conquest Care Homes Peterborough,Care Establishment,2 - Operations - Learning Disability,LDP Fenland Locality - Care,Supported Living
Cambridgeshire County Council,05-Aug-16,21285653-13765084,508.01,Peters Ltd,Trade Supplier,Corporate Services,Support - Stock & Distribution,Library Book Fund
Cambridgeshire County Council,25-Aug-16,21467408-13870127,508.04,Tony Stocks T/A Guyatt House,Care Establishment,2 - Operations - Learning Disability,LDP E Cambs Locality - Care,Residential Independent Sector
Cambridgeshire County Council,25-Aug-16,21467410-13870128,508.04,Tony Stocks T/A Guyatt House,Care Establishment,2 - Operations - Learning Disability,LDP E Cambs Locality - Care,Residential Independent Sector
Cambridgeshire County Council,25-Aug-16,21467415-13870131,508.04,Tony Stocks T/A Guyatt House,Care Establishment,2 - Operations - Learning Disability,LDP E Cambs Locality - Care,Residential Independent Sector
Cambridgeshire County Council,25-Aug-16,21467418-13870133,508.04,Tony Stocks T/A Guyatt House,Care Establishment,2 - Operations - Learning Disability,LDP E Cambs Locality - Care,Residential Independent Sector
Cambridgeshire County Council,19-Aug-16,21414772-13836493,508.21,Camb Care Ltd,Care Establishment,2 - Commissioning - Older people Pool,Hunts O P  Team,Day and Domicillary Care Independent Sector
Cambridgeshire County Council,19-Aug-16,21414773-13836494,508.21,Camb Care Ltd,Care Establishment,2 - Commissioning - Older people Pool,Hunts O P  Team,Day and Domicillary Care Independent Sector
Cambridgeshire County Council,19-Aug-16,21414776-13836495,508.21,Camb Care Ltd,Care Establishment,2 - Commissioning - Older people Pool,Hunts O P  Team,Day and Domicillary Care Independent Sector
Cambridgeshire County Council,19-Aug-16,21414783-13836496,508.21,Camb Care Ltd,Care Establishment,2 - Commissioning - Older people Pool,Hunts O P  Team,Day and Domicillary Care Independent Sector
Cambridgeshire County Council,19-Aug-16,21418920-13836224,508.21,Camb Care Ltd,Care Establishment,2 - Commissioning - Older people Pool,Hunts O P  Team,Day and Domicillary Care Independent Sector
Cambridgeshire County Council,19-Aug-16,21418946-13836227,508.21,Camb Care Ltd,Care Establishment,2 - Commissioning - Older people Pool,Hunts O P  Team,Day and Domicillary Care Independent Sector
Cambridgeshire County Council,19-Aug-16,21418948-13836229,508.21,Camb Care Ltd,Care Establishment,2 - Commissioning - Older people Pool,Hunts O P  Team,Day and Domicillary Care Independent Sector
Cambridgeshire County Council,19-Aug-16,21422780-13836369,508.21,Camb Care Ltd,Care Establishment,2 - Commissioning - Older people Pool,Hunts O P  Team,Day and Domicillary Care Independent Sector
Cambridgeshire County Council,19-Aug-16,21422781-13836370,508.21,Camb Care Ltd,Care Establishment,2 - Commissioning - Older people Pool,Hunts O P  Team,Day and Domicillary Care Independent Sector
Cambridgeshire County Council,19-Aug-16,21422782-13836371,508.21,Camb Care Ltd,Care Establishment,2 - Commissioning - Older people Pool,Hunts O P  Team,Day and Domicillary Care Independent Sector
Cambridgeshire County Council,19-Aug-16,21422783-13836372,508.21,Camb Care Ltd,Care Establishment,2 - Commissioning - Older people Pool,Hunts O P  Team,Day and Domicillary Care Independent Sector
Cambridgeshire County Council,19-Aug-16,21411691-13828597,508.64,Affinity Trust,Care Establishment,2 - Operations - Learning Disability,LDP Fens - Special Needs,Day and Domicillary Care Independent Sector
Cambridgeshire County Council,19-Aug-16,21411695-13828599,508.64,Affinity Trust,Care Establishment,2 - Operations - Learning Disability,LDP Fens - Special Needs,Day and Domicillary Care Independent Sector
Cambridgeshire County Council,08-Aug-16,21289638-13768111,508.82,Trans Uk Supplies Ltd,Trade Supplier,Corporate Services,Support - Stock & Distribution,DVDs - for hire
Cambridgeshire County Council,18-Aug-16,21391948-13813259,508.9,Interaction Recruitment Plc,Trade Supplier,S&C,Cleaning - Specialist Cleaning,Pay - Agency Staff
Cambridgeshire County Council,19-Aug-16,21412640-13837153,508.99,Buchan Healthcare Ltd,Care Establishment,2 - Commissioning - Older people Pool,Hunts O P  Team,Respite Independent Sector
Cambridgeshire County Council,19-Aug-16,21414075-13838634,509.04,Redacted Personal Data,Individual,SMI's,Early Years - Funded 3s/4s,Care & Ed Childcare Settings
Cambridgeshire County Council,19-Aug-16,21414087-13833417,509.04,Redacted Personal Data,Individual,SMI's,Early Years - Funded 3s/4s,Care & Ed Childcare Settings
Cambridgeshire County Council,19-Aug-16,21414231-13823028,509.04,Redacted Personal Data,Individual,SMI's,Early Years - Funded 3s/4s,Care & Ed Childcare Settings
Cambridgeshire County Council,19-Aug-16,21414364-13820053,509.04,Redacted Personal Data,Individual,SMI's,Early Years - Funded 3s/4s,Care & Ed Childcare Settings
Cambridgeshire County Council,19-Aug-16,21414486-13838586,509.04,Redacted Personal Data,Individual,SMI's,Early Years - Funded 3s/4s,Care & Ed Childcare Settings
Cambridgeshire County Council,19-Aug-16,21414574-13821085,509.04,Redacted Personal Data,Individual,SMI's,Early Years - Funded 3s/4s,Care & Ed Childcare Settings
Cambridgeshire County Council,19-Aug-16,21414577-13821193,509.04,Redacted Personal Data,Individual,SMI's,Early Years - Funded 3s/4s,Care & Ed Childcare Settings
Cambridgeshire County Council,19-Aug-16,21414581-13839252,509.04,Redacted Personal Data,Individual,SMI's,Early Years - Funded 3s/4s,Care & Ed Childcare Settings
Cambridgeshire County Council,19-Aug-16,21414590-13820908,509.04,Redacted Personal Data,Individual,SMI's,Early Years - Funded 3s/4s,Care & Ed Childcare Settings
Cambridgeshire County Council,19-Aug-16,21414595-13820816,509.04,Redacted Personal Data,Individual,SMI's,Early Years - Funded 3s/4s,Care & Ed Childcare Settings
Cambridgeshire County Council,19-Aug-16,21414611-13818260,509.04,Redacted Personal Data,Individual,SMI's,Early Years - Funded 3s/4s,Care & Ed Childcare Settings
Cambridgeshire County Council,19-Aug-16,21414644-13822980,509.04,Redacted Personal Data,Individual,SMI's,Early Years - Funded 3s/4s,Care & Ed Childcare Settings
Cambridgeshire County Council,19-Aug-16,21414756-13819100,509.04,Redacted Personal Data,Individual,SMI's,Early Years - Funded 3s/4s,Care & Ed Childcare Settings
Cambridgeshire County Council,19-Aug-16,21414764-13818210,509.04,Redacted Personal Data,Individual,SMI's,Early Years - Funded 3s/4s,Care & Ed Childcare Settings
Cambridgeshire County Council,19-Aug-16,21414876-13826913,509.04,Redacted Personal Data,Individual,SMI's,Early Years - Funded 3s/4s,Care & Ed Childcare Settings
Cambridgeshire County Council,19-Aug-16,21414879-13820789,509.04,Redacted Personal Data,Individual,SMI's,Early Years - Funded 3s/4s,Care & Ed Childcare Settings
Cambridgeshire County Council,19-Aug-16,21414903-13819645,509.04,Redacted Personal Data,Parent/Guardian,SMI's,Early Years - Funded 3s/4s,Care & Ed Childcare Settings
Cambridgeshire County Council,19-Aug-16,21415060-13825404,509.04,Redacted Personal Data,Individual,SMI's,Early Years - Funded 3s/4s,Care & Ed Childcare Settings
Cambridgeshire County Council,19-Aug-16,21415097-13828248,509.04,Redacted Personal Data,Individual,SMI's,Early Years - Funded 3s/4s,Care & Ed Childcare Settings
Cambridgeshire County Council,19-Aug-16,21415114-13818129,509.04,Redacted Personal Data,Individual,SMI's,Early Years - Funded 3s/4s,Care & Ed Childcare Settings
Cambridgeshire County Council,19-Aug-16,21415116-13824878,509.04,Redacted Personal Data,Individual,SMI's,Early Years - Funded 3s/4s,Care & Ed Childcare Settings
Cambridgeshire County Council,19-Aug-16,21407850-13830231,509.27,Imtech Aqua Maintenance Ltd,Company,LGSS Managed,Building Maintenance,Building Maintenance - Structural Maintenance - Planned
Cambridgeshire County Council,19-Aug-16,21409514-13839236,509.6,Ford House Care Home,Care Establishment,2 - Commissioning - Older people Pool,Hunts O P  Team,Nursing Independent Sector
Cambridgeshire County Council,19-Aug-16,21409515-13839237,509.6,Ford House Care Home,Care Establishment,2 - Commissioning - Older people Pool,Hunts O P  Team,Nursing Independent Sector
Cambridgeshire County Council,19-Aug-16,21409516-13839238,509.6,Ford House Care Home,Care Establishment,2 - Commissioning - Older people Pool,Hunts O P  Team,Nursing Independent Sector
Cambridgeshire County Council,19-Aug-16,21409517-13839239,509.6,Ford House Care Home,Care Establishment,2 - Commissioning - Older people Pool,Hunts O P  Team,Nursing Independent Sector
Cambridgeshire County Council,19-Aug-16,21409618-13828236,509.6,Askham Village Community Ltd,Care Establishment,2 - Commissioning - Older people Pool,Older People - Fenland,Nursing Independent Sector
Cambridgeshire County Council,19-Aug-16,21409674-13828234,509.6,Askham Village Community Ltd,Care Establishment,2 - Commissioning - Older people Pool,Older People - Fenland,Nursing Independent Sector
Cambridgeshire County Council,19-Aug-16,21409885-13828229,509.6,Askham Village Community Ltd,Care Establishment,2 - Commissioning - Older people Pool,Older People - Fenland,Nursing Independent Sector
Cambridgeshire County Council,19-Aug-16,21409887-13828230,509.6,Askham Village Community Ltd,Care Establishment,2 - Commissioning - Older people Pool,Older People - Fenland,Nursing Independent Sector
Cambridgeshire County Council,19-Aug-16,21409889-13828231,509.6,Askham Village Community Ltd,Care Establishment,2 - Commissioning - Older people Pool,Older People - Fenland,Nursing Independent Sector
Cambridgeshire County Council,19-Aug-16,21409890-13828232,509.6,Askham Village Community Ltd,Care Establishment,2 - Commissioning - Older people Pool,Older People - Fenland,Nursing Independent Sector
Cambridgeshire County Council,19-Aug-16,21410327-13828224,509.6,Askham Village Community Ltd,Care Establishment,2 - Commissioning - Older people Pool,Older People - Fenland,Nursing Independent Sector
Cambridgeshire County Council,19-Aug-16,21410349-13828226,509.6,Askham Village Community Ltd,Care Establishment,2 - Commissioning - Older people Pool,Older People - Fenland,Nursing Independent Sector
Cambridgeshire County Council,19-Aug-16,21410677-13828222,509.6,Askham Village Community Ltd,Care Establishment,2 - Commissioning - Older people Pool,Older People - Fenland,Nursing Independent Sector
Cambridgeshire County Council,19-Aug-16,21410678-13828223,509.6,Askham Village Community Ltd,Care Establishment,2 - Commissioning - Older people Pool,Older People - Fenland,Nursing Independent Sector
Cambridgeshire County Council,19-Aug-16,21410831-13839224,509.6,Ford House Care Home,Care Establishment,2 - Commissioning - Older people Pool,Older People - City & South,Nursing Independent Sector
Cambridgeshire County Council,19-Aug-16,21410832-13839225,509.6,Ford House Care Home,Care Establishment,2 - Commissioning - Older people Pool,Older People - City & South,Nursing Independent Sector
Cambridgeshire County Council,19-Aug-16,21410836-13839226,509.6,Ford House Care Home,Care Establishment,2 - Commissioning - Older people Pool,Older People - City & South,Nursing Independent Sector
Cambridgeshire County Council,19-Aug-16,21410840-13839227,509.6,Ford House Care Home,Care Establishment,2 - Commissioning - Older people Pool,Older People - City & South,Nursing Independent Sector
Cambridgeshire County Council,19-Aug-16,21411461-13839208,509.6,Ford House Care Home,Care Establishment,2 - Commissioning - Older people Pool,East Cambs - O P Team,Nursing Independent Sector
Cambridgeshire County Council,19-Aug-16,21411462-13839209,509.6,Ford House Care Home,Care Establishment,2 - Commissioning - Older people Pool,East Cambs - O P Team,Nursing Independent Sector
Cambridgeshire County Council,19-Aug-16,21411463-13839210,509.6,Ford House Care Home,Care Establishment,2 - Commissioning - Older people Pool,East Cambs - O P Team,Nursing Independent Sector
Cambridgeshire County Council,19-Aug-16,21411464-13839211,509.6,Ford House Care Home,Care Establishment,2 - Commissioning - Older people Pool,East Cambs - O P Team,Nursing Independent Sector
Cambridgeshire County Council,19-Aug-16,21414963-13828242,509.6,Askham Village Community Ltd,Care Establishment,2 - Commissioning - Older people Pool,Older People Mental Health Fenland,Nursing Independent Sector
Cambridgeshire County Council,19-Aug-16,21414965-13828243,509.6,Askham Village Community Ltd,Care Establishment,2 - Commissioning - Older people Pool,Older People Mental Health Fenland,Nursing Independent Sector
Cambridgeshire County Council,19-Aug-16,21414966-13828244,509.6,Askham Village Community Ltd,Care Establishment,2 - Commissioning - Older people Pool,Older People Mental Health Fenland,Nursing Independent Sector
Cambridgeshire County Council,19-Aug-16,21414968-13828245,509.6,Askham Village Community Ltd,Care Establishment,2 - Commissioning - Older people Pool,Older People Mental Health Fenland,Nursing Independent Sector
Cambridgeshire County Council,19-Aug-16,21416003-13828235,509.6,Askham Village Community Ltd,Care Establishment,2 - Commissioning - Older people Pool,Older People - Fenland,Nursing Independent Sector
Cambridgeshire County Council,19-Aug-16,21416020-13828228,509.6,Askham Village Community Ltd,Care Establishment,2 - Commissioning - Older people Pool,Older People - Fenland,Nursing Independent Sector
Cambridgeshire County Council,19-Aug-16,21417182-13839220,509.6,Ford House Care Home,Care Establishment,2 - Commissioning - Older people Pool,Hunts O P  Team,Nursing Independent Sector
Cambridgeshire County Council,19-Aug-16,21417188-13839221,509.6,Ford House Care Home,Care Establishment,2 - Commissioning - Older people Pool,Hunts O P  Team,Nursing Independent Sector
Cambridgeshire County Council,19-Aug-16,21417192-13839222,509.6,Ford House Care Home,Care Establishment,2 - Commissioning - Older people Pool,Hunts O P  Team,Nursing Independent Sector
Cambridgeshire County Council,19-Aug-16,21417197-13839223,509.6,Ford House Care Home,Care Establishment,2 - Commissioning - Older people Pool,Hunts O P  Team,Nursing Independent Sector
